Body Name,Body,Service Area Catergorisation,Service Division Catergorisation,Responsible Unit,Expenses Type,Detailed Expenses Type,Expenses Code,Date,Transaction Number,Amount,Capital / Revenue,Supplier Name,Supplier ID
North East Lincolnshire Council,http://statistics.data.gov.uk/id/local-authority/00FC),Cap Dep Chief Exec,Ad Early Intervention,Capital Fund - For Two Yr Olds,Cap Grants To O/Side Sources,Cap Grants To O/Side Sources,YJ101,1/19/2016,390411,81000,CAPITAL,PRECIOUS TIMES RIVERSIDE,109610
North East Lincolnshire Council,http://statistics.data.gov.uk/id/local-authority/00FC),Cap Dep Chief Exec,Ad Environment,Fleet Replacement Programme,Cap Veh Plt Eqp-Purchase,Cap Veh Plt Eqp-Purchase,YB101,1/11/2016,384871,705,CAPITAL,WHALE TANKERS LTD,100569
North East Lincolnshire Council,http://statistics.data.gov.uk/id/local-authority/00FC),Cap Dep Chief Exec,Ad Environment,Fleet Replacement Programme,Cap Veh Plt Eqp-Purchase,Cap Veh Plt Eqp-Purchase,YB101,1/11/2016,384871,139236,CAPITAL,WHALE TANKERS LTD,100569
North East Lincolnshire Council,http://statistics.data.gov.uk/id/local-authority/00FC),Chief Executive,Director Of Finance,Backlog Maintenance,Cap Land/Build-Build Enh Wrk,Cap Land/Build-Build Enh Wrk,YA102,1/18/2016,389970,6053.9,CAPITAL,COFELY WORKPLACE LIMITED,123983
North East Lincolnshire Council,http://statistics.data.gov.uk/id/local-authority/00FC),Chief Executive,Director Of Finance,Backlog Maintenance,Cap Land/Build-Build Enh Wrk,Cap Land/Build-Build Enh Wrk,YA102,1/18/2016,389979,2318,CAPITAL,COFELY WORKPLACE LIMITED,123983
North East Lincolnshire Council,http://statistics.data.gov.uk/id/local-authority/00FC),Chief Executive,Director Of Finance,Property Rationalisation Prog,Cap Infrastr-Purchase,Cap Infrastr-Purchase,YC101,1/5/2016,379911,274.86,CAPITAL,INSIGHT DIRECT (UK) LTD,101011
North East Lincolnshire Council,http://statistics.data.gov.uk/id/local-authority/00FC),Chief Executive,Director Of Finance,Property Rationalisation Prog,Cap Infrastr-Purchase,Cap Infrastr-Purchase,YC101,1/21/2016,390324,257.2,CAPITAL,COMPUTACENTER UK LTD,101303
North East Lincolnshire Council,http://statistics.data.gov.uk/id/local-authority/00FC),Chief Executive,Director Of Finance,Property Rationalisation Prog,Cap Land/Build-Build Enh Wrk,Cap Land/Build-Build Enh Wrk,YA102,1/26/2016,390843,588.49,CAPITAL,BELL WASTE CONTROL,101433
North East Lincolnshire Council,http://statistics.data.gov.uk/id/local-authority/00FC),Chief Executive,Director Of Finance,Property Rationalisation Prog,Cap Land/Build-Build Enh Wrk,Cap Land/Build-Build Enh Wrk,YA102,1/14/2016,389978,1185,CAPITAL,COFELY WORKPLACE LIMITED,123983
North East Lincolnshire Council,http://statistics.data.gov.uk/id/local-authority/00FC),Chief Executive,Director Of Finance,Property Rationalisation Prog,Cap Land/Build-Build Enh Wrk,Cap Land/Build-Build Enh Wrk,YA102,1/14/2016,389975,777,CAPITAL,COFELY WORKPLACE LIMITED,123983
North East Lincolnshire Council,http://statistics.data.gov.uk/id/local-authority/00FC),Chief Executive,Director Of Finance,Property Rationalisation Prog,Cap Land/Build-Build Enh Wrk,Cap Land/Build-Build Enh Wrk,YA102,1/14/2016,389976,1006,CAPITAL,COFELY WORKPLACE LIMITED,123983
North East Lincolnshire Council,http://statistics.data.gov.uk/id/local-authority/00FC),Chief Executive,Director Of Finance,Property Rationalisation Prog,Cap Land/Build-Build Enh Wrk,Cap Land/Build-Build Enh Wrk,YA102,1/18/2016,389971,919.26,CAPITAL,COFELY WORKPLACE LIMITED,123983
North East Lincolnshire Council,http://statistics.data.gov.uk/id/local-authority/00FC),Chief Executive,Director Of Finance,Property Rationalisation Prog,Cap Land/Build-Build Enh Wrk,Cap Land/Build-Build Enh Wrk,YA102,1/18/2016,389972,570,CAPITAL,COFELY WORKPLACE LIMITED,123983
North East Lincolnshire Council,http://statistics.data.gov.uk/id/local-authority/00FC),Chief Executive,Director Of Finance,Property Rationalisation Prog,Cap Land/Build-Build Enh Wrk,Cap Land/Build-Build Enh Wrk,YA102,1/18/2016,389973,1180.04,CAPITAL,COFELY WORKPLACE LIMITED,123983
North East Lincolnshire Council,http://statistics.data.gov.uk/id/local-authority/00FC),Chief Executive,Director Of Finance,Property Rationalisation Prog,Cap Land/Build-Build Enh Wrk,Cap Land/Build-Build Enh Wrk,YA102,1/18/2016,389974,1702,CAPITAL,COFELY WORKPLACE LIMITED,123983
North East Lincolnshire Council,http://statistics.data.gov.uk/id/local-authority/00FC),Chief Executive,Director Of Finance,Property Rationalisation Prog,Cap Infrastr-Purchase,Cap Infrastr-Purchase,YC101,1/5/2016,387957,1088.8,CAPITAL,IMERJA LTD,102238
North East Lincolnshire Council,http://statistics.data.gov.uk/id/local-authority/00FC),Chief Executive,Director Of Finance,Property Rationalisation Prog,Cap Infrastr-Purchase,Cap Infrastr-Purchase,YC101,1/5/2016,387957,276,CAPITAL,IMERJA LTD,102238
North East Lincolnshire Council,http://statistics.data.gov.uk/id/local-authority/00FC),Chief Executive,Director Of Finance,Property Rationalisation Prog,Cap Infrastr-Purchase,Cap Infrastr-Purchase,YC101,1/5/2016,387957,1017.76,CAPITAL,IMERJA LTD,102238
North East Lincolnshire Council,http://statistics.data.gov.uk/id/local-authority/00FC),Chief Executive,Ad Joint Delivery,Information System,Cap Intangible Assets,Cap Intangible Assets,YH101,1/19/2016,390052,1800,CAPITAL,CACI LTD,110598
North East Lincolnshire Council,http://statistics.data.gov.uk/id/local-authority/00FC),Chief Executive,Ad Joint Delivery,New Leisure Centre At Grimsby,Cap Land/Build-Build Enh Wrk,Cap Land/Build-Build Enh Wrk,YA102,1/18/2016,389779,1325,CAPITAL,C & G ENGINEERING SERVICES,100637
North East Lincolnshire Council,http://statistics.data.gov.uk/id/local-authority/00FC),Chief Executive,Ad Joint Delivery,New Leisure Centre At Grimsby,Cap Land/Build-Build Enh Wrk,Cap Land/Build-Build Enh Wrk,YA102,1/18/2016,389862,1896.25,CAPITAL,C & G ENGINEERING SERVICES,100637
North East Lincolnshire Council,http://statistics.data.gov.uk/id/local-authority/00FC),Chief Executive,Ad Joint Delivery,New Leisure Centre At Grimsby,Cap Land/Build-Build Enh Wrk,Cap Land/Build-Build Enh Wrk,YA102,1/12/2016,389689,2980,CAPITAL,RPM INDUSTRIAL SERVICES LTD,126845
North East Lincolnshire Council,http://statistics.data.gov.uk/id/local-authority/00FC),Chief Executive,Ad Joint Delivery,New Leisure Centre At Grimsby,Cap Land/Build-Build Enh Wrk,Cap Land/Build-Build Enh Wrk,YA102,1/12/2016,389693,4105.5,CAPITAL,EPSAN (UK) LTD,120184
North East Lincolnshire Council,http://statistics.data.gov.uk/id/local-authority/00FC),Chief Executive,Ad Joint Delivery,New Leisure Centre At Grimsby,Cap Land/Build-Build Enh Wrk,Cap Land/Build-Build Enh Wrk,YA102,1/12/2016,389694,2347.1,CAPITAL,EPSAN (UK) LTD,120184
North East Lincolnshire Council,http://statistics.data.gov.uk/id/local-authority/00FC),Chief Executive,Ad Joint Delivery,New Leisure Centre At Grimsby,Cap Land/Build-Build Enh Wrk,Cap Land/Build-Build Enh Wrk,YA102,1/12/2016,389690,765,CAPITAL,EASY CLEAN MARSHCHAPEL LTD,104531
North East Lincolnshire Council,http://statistics.data.gov.uk/id/local-authority/00FC),Chief Executive,Ad Joint Delivery,New Leisure Centre At Grimsby,Cap Land/Build-Build Enh Wrk,Cap Land/Build-Build Enh Wrk,YA102,1/14/2016,389898,1088,CAPITAL,SURVEY CONTROL SERVICES,132833
North East Lincolnshire Council,http://statistics.data.gov.uk/id/local-authority/00FC),Chief Executive,Ad Joint Delivery,New Leisure Centre At Grimsby,Cap Land/Build-Build Enh Wrk,Cap Land/Build-Build Enh Wrk,YA102,1/19/2016,390823,449419.92,CAPITAL,INTERSERVE CONSTRUCTION,128140
North East Lincolnshire Council,http://statistics.data.gov.uk/id/local-authority/00FC),Chief Executive,Ad Joint Delivery,New Leisure Centre At Grimsby,Cap Land/Build-Build Enh Wrk,Cap Land/Build-Build Enh Wrk,YA102,1/12/2016,389691,2100,CAPITAL,GRIMSBY SUNBLINDS,100535
North East Lincolnshire Council,http://statistics.data.gov.uk/id/local-authority/00FC),Chief Executive,Ad Joint Delivery,New Leisure Centre At Grimsby,Cap Land/Build-Build Enh Wrk,Cap Land/Build-Build Enh Wrk,YA102,1/4/2016,387025,751,CAPITAL,HAMPSHIRE FLAG COMPANY,106041
North East Lincolnshire Council,http://statistics.data.gov.uk/id/local-authority/00FC),Chief Executive,Ad Joint Delivery,New Leisure Centre At Grimsby,Cap Land/Build-Build Enh Wrk,Cap Land/Build-Build Enh Wrk,YA102,1/14/2016,389903,5364.61,CAPITAL,HS SPORTS LIMITED,132832
North East Lincolnshire Council,http://statistics.data.gov.uk/id/local-authority/00FC),Chief Executive,Ad Joint Delivery,New Leisure Centre At Grimsby,Cap Land/Build-Build Enh Wrk,Cap Land/Build-Build Enh Wrk,YA102,1/14/2016,389901,2580,CAPITAL,HS SPORTS LIMITED,132832
North East Lincolnshire Council,http://statistics.data.gov.uk/id/local-authority/00FC),Chief Executive,Ad Joint Delivery,New Leisure Centre At Grimsby,Cap Land/Build-Build Enh Wrk,Cap Land/Build-Build Enh Wrk,YA102,1/14/2016,389905,1650,CAPITAL,HS SPORTS LIMITED,132832
North East Lincolnshire Council,http://statistics.data.gov.uk/id/local-authority/00FC),Chief Executive,Ad Joint Delivery,New Leisure Centre At Grimsby,Cap Land/Build-Build Enh Wrk,Cap Land/Build-Build Enh Wrk,YA102,1/19/2016,390644,1176.14,CAPITAL,J P LENNARD LTD,106377
North East Lincolnshire Council,http://statistics.data.gov.uk/id/local-authority/00FC),Chief Executive,Ad Joint Delivery,New Leisure Centre At Grimsby,Cap Land/Build-Build Enh Wrk,Cap Land/Build-Build Enh Wrk,YA102,2/1/2016,391775,24297.03,CAPITAL,J MCCANN & CO LTD,100841
North East Lincolnshire Council,http://statistics.data.gov.uk/id/local-authority/00FC),Chief Executive,Ad Joint Delivery,New Leisure Centre At Grimsby,Cap Land/Build-Prof Fees,Cap Land/Build-Prof Fees,YA103,1/12/2016,388936,19225,CAPITAL,COFELY WORKPLACE LIMITED,123983
North East Lincolnshire Council,http://statistics.data.gov.uk/id/local-authority/00FC),Chief Executive,Ad Joint Delivery,Cleethorpes Leis Cent Refurb,Cap Land/Build-Build Enh Wrk,Cap Land/Build-Build Enh Wrk,YA102,1/26/2016,390936,5171.89,CAPITAL,THE GELDER GROUP,103601
North East Lincolnshire Council,http://statistics.data.gov.uk/id/local-authority/00FC),Chief Executive,Ad Joint Delivery,Replacement/Refurbishment  It,Cap Veh Plt Eqp-Purchase,Cap Veh Plt Eqp-Purchase,YB101,1/19/2016,390029,6480,CAPITAL,SPECIALIST COMPUTER CENTRES PLC,110715
North East Lincolnshire Council,http://statistics.data.gov.uk/id/local-authority/00FC),Chief Executive,Ad Joint Delivery,Replacement/Refurbishment  It,Cap Veh Plt Eqp-Purchase,Cap Veh Plt Eqp-Purchase,YB101,1/21/2016,390190,2642.4,CAPITAL,VIRGIN MEDIA LTD,101831
North East Lincolnshire Council,http://statistics.data.gov.uk/id/local-authority/00FC),Chief Executive,Ad Joint Delivery,Immingham Pool,Cap Land/Build-Build Enh Wrk,Cap Land/Build-Build Enh Wrk,YA102,1/28/2016,391207,10851.27,CAPITAL,F PARKINSON LTD,123944
North East Lincolnshire Council,http://statistics.data.gov.uk/id/local-authority/00FC),Chief Executive,Ad Joint Delivery,Decommission Gy Swimming Pool,Cap Land/Build-Build Enh Wrk,Cap Land/Build-Build Enh Wrk,YA102,1/14/2016,389880,15000,CAPITAL,REDDISH DEMOLITION LIMITED,132796
North East Lincolnshire Council,http://statistics.data.gov.uk/id/local-authority/00FC),Chief Executive,Ad Joint Delivery,Decommission Gy Swimming Pool,Cap Land/Build-Build Enh Wrk,Cap Land/Build-Build Enh Wrk,YA102,1/26/2016,390812,2275,CAPITAL,HAITHS HEATING LTD,101342
North East Lincolnshire Council,http://statistics.data.gov.uk/id/local-authority/00FC),Chief Executive,Director Of Economy & Growth,Hps-Disabled Fac. Grants,Cap Grants To O/Side Sources,Cap Grants To O/Side Sources,YJ101,1/14/2016,389664,5278.53,CAPITAL,F R TOWNSEND & CO LTD,104217
North East Lincolnshire Council,http://statistics.data.gov.uk/id/local-authority/00FC),Chief Executive,Director Of Economy & Growth,Hps-Disabled Fac. Grants,Cap Grants To O/Side Sources,Cap Grants To O/Side Sources,YJ101,1/14/2016,389668,3601.5,CAPITAL,P G INGOLDBY & SONS LTD,100591
North East Lincolnshire Council,http://statistics.data.gov.uk/id/local-authority/00FC),Chief Executive,Director Of Economy & Growth,Hps-Disabled Fac. Grants,Cap Grants To O/Side Sources,Cap Grants To O/Side Sources,YJ101,1/11/2016,388718,5385.36,CAPITAL,COFELY WORKPLACE LIMITED,123983
North East Lincolnshire Council,http://statistics.data.gov.uk/id/local-authority/00FC),Chief Executive,Director Of Economy & Growth,Hps-Disabled Fac. Grants,Cap Grants To O/Side Sources,Cap Grants To O/Side Sources,YJ101,1/14/2016,389667,5493.41,CAPITAL,F R TOWNSEND & CO LTD,104217
North East Lincolnshire Council,http://statistics.data.gov.uk/id/local-authority/00FC),Chief Executive,Director Of Economy & Growth,Hps-Disabled Fac. Grants,Cap Grants To O/Side Sources,Cap Grants To O/Side Sources,YJ101,1/12/2016,389064,8289.5,CAPITAL,VIC HANSEN BUILDING & JOINERY LTD,103981
North East Lincolnshire Council,http://statistics.data.gov.uk/id/local-authority/00FC),Chief Executive,Director Of Economy & Growth,Hps-Disabled Fac. Grants,Cap Grants To O/Side Sources,Cap Grants To O/Side Sources,YJ101,1/11/2016,389066,22310.75,CAPITAL,MEARS LTD,102433
North East Lincolnshire Council,http://statistics.data.gov.uk/id/local-authority/00FC),Chief Executive,Director Of Economy & Growth,Hps-Disabled Fac. Grants,Cap Grants To O/Side Sources,Cap Grants To O/Side Sources,YJ101,1/14/2016,389669,6137.83,CAPITAL,F R TOWNSEND & CO LTD,104217
North East Lincolnshire Council,http://statistics.data.gov.uk/id/local-authority/00FC),Chief Executive,Director Of Economy & Growth,Hps-Disabled Fac. Grants,Cap Grants To O/Side Sources,Cap Grants To O/Side Sources,YJ101,1/11/2016,389053,6328.11,CAPITAL,MEARS LTD,102433
North East Lincolnshire Council,http://statistics.data.gov.uk/id/local-authority/00FC),Chief Executive,Director Of Economy & Growth,Hps-Disabled Fac. Grants,Cap Grants To O/Side Sources,Cap Grants To O/Side Sources,YJ101,1/14/2016,389441,1813.85,CAPITAL,TOPCON CONSTRUCTION LTD,108462
North East Lincolnshire Council,http://statistics.data.gov.uk/id/local-authority/00FC),Chief Executive,Director Of Economy & Growth,Hps-Disabled Fac. Grants,Cap Grants To O/Side Sources,Cap Grants To O/Side Sources,YJ101,1/12/2016,389436,8935.22,CAPITAL,KES BUILDING MAINTENANCE LIMITED,100786
North East Lincolnshire Council,http://statistics.data.gov.uk/id/local-authority/00FC),Chief Executive,Director Of Economy & Growth,Hps-Disabled Fac. Grants,Cap Grants To O/Side Sources,Cap Grants To O/Side Sources,YJ101,1/14/2016,389665,4811,CAPITAL,P G INGOLDBY & SONS LTD,100591
North East Lincolnshire Council,http://statistics.data.gov.uk/id/local-authority/00FC),Chief Executive,Director Of Economy & Growth,Hps-Disabled Fac. Grants,Cap Grants To O/Side Sources,Cap Grants To O/Side Sources,YJ101,1/11/2016,389374,6400,CAPITAL,MARK BENNETT,101838
North East Lincolnshire Council,http://statistics.data.gov.uk/id/local-authority/00FC),Chief Executive,Director Of Economy & Growth,Hps-Disabled Fac. Grants,Cap Grants To O/Side Sources,Cap Grants To O/Side Sources,YJ101,1/14/2016,389056,487.99,CAPITAL,COFELY WORKPLACE LIMITED,123983
North East Lincolnshire Council,http://statistics.data.gov.uk/id/local-authority/00FC),Chief Executive,Director Of Economy & Growth,Hps-Disabled Fac. Grants,Cap Grants To O/Side Sources,Cap Grants To O/Side Sources,YJ101,1/19/2016,389640,2148.61,CAPITAL,PRISM MEDICAL UK LTD,119507
North East Lincolnshire Council,http://statistics.data.gov.uk/id/local-authority/00FC),Chief Executive,Director Of Economy & Growth,Hps-Disabled Fac. Grants,Cap Grants To O/Side Sources,Cap Grants To O/Side Sources,YJ101,1/11/2016,389375,7050,CAPITAL,MARK BENNETT,101838
North East Lincolnshire Council,http://statistics.data.gov.uk/id/local-authority/00FC),Chief Executive,Director Of Economy & Growth,Hps-Disabled Fac. Grants,Cap Grants To O/Side Sources,Cap Grants To O/Side Sources,YJ101,1/28/2016,391201,6424,CAPITAL,MARK BENNETT,101838
North East Lincolnshire Council,http://statistics.data.gov.uk/id/local-authority/00FC),Chief Executive,Director Of Economy & Growth,Hps-Disabled Fac. Grants,Cap Grants To O/Side Sources,Cap Grants To O/Side Sources,YJ101,1/14/2016,389061,412,CAPITAL,COFELY WORKPLACE LIMITED,123983
North East Lincolnshire Council,http://statistics.data.gov.uk/id/local-authority/00FC),Chief Executive,Director Of Economy & Growth,Local Transport Plan Schemes,Cap Infrastr-Build Enh Wrk,Cap Infrastr-Build Enh Wrk,YC102,1/12/2016,389729,366.63,CAPITAL,NORTHERN POWERGRID (YORKSHIRE) PLC,108328
North East Lincolnshire Council,http://statistics.data.gov.uk/id/local-authority/00FC),Chief Executive,Director Of Economy & Growth,Local Transport Plan Schemes,Cap Infrastr-Build Enh Wrk,Cap Infrastr-Build Enh Wrk,YC102,1/12/2016,389728,366.63,CAPITAL,NORTHERN POWERGRID (YORKSHIRE) PLC,108328
North East Lincolnshire Council,http://statistics.data.gov.uk/id/local-authority/00FC),Chief Executive,Director Of Economy & Growth,Local Transport Plan Schemes,Cap Infrastr-Build Enh Wrk,Cap Infrastr-Build Enh Wrk,YC102,1/12/2016,389731,366.63,CAPITAL,NORTHERN POWERGRID (YORKSHIRE) PLC,108328
North East Lincolnshire Council,http://statistics.data.gov.uk/id/local-authority/00FC),Chief Executive,Director Of Economy & Growth,Local Transport Plan Schemes,Cap Infrastr-Build Enh Wrk,Cap Infrastr-Build Enh Wrk,YC102,1/12/2016,389730,366.63,CAPITAL,NORTHERN POWERGRID (YORKSHIRE) PLC,108328
North East Lincolnshire Council,http://statistics.data.gov.uk/id/local-authority/00FC),Chief Executive,Director Of Economy & Growth,Local Transport Plan Schemes,Cap Infrastr-Build Enh Wrk,Cap Infrastr-Build Enh Wrk,YC102,1/14/2016,389670,1462.98,CAPITAL,COFELY WORKPLACE LIMITED,123983
North East Lincolnshire Council,http://statistics.data.gov.uk/id/local-authority/00FC),Chief Executive,Director Of Economy & Growth,Local Transport Plan Schemes,Cap Land/Build-Build Enh Wrk,Cap Land/Build-Build Enh Wrk,YA102,1/14/2016,388863,1059.11,CAPITAL,WRIGHT CIVIL ENGINEERING LTD,100624
North East Lincolnshire Council,http://statistics.data.gov.uk/id/local-authority/00FC),Chief Executive,Director Of Economy & Growth,Local Transport Plan Schemes,Cap Land/Build-Build Enh Wrk,Cap Land/Build-Build Enh Wrk,YA102,1/14/2016,389670,1037.99,CAPITAL,COFELY WORKPLACE LIMITED,123983
North East Lincolnshire Council,http://statistics.data.gov.uk/id/local-authority/00FC),Chief Executive,Director Of Economy & Growth,Local Transport Plan Schemes,Cap Land/Build-Build Enh Wrk,Cap Land/Build-Build Enh Wrk,YA102,2/1/2016,391775,305.15,CAPITAL,J MCCANN & CO LTD,100841
North East Lincolnshire Council,http://statistics.data.gov.uk/id/local-authority/00FC),Chief Executive,Director Of Economy & Growth,Local Transport Plan Schemes,Cap Infrastr-Build Enh Wrk,Cap Infrastr-Build Enh Wrk,YC102,1/14/2016,389440,44427.56,CAPITAL,MIDLAND INDUSTRIAL FLOORING LTD,131906
North East Lincolnshire Council,http://statistics.data.gov.uk/id/local-authority/00FC),Chief Executive,Director Of Economy & Growth,Local Transport Plan Schemes,Cap Infrastr-Build Enh Wrk,Cap Infrastr-Build Enh Wrk,YC102,1/14/2016,389439,35860.48,CAPITAL,MIDLAND INDUSTRIAL FLOORING LTD,131906
North East Lincolnshire Council,http://statistics.data.gov.uk/id/local-authority/00FC),Chief Executive,Director Of Economy & Growth,Local Transport Plan Schemes,Cap Land/Build-Build Enh Wrk,Cap Land/Build-Build Enh Wrk,YA102,1/12/2016,389737,592.59,CAPITAL,NORTHERN POWERGRID (YORKSHIRE) PLC,108328
North East Lincolnshire Council,http://statistics.data.gov.uk/id/local-authority/00FC),Chief Executive,Director Of Economy & Growth,Local Transport Plan Schemes,Cap Land/Build-Build Enh Wrk,Cap Land/Build-Build Enh Wrk,YA102,1/12/2016,389723,1169.97,CAPITAL,NORTHERN POWERGRID (YORKSHIRE) PLC,108328
North East Lincolnshire Council,http://statistics.data.gov.uk/id/local-authority/00FC),Chief Executive,Director Of Economy & Growth,Local Transport Plan Schemes,Cap Land/Build-Build Enh Wrk,Cap Land/Build-Build Enh Wrk,YA102,1/12/2016,389734,389.99,CAPITAL,NORTHERN POWERGRID (YORKSHIRE) PLC,108328
North East Lincolnshire Council,http://statistics.data.gov.uk/id/local-authority/00FC),Chief Executive,Director Of Economy & Growth,Local Transport Plan Schemes,Cap Land/Build-Build Enh Wrk,Cap Land/Build-Build Enh Wrk,YA102,1/12/2016,389713,389.99,CAPITAL,NORTHERN POWERGRID (YORKSHIRE) PLC,108328
North East Lincolnshire Council,http://statistics.data.gov.uk/id/local-authority/00FC),Chief Executive,Director Of Economy & Growth,Local Transport Plan Schemes,Cap Land/Build-Build Enh Wrk,Cap Land/Build-Build Enh Wrk,YA102,1/12/2016,389714,389.99,CAPITAL,NORTHERN POWERGRID (YORKSHIRE) PLC,108328
North East Lincolnshire Council,http://statistics.data.gov.uk/id/local-authority/00FC),Chief Executive,Director Of Economy & Growth,Local Transport Plan Schemes,Cap Land/Build-Build Enh Wrk,Cap Land/Build-Build Enh Wrk,YA102,1/12/2016,389736,389.99,CAPITAL,NORTHERN POWERGRID (YORKSHIRE) PLC,108328
North East Lincolnshire Council,http://statistics.data.gov.uk/id/local-authority/00FC),Chief Executive,Director Of Economy & Growth,Local Transport Plan Schemes,Cap Land/Build-Build Enh Wrk,Cap Land/Build-Build Enh Wrk,YA102,1/12/2016,389727,389.99,CAPITAL,NORTHERN POWERGRID (YORKSHIRE) PLC,108328
North East Lincolnshire Council,http://statistics.data.gov.uk/id/local-authority/00FC),Chief Executive,Director Of Economy & Growth,Local Transport Plan Schemes,Cap Land/Build-Build Enh Wrk,Cap Land/Build-Build Enh Wrk,YA102,1/12/2016,389739,389.99,CAPITAL,NORTHERN POWERGRID (YORKSHIRE) PLC,108328
North East Lincolnshire Council,http://statistics.data.gov.uk/id/local-authority/00FC),Chief Executive,Director Of Economy & Growth,Local Transport Plan Schemes,Cap Land/Build-Build Enh Wrk,Cap Land/Build-Build Enh Wrk,YA102,1/19/2016,390459,779.98,CAPITAL,NORTHERN POWERGRID (YORKSHIRE) PLC,108328
North East Lincolnshire Council,http://statistics.data.gov.uk/id/local-authority/00FC),Chief Executive,Director Of Economy & Growth,Local Transport Plan Schemes,Cap Land/Build-Build Enh Wrk,Cap Land/Build-Build Enh Wrk,YA102,1/19/2016,390452,389.99,CAPITAL,NORTHERN POWERGRID (YORKSHIRE) PLC,108328
North East Lincolnshire Council,http://statistics.data.gov.uk/id/local-authority/00FC),Chief Executive,Director Of Economy & Growth,Local Transport Plan Schemes,Cap Land/Build-Build Enh Wrk,Cap Land/Build-Build Enh Wrk,YA102,1/12/2016,389733,389.99,CAPITAL,NORTHERN POWERGRID (YORKSHIRE) PLC,108328
North East Lincolnshire Council,http://statistics.data.gov.uk/id/local-authority/00FC),Chief Executive,Director Of Economy & Growth,Local Transport Plan Schemes,Cap Land/Build-Build Enh Wrk,Cap Land/Build-Build Enh Wrk,YA102,1/19/2016,390453,389.99,CAPITAL,NORTHERN POWERGRID (YORKSHIRE) PLC,108328
North East Lincolnshire Council,http://statistics.data.gov.uk/id/local-authority/00FC),Chief Executive,Director Of Economy & Growth,Local Transport Plan Schemes,Cap Land/Build-Build Enh Wrk,Cap Land/Build-Build Enh Wrk,YA102,1/12/2016,389732,389.99,CAPITAL,NORTHERN POWERGRID (YORKSHIRE) PLC,108328
North East Lincolnshire Council,http://statistics.data.gov.uk/id/local-authority/00FC),Chief Executive,Director Of Economy & Growth,Local Transport Plan Schemes,Cap Land/Build-Build Enh Wrk,Cap Land/Build-Build Enh Wrk,YA102,1/12/2016,389715,389.99,CAPITAL,NORTHERN POWERGRID (YORKSHIRE) PLC,108328
North East Lincolnshire Council,http://statistics.data.gov.uk/id/local-authority/00FC),Chief Executive,Director Of Economy & Growth,Local Transport Plan Schemes,Cap Land/Build-Build Enh Wrk,Cap Land/Build-Build Enh Wrk,YA102,1/12/2016,389721,389.99,CAPITAL,NORTHERN POWERGRID (YORKSHIRE) PLC,108328
North East Lincolnshire Council,http://statistics.data.gov.uk/id/local-authority/00FC),Chief Executive,Director Of Economy & Growth,Local Transport Plan Schemes,Cap Land/Build-Build Enh Wrk,Cap Land/Build-Build Enh Wrk,YA102,1/19/2016,390455,688.91,CAPITAL,NORTHERN POWERGRID (YORKSHIRE) PLC,108328
North East Lincolnshire Council,http://statistics.data.gov.uk/id/local-authority/00FC),Chief Executive,Director Of Economy & Growth,Local Transport Plan Schemes,Cap Land/Build-Build Enh Wrk,Cap Land/Build-Build Enh Wrk,YA102,1/19/2016,390454,389.99,CAPITAL,NORTHERN POWERGRID (YORKSHIRE) PLC,108328
North East Lincolnshire Council,http://statistics.data.gov.uk/id/local-authority/00FC),Chief Executive,Director Of Economy & Growth,Local Transport Plan Schemes,Cap Land/Build-Build Enh Wrk,Cap Land/Build-Build Enh Wrk,YA102,1/12/2016,389749,389.99,CAPITAL,NORTHERN POWERGRID (YORKSHIRE) PLC,108328
North East Lincolnshire Council,http://statistics.data.gov.uk/id/local-authority/00FC),Chief Executive,Director Of Economy & Growth,Local Transport Plan Schemes,Cap Land/Build-Build Enh Wrk,Cap Land/Build-Build Enh Wrk,YA102,2/1/2016,391775,1913.28,CAPITAL,J MCCANN & CO LTD,100841
North East Lincolnshire Council,http://statistics.data.gov.uk/id/local-authority/00FC),Chief Executive,Director Of Economy & Growth,Local Transport Plan Schemes,Cap Land/Build-Build Enh Wrk,Cap Land/Build-Build Enh Wrk,YA102,1/19/2016,390450,389.99,CAPITAL,NORTHERN POWERGRID (YORKSHIRE) PLC,108328
North East Lincolnshire Council,http://statistics.data.gov.uk/id/local-authority/00FC),Chief Executive,Director Of Economy & Growth,Local Transport Plan Schemes,Cap Land/Build-Build Enh Wrk,Cap Land/Build-Build Enh Wrk,YA102,1/12/2016,389724,779.98,CAPITAL,NORTHERN POWERGRID (YORKSHIRE) PLC,108328
North East Lincolnshire Council,http://statistics.data.gov.uk/id/local-authority/00FC),Chief Executive,Director Of Economy & Growth,Local Transport Plan Schemes,Cap Land/Build-Build Enh Wrk,Cap Land/Build-Build Enh Wrk,YA102,1/19/2016,390449,779.98,CAPITAL,NORTHERN POWERGRID (YORKSHIRE) PLC,108328
North East Lincolnshire Council,http://statistics.data.gov.uk/id/local-authority/00FC),Chief Executive,Director Of Economy & Growth,Local Transport Plan Schemes,Cap Land/Build-Build Enh Wrk,Cap Land/Build-Build Enh Wrk,YA102,1/12/2016,389720,389.99,CAPITAL,NORTHERN POWERGRID (YORKSHIRE) PLC,108328
North East Lincolnshire Council,http://statistics.data.gov.uk/id/local-authority/00FC),Chief Executive,Director Of Economy & Growth,Local Transport Plan Schemes,Cap Land/Build-Build Enh Wrk,Cap Land/Build-Build Enh Wrk,YA102,1/12/2016,389726,952.63,CAPITAL,NORTHERN POWERGRID (YORKSHIRE) PLC,108328
North East Lincolnshire Council,http://statistics.data.gov.uk/id/local-authority/00FC),Chief Executive,Director Of Economy & Growth,Local Transport Plan Schemes,Cap Land/Build-Build Enh Wrk,Cap Land/Build-Build Enh Wrk,YA102,1/19/2016,390451,779.98,CAPITAL,NORTHERN POWERGRID (YORKSHIRE) PLC,108328
North East Lincolnshire Council,http://statistics.data.gov.uk/id/local-authority/00FC),Chief Executive,Director Of Economy & Growth,Local Transport Plan Schemes,Cap Land/Build-Build Enh Wrk,Cap Land/Build-Build Enh Wrk,YA102,1/12/2016,389725,779.98,CAPITAL,NORTHERN POWERGRID (YORKSHIRE) PLC,108328
North East Lincolnshire Council,http://statistics.data.gov.uk/id/local-authority/00FC),Chief Executive,Director Of Economy & Growth,Local Transport Plan Schemes,Cap Land/Build-Build Enh Wrk,Cap Land/Build-Build Enh Wrk,YA102,1/12/2016,389735,389.99,CAPITAL,NORTHERN POWERGRID (YORKSHIRE) PLC,108328
North East Lincolnshire Council,http://statistics.data.gov.uk/id/local-authority/00FC),Chief Executive,Director Of Economy & Growth,Local Transport Plan Schemes,Cap Infrastr-Purchase,Cap Infrastr-Purchase,YC101,1/14/2016,389794,2500,CAPITAL,LOVE TO RIDE LTD,119407
North East Lincolnshire Council,http://statistics.data.gov.uk/id/local-authority/00FC),Chief Executive,Director Of Economy & Growth,Local Transport Plan Schemes,Cap Infrastr-Build Enh Wrk,Cap Infrastr-Build Enh Wrk,YC102,1/14/2016,389670,2721.33,CAPITAL,COFELY WORKPLACE LIMITED,123983
North East Lincolnshire Council,http://statistics.data.gov.uk/id/local-authority/00FC),Chief Executive,Director Of Economy & Growth,Local Transport Plan Schemes,Cap Infrastr-Build Enh Wrk,Cap Infrastr-Build Enh Wrk,YC102,1/14/2016,389670,2918.81,CAPITAL,COFELY WORKPLACE LIMITED,123983
North East Lincolnshire Council,http://statistics.data.gov.uk/id/local-authority/00FC),Chief Executive,Director Of Economy & Growth,Local Transport Plan Schemes,Cap Infrastr-Build Enh Wrk,Cap Infrastr-Build Enh Wrk,YC102,1/14/2016,389670,1181.9,CAPITAL,COFELY WORKPLACE LIMITED,123983
North East Lincolnshire Council,http://statistics.data.gov.uk/id/local-authority/00FC),Chief Executive,Director Of Economy & Growth,Local Transport Plan Schemes,Cap Infrastr-Build Enh Wrk,Cap Infrastr-Build Enh Wrk,YC102,1/14/2016,389670,826.63,CAPITAL,COFELY WORKPLACE LIMITED,123983
North East Lincolnshire Council,http://statistics.data.gov.uk/id/local-authority/00FC),Chief Executive,Director Of Economy & Growth,Local Transport Plan Schemes,Cap Land/Build-Build Enh Wrk,Cap Land/Build-Build Enh Wrk,YA102,1/19/2016,390226,132132.22,CAPITAL,IMTECH TRAFFIC & INFRA UK LIMITED,129692
North East Lincolnshire Council,http://statistics.data.gov.uk/id/local-authority/00FC),Chief Executive,Director Of Economy & Growth,Freeman Street Regeneration,Cap Infrastr-Build Enh Wrk,Cap Infrastr-Build Enh Wrk,YC102,1/21/2016,390829,29173.4,CAPITAL,BALFOUR BEATTY CIVILS LTD,130457
North East Lincolnshire Council,http://statistics.data.gov.uk/id/local-authority/00FC),Chief Executive,Director Of Economy & Growth,Freeman Street Regeneration,Cap Invest Prop-Build Enh Wrk,Cap Invest Prop-Build Enh Wrk,YE102,1/21/2016,390782,2497,CAPITAL,REDACTED PERSONAL INFORMATION,REDACTED PERSONAL INFORMATION
North East Lincolnshire Council,http://statistics.data.gov.uk/id/local-authority/00FC),Chief Executive,Director Of Economy & Growth,Freeman Street Regeneration,Cap Grants To O/Side Sources,Cap Grants To O/Side Sources,YJ101,1/28/2016,390784,7500,CAPITAL,REDACTED PERSONAL INFORMATION,REDACTED PERSONAL INFORMATION
North East Lincolnshire Council,http://statistics.data.gov.uk/id/local-authority/00FC),Chief Executive,Director Of Economy & Growth,Housing Assist Grants And Loan,Cap Grants To O/Side Sources,Cap Grants To O/Side Sources,YJ101,1/11/2016,388718,570.53,CAPITAL,COFELY WORKPLACE LIMITED,123983
North East Lincolnshire Council,http://statistics.data.gov.uk/id/local-authority/00FC),Chief Executive,Director Of Economy & Growth,Housing Assist Grants And Loan,Cap Grants To O/Side Sources,Cap Grants To O/Side Sources,YJ101,1/29/2016,391434,20163,CAPITAL,J & A PROPERTIES,131882
North East Lincolnshire Council,http://statistics.data.gov.uk/id/local-authority/00FC),Chief Executive,Director Of Economy & Growth,Derelict Land & Comm Prop,Cap Grants To O/Side Sources,Cap Grants To O/Side Sources,YJ101,1/4/2016,388163,12020,CAPITAL,SHEFFIELD CITY COUNCIL,119344
North East Lincolnshire Council,http://statistics.data.gov.uk/id/local-authority/00FC),Chief Executive,Director Of Economy & Growth,Derelict Land & Comm Prop,Cap Grants To O/Side Sources,Cap Grants To O/Side Sources,YJ101,1/4/2016,388164,12000,CAPITAL,SHEFFIELD CITY COUNCIL,119344
North East Lincolnshire Council,http://statistics.data.gov.uk/id/local-authority/00FC),Chief Executive,Director Of Economy & Growth,Derelict Land & Comm Prop,Cap Grants To O/Side Sources,Cap Grants To O/Side Sources,YJ101,1/29/2016,391723,330,CAPITAL,M J QUICKFALL,102499
North East Lincolnshire Council,http://statistics.data.gov.uk/id/local-authority/00FC),Chief Executive,Director Of Economy & Growth,A18 - A180 Link Road,Cap Land/Build-Build Enh Wrk,Cap Land/Build-Build Enh Wrk,YA102,1/7/2016,385954,690107.76,CAPITAL,I & H BROWN LTD,129380
North East Lincolnshire Council,http://statistics.data.gov.uk/id/local-authority/00FC),Chief Executive,Director Of Economy & Growth,Cartergate Access Scheme,Cap Infrastr-Build Enh Wrk,Cap Infrastr-Build Enh Wrk,YC102,1/7/2016,388810,8160.45,CAPITAL,NORTHERN POWERGRID (YORKSHIRE) PLC,108328
North East Lincolnshire Council,http://statistics.data.gov.uk/id/local-authority/00FC),Chief Executive,Director Of Economy & Growth,Victoria Mills,Cap Land/Build-Build Enh Wrk,Cap Land/Build-Build Enh Wrk,YA102,1/26/2016,390937,213306,CAPITAL,LINDUM GROUP LIMITED,101185
North East Lincolnshire Council,http://statistics.data.gov.uk/id/local-authority/00FC),Chief Executive,Director Of Economy & Growth,Cartergate Office Development,Cap Land/Build-Prof Fees,Cap Land/Build-Prof Fees,YA103,1/18/2016,390335,28374.75,CAPITAL,HIGH COURT ENFORCEMENT GROUP LTD,132881
North East Lincolnshire Council,http://statistics.data.gov.uk/id/local-authority/00FC),Chief Executive,Director Of Economy & Growth,Cartergate Office Development,Cap Invest Prop-Build Enh Wrk,Cap Invest Prop-Build Enh Wrk,YE102,1/4/2016,388154,298347.64,CAPITAL,THE GELDER GROUP,103601
North East Lincolnshire Council,http://statistics.data.gov.uk/id/local-authority/00FC),Chief Executive,Director Of Economy & Growth,Cartergate Office Development,Cap Invest Prop-Prof Fees,Cap Invest Prop-Prof Fees,YE103,1/14/2016,389683,5000,CAPITAL,GEO HOULTON & SONS LTD,102697
North East Lincolnshire Council,http://statistics.data.gov.uk/id/local-authority/00FC),Chief Executive,Director Of Economy & Growth,Cartergate Office Development,Cap Invest Prop-Prof Fees,Cap Invest Prop-Prof Fees,YE103,1/14/2016,389671,15000,CAPITAL,COFELY WORKPLACE LIMITED,123983
North East Lincolnshire Council,http://statistics.data.gov.uk/id/local-authority/00FC),Chief Executive,Director Of Economy & Growth,Town Centre Works Lep,Cap Infrastr-Build Enh Wrk,Cap Infrastr-Build Enh Wrk,YC102,2/1/2016,391775,14195.86,CAPITAL,J MCCANN & CO LTD,100841
North East Lincolnshire Council,http://statistics.data.gov.uk/id/local-authority/00FC),Chief Executive,Director Of Economy & Growth,Shiip Scheme,Cap Land/Build-Build Enh Wrk,Cap Land/Build-Build Enh Wrk,YA102,1/19/2016,390297,28980,CAPITAL,GRANT THORNTON UK LLP,130563
North East Lincolnshire Council,http://statistics.data.gov.uk/id/local-authority/00FC),Chief Executive,Director Of Finance,Accountancy,Expenses,Course/Conf Accom - Employees,LH102,1/21/2016,390965,300,REVENUE,CIPFA BUSINESS LIMITED,102338
North East Lincolnshire Council,http://statistics.data.gov.uk/id/local-authority/00FC),Chief Executive,Director Of Finance,Accountancy,Grants And Subscriptions,Subscriptions,LJ101,1/29/2016,391426,4040,REVENUE,CIPFA,100518
North East Lincolnshire Council,http://statistics.data.gov.uk/id/local-authority/00FC),Chief Executive,Director Of Finance,Accountancy,Consultancy,Consultancy,PL101,1/19/2016,384567,1125,REVENUE,ADVANCED BUSINESS SOLUTIONS,101614
North East Lincolnshire Council,http://statistics.data.gov.uk/id/local-authority/00FC),Chief Executive,Director Of Finance,Accountancy,Consultancy,Consultancy,PL101,1/19/2016,384567,1800,REVENUE,ADVANCED BUSINESS SOLUTIONS,101614
North East Lincolnshire Council,http://statistics.data.gov.uk/id/local-authority/00FC),Chief Executive,Director Of Finance,Accountancy,Consultancy,Consultancy,PL101,1/19/2016,384567,3150,REVENUE,ADVANCED BUSINESS SOLUTIONS,101614
North East Lincolnshire Council,http://statistics.data.gov.uk/id/local-authority/00FC),Chief Executive,Director Of Finance,Accountancy,Government Departments,Third Party Prov - Govt Depts,PE101,1/14/2016,389896,33005.38,REVENUE,KPMG FEES ACCOUNT,101071
North East Lincolnshire Council,http://statistics.data.gov.uk/id/local-authority/00FC),Chief Executive,Director Of Finance,Accountancy,Government Departments,Third Party Prov - Govt Depts,PE101,2/1/2016,391787,2000,REVENUE,KPMG FEES ACCOUNT,101071
North East Lincolnshire Council,http://statistics.data.gov.uk/id/local-authority/00FC),Chief Executive,Director Of Finance,Accountancy,Government Departments,Third Party Prov - Govt Depts,PE101,2/1/2016,391788,2000,REVENUE,KPMG FEES ACCOUNT,101071
North East Lincolnshire Council,http://statistics.data.gov.uk/id/local-authority/00FC),Chief Executive,Director Of Finance,Chief Finance Officer,Car Allowances,Travel - Employees,JF101,1/7/2016,389048,-83,REVENUE,CLICK TRAVEL,127476
North East Lincolnshire Council,http://statistics.data.gov.uk/id/local-authority/00FC),Chief Executive,Director Of Finance,Chief Finance Officer,Car Allowances,Travel - Employees,JF101,1/7/2016,389050,-94.6,REVENUE,CLICK TRAVEL,127476
North East Lincolnshire Council,http://statistics.data.gov.uk/id/local-authority/00FC),Chief Executive,Director Of Finance,Chief Finance Officer,Car Allowances,Travel - Employees,JF101,1/7/2016,389051,-97.4,REVENUE,CLICK TRAVEL,127476
North East Lincolnshire Council,http://statistics.data.gov.uk/id/local-authority/00FC),Chief Executive,Director Of Finance,Chief Exec & Support,Contributions To Provisions,Contributions - Third Sector,LK102,1/4/2016,387037,500,REVENUE,BCKA KICKBOXING ACADEMY,129350
North East Lincolnshire Council,http://statistics.data.gov.uk/id/local-authority/00FC),Chief Executive,Director Of Finance,Chief Exec & Support,Contributions To Provisions,Contributions - Third Sector,LK102,1/4/2016,388014,500,REVENUE,GRIMSBY RUGBY UNION FOOTBALL CLUB LTD,103842
North East Lincolnshire Council,http://statistics.data.gov.uk/id/local-authority/00FC),Chief Executive,Director Of Finance,Chief Exec & Support,Contributions To Provisions,Contributions - Third Sector,LK102,1/4/2016,387040,1000,REVENUE,MRS CAROL HAY,105796
North East Lincolnshire Council,http://statistics.data.gov.uk/id/local-authority/00FC),Chief Executive,Director Of Finance,Chief Exec & Support,Contributions To Provisions,Contributions - Third Sector,LK102,1/28/2016,391411,250,REVENUE,THE GRANGE TOGETHER,111112
North East Lincolnshire Council,http://statistics.data.gov.uk/id/local-authority/00FC),Chief Executive,Director Of Finance,Chief Exec & Support,Contributions To Provisions,Contributions - Third Sector,LK102,1/28/2016,391413,1558,REVENUE,LIVES GRIMSBY SOUTH,128862
North East Lincolnshire Council,http://statistics.data.gov.uk/id/local-authority/00FC),Chief Executive,Director Of Finance,Chief Exec & Support,Contributions To Provisions,Contributions - Third Sector,LK102,1/28/2016,391410,500,REVENUE,2ND LITTLECOATES BROWNIES,133001
North East Lincolnshire Council,http://statistics.data.gov.uk/id/local-authority/00FC),Chief Executive,Director Of Finance,Chief Exec & Support,Contributions To Provisions,Contributions - Third Sector,LK102,1/28/2016,391409,1000,REVENUE,CROSS COATES NEIGHBOURHOOD WATCH GROUP,129147
North East Lincolnshire Council,http://statistics.data.gov.uk/id/local-authority/00FC),Chief Executive,Director Of Finance,Chief Exec & Support,Contributions To Provisions,Contributions - Third Sector,LK102,1/28/2016,391383,1000,REVENUE,LITTLECOATES COMMUNITY CENTRE,128703
North East Lincolnshire Council,http://statistics.data.gov.uk/id/local-authority/00FC),Chief Executive,Director Of Finance,Facilities Management,Cleaning And Domestic Supplies,Cleaning - Services,GH102,1/19/2016,390802,224887.43,REVENUE,FUTURE CLEANING SERVICES LTD,102557
North East Lincolnshire Council,http://statistics.data.gov.uk/id/local-authority/00FC),Chief Executive,Director Of Finance,Facilities Management,Cleaning And Domestic Supplies,Cleaning - Services,GH102,1/26/2016,390817,1991.07,REVENUE,OCS LIMITED,101291
North East Lincolnshire Council,http://statistics.data.gov.uk/id/local-authority/00FC),Chief Executive,Director Of Finance,Facilities Management,Cleaning And Domestic Supplies,Refuse Collection,GH104,1/7/2016,388484,-174.33,REVENUE,BELL WASTE CONTROL,101433
North East Lincolnshire Council,http://statistics.data.gov.uk/id/local-authority/00FC),Chief Executive,Director Of Finance,Facilities Management,Cleaning And Domestic Supplies,Refuse Collection,GH104,1/4/2016,388043,12323.23,REVENUE,BELL WASTE CONTROL,101433
North East Lincolnshire Council,http://statistics.data.gov.uk/id/local-authority/00FC),Chief Executive,Director Of Finance,Facilities Management,Rents,Rent,GC101,1/21/2016,390814,7412.5,REVENUE,CAPAX (C I ) LIMITED,101112
North East Lincolnshire Council,http://statistics.data.gov.uk/id/local-authority/00FC),Chief Executive,Director Of Finance,Facilities Management,Energy Costs,Electricity,GB102,1/7/2016,388731,330,REVENUE,NPOWER,125397
North East Lincolnshire Council,http://statistics.data.gov.uk/id/local-authority/00FC),Chief Executive,Director Of Finance,Facilities Management,Direct Employee Expenses,Agency Staff,EA105,1/28/2016,391430,7327.32,REVENUE,COFELY WORKPLACE LIMITED,123983
North East Lincolnshire Council,http://statistics.data.gov.uk/id/local-authority/00FC),Chief Executive,Director Of Finance,Facilities Management,Energy Costs,Heating Fuel,GB103,1/28/2016,391189,267.6,REVENUE,CERTAS ENERGY,124794
North East Lincolnshire Council,http://statistics.data.gov.uk/id/local-authority/00FC),Chief Executive,Director Of Finance,Facilities Management,Energy Costs,Heating Fuel,GB103,1/26/2016,390739,980.78,REVENUE,CERTAS ENERGY,124794
North East Lincolnshire Council,http://statistics.data.gov.uk/id/local-authority/00FC),Chief Executive,Director Of Finance,Facilities Management,Rents,Rent,GC101,1/4/2016,388029,17125,REVENUE,ROMANO INTERNATIONAL LTD,101824
North East Lincolnshire Council,http://statistics.data.gov.uk/id/local-authority/00FC),Chief Executive,Director Of Finance,Facilities Management,Cleaning And Domestic Supplies,Cleaning - Services,GH102,1/19/2016,390804,1407,REVENUE,FUTURE CLEANING SERVICES LTD,102557
North East Lincolnshire Council,http://statistics.data.gov.uk/id/local-authority/00FC),Chief Executive,Director Of Finance,Facilities Management,Premises Insurance,Premises Insurance - Premiums,GK101,1/21/2016,390815,1340.28,REVENUE,ROMANO INTERNATIONAL LTD,101824
North East Lincolnshire Council,http://statistics.data.gov.uk/id/local-authority/00FC),Chief Executive,Director Of Finance,Facilities Management,Rents,Rent,GC101,1/4/2016,388025,36270,REVENUE,WYKELAND GROUP LTD,101729
North East Lincolnshire Council,http://statistics.data.gov.uk/id/local-authority/00FC),Chief Executive,Director Of Finance,Facilities Management,Water Services,Water,GE101,1/28/2016,386720,662.93,REVENUE,ANGLIAN WATER,100508
North East Lincolnshire Council,http://statistics.data.gov.uk/id/local-authority/00FC),Chief Executive,Director Of Finance,Facilities Management,Rents,Rent,GC101,1/21/2016,390806,8109.6,REVENUE,JOHN SUTCLIFFE & SON (HOLDINGS) LTD,101339
North East Lincolnshire Council,http://statistics.data.gov.uk/id/local-authority/00FC),Chief Executive,Director Of Finance,Facilities Management,Rents,Service Charge,GC102,1/21/2016,390808,712.25,REVENUE,JOHN SUTCLIFFE & SON (HOLDINGS) LTD,101339
North East Lincolnshire Council,http://statistics.data.gov.uk/id/local-authority/00FC),Chief Executive,Director Of Finance,Facilities Management,Rents,Service Charge,GC102,1/4/2016,388022,933,REVENUE,AWS LTD,101343
North East Lincolnshire Council,http://statistics.data.gov.uk/id/local-authority/00FC),Chief Executive,Director Of Finance,Facilities Management,Energy Costs,Electricity,GB102,1/4/2016,388027,410.58,REVENUE,OLD CLEE PRIMARY ACADEMY,119822
North East Lincolnshire Council,http://statistics.data.gov.uk/id/local-authority/00FC),Chief Executive,Director Of Finance,Facilities Management,Energy Costs,Gas,GB101,1/4/2016,388023,430.44,REVENUE,OLD CLEE PRIMARY ACADEMY,119822
North East Lincolnshire Council,http://statistics.data.gov.uk/id/local-authority/00FC),Chief Executive,Director Of Finance,Commercial Estate,Water Services,Water,GE101,1/7/2016,388471,521.09,REVENUE,ANGLIAN WATER,100508
North East Lincolnshire Council,http://statistics.data.gov.uk/id/local-authority/00FC),Chief Executive,Director Of Finance,Commercial Estate,Cleaning And Domestic Supplies,Refuse Collection,GH104,1/4/2016,388041,388.52,REVENUE,BELL WASTE CONTROL,101433
North East Lincolnshire Council,http://statistics.data.gov.uk/id/local-authority/00FC),Chief Executive,Director Of Finance,Commercial Estate,Cleaning And Domestic Supplies,Refuse Collection,GH104,1/26/2016,390842,251.74,REVENUE,BELL WASTE CONTROL,101433
North East Lincolnshire Council,http://statistics.data.gov.uk/id/local-authority/00FC),Chief Executive,Director Of Finance,Commercial Estate,Rents,Rent,GC101,1/4/2016,388024,1468.75,REVENUE,ASSOCIATED BRITISH PORTS,100834
North East Lincolnshire Council,http://statistics.data.gov.uk/id/local-authority/00FC),Chief Executive,Director Of Finance,Commercial Estate,Cleaning And Domestic Supplies,Refuse Collection,GH104,1/4/2016,388041,256.29,REVENUE,BELL WASTE CONTROL,101433
North East Lincolnshire Council,http://statistics.data.gov.uk/id/local-authority/00FC),Chief Executive,Director Of Finance,Commercial Estate,Water Services,Water,GE101,1/7/2016,388441,1795.82,REVENUE,GRIMSBY SHOPPING CENTRE LTD (BMO REAL ESTATE,131809
North East Lincolnshire Council,http://statistics.data.gov.uk/id/local-authority/00FC),Chief Executive,Director Of Finance,Commercial Estate,Energy Costs,Electricity,GB102,1/28/2016,391428,8340.05,REVENUE,BOURNE LEISURE LTD,109336
North East Lincolnshire Council,http://statistics.data.gov.uk/id/local-authority/00FC),Chief Executive,Director Of Economy & Growth,Beach Safety,Equip / Furniture / Materials,Equipment - Purchase,LA101,1/7/2016,388480,-6,REVENUE,ANGEL SPRINGS LTD,103845
North East Lincolnshire Council,http://statistics.data.gov.uk/id/local-authority/00FC),Chief Executive,Director Of Economy & Growth,Discovery Centre,Equip / Furniture / Materials,Equipment - Hire,LA102,1/29/2016,391348,-108,REVENUE,R W STOKES & SONS LTD,123706
North East Lincolnshire Council,http://statistics.data.gov.uk/id/local-authority/00FC),Chief Executive,Director Of Economy & Growth,Discovery Centre,Equip / Furniture / Materials,Goods For Resale,LA123,1/14/2016,389788,559.34,REVENUE,DELI-LICIOUS,101903
North East Lincolnshire Council,http://statistics.data.gov.uk/id/local-authority/00FC),Chief Executive,Director Of Economy & Growth,Discovery Centre,Equip / Furniture / Materials,Goods For Resale,LA123,1/14/2016,389864,262.56,REVENUE,HOLDSWORTH LTD,121021
North East Lincolnshire Council,http://statistics.data.gov.uk/id/local-authority/00FC),Chief Executive,Director Of Economy & Growth,Discovery Centre,Equip / Furniture / Materials,Goods For Resale,LA123,1/29/2016,391357,717.97,REVENUE,HOLDSWORTH LTD,121021
North East Lincolnshire Council,http://statistics.data.gov.uk/id/local-authority/00FC),Chief Executive,Director Of Economy & Growth,Discovery Centre,Equip / Furniture / Materials,Goods For Resale,LA123,1/29/2016,391358,422.02,REVENUE,HOLDSWORTH LTD,121021
North East Lincolnshire Council,http://statistics.data.gov.uk/id/local-authority/00FC),Chief Executive,Director Of Economy & Growth,Discovery Centre,Equip / Furniture / Materials,Goods For Resale,LA123,1/14/2016,389780,272.68,REVENUE,ROBINSON FARM SHOP (WALTHAM) LTD,119467
North East Lincolnshire Council,http://statistics.data.gov.uk/id/local-authority/00FC),Chief Executive,Director Of Economy & Growth,Discovery Centre,Equip / Furniture / Materials,Goods For Resale,LA123,1/19/2016,390046,356.2,REVENUE,R W STOKES & SONS LTD,123706
North East Lincolnshire Council,http://statistics.data.gov.uk/id/local-authority/00FC),Chief Executive,Director Of Economy & Growth,Discovery Centre,Equip / Furniture / Materials,Goods For Resale,LA123,1/19/2016,390035,466.91,REVENUE,JOHN TURNER,100921
North East Lincolnshire Council,http://statistics.data.gov.uk/id/local-authority/00FC),Chief Executive,Director Of Economy & Growth,Events,Rep Alterations Maint Building,Buildings - Repairs And Maint,GA102,1/5/2016,384642,2882,REVENUE,COFELY WORKPLACE LIMITED,123983
North East Lincolnshire Council,http://statistics.data.gov.uk/id/local-authority/00FC),Chief Executive,Director Of Economy & Growth,Events,Energy Costs,Electricity,GB102,1/28/2016,390744,841.82,REVENUE,TIM LAWSON ELECTRICAL CONTRACTORS,129499
North East Lincolnshire Council,http://statistics.data.gov.uk/id/local-authority/00FC),Chief Executive,Director Of Economy & Growth,Marketing And Promotion,Equip / Furniture / Materials,Promotions,LA124,1/28/2016,390740,363.34,REVENUE,PETER STRAWSON LTD,108472
North East Lincolnshire Council,http://statistics.data.gov.uk/id/local-authority/00FC),Chief Executive,Director Of Economy & Growth,Marketing And Promotion,Equip / Furniture / Materials,Promotions,LA124,1/12/2016,387757,300,REVENUE,EVENT SHOW SUPPORT CIC,129982
North East Lincolnshire Council,http://statistics.data.gov.uk/id/local-authority/00FC),Chief Executive,Director Of Economy & Growth,Marketing And Promotion,Equip / Furniture / Materials,Promotions,LA124,1/7/2016,388500,342,REVENUE,RIVERSIDE PRINT AND DISPLAY LIMITED,128206
North East Lincolnshire Council,http://statistics.data.gov.uk/id/local-authority/00FC),Chief Executive,Director Of Economy & Growth,Marketing And Promotion,Equip / Furniture / Materials,Promotions,LA124,1/7/2016,388451,270,REVENUE,BRITISH RED CROSS SOCIETY,106844
North East Lincolnshire Council,http://statistics.data.gov.uk/id/local-authority/00FC),Chief Executive,Director Of Economy & Growth,Museums & N F Heritage Centre,Contributions To Provisions,Contributions - Third Sector,LK102,1/12/2016,389105,4350,REVENUE,NORTH LINCOLNSHIRE COUNCIL,101186
North East Lincolnshire Council,http://statistics.data.gov.uk/id/local-authority/00FC),Chief Executive,Director Of Economy & Growth,Museums & N F Heritage Centre,Equip / Furniture / Materials,Goods For Resale,LA123,1/29/2016,391322,-6.35,REVENUE,HOLDSWORTH LTD,121021
North East Lincolnshire Council,http://statistics.data.gov.uk/id/local-authority/00FC),Chief Executive,Director Of Economy & Growth,Museums & N F Heritage Centre,Equip / Furniture / Materials,Goods For Resale,LA123,1/29/2016,391344,-7.95,REVENUE,HOLDSWORTH LTD,121021
North East Lincolnshire Council,http://statistics.data.gov.uk/id/local-authority/00FC),Chief Executive,Director Of Economy & Growth,Museums & N F Heritage Centre,Equip / Furniture / Materials,Goods For Resale,LA123,1/29/2016,391346,-14.2,REVENUE,HOLDSWORTH LTD,121021
North East Lincolnshire Council,http://statistics.data.gov.uk/id/local-authority/00FC),Chief Executive,Director Of Economy & Growth,Museums & N F Heritage Centre,Equip / Furniture / Materials,Goods For Resale,LA123,1/7/2016,388477,409.5,REVENUE,WINNING MOVES UK LTD,131404
North East Lincolnshire Council,http://statistics.data.gov.uk/id/local-authority/00FC),Chief Executive,Director Of Economy & Growth,Museums & N F Heritage Centre,Equip / Furniture / Materials,Goods For Resale,LA123,1/21/2016,390742,1210,REVENUE,RIVERSIDE PRINT AND DISPLAY LIMITED,128206
North East Lincolnshire Council,http://statistics.data.gov.uk/id/local-authority/00FC),Chief Executive,Director Of Economy & Growth,Tourist Information Centre,Print Stationery / Gen Off Exp,Advertising,LD104,1/4/2016,378122,500,REVENUE,REDACTED PERSONAL INFORMATION,REDACTED PERSONAL INFORMATION
North East Lincolnshire Council,http://statistics.data.gov.uk/id/local-authority/00FC),Chief Executive,Director Of Economy & Growth,Tourist Information Centre,Print Stationery / Gen Off Exp,Publicity,LD105,1/12/2016,389751,500,REVENUE,GRIMSBY JAZZ,104461
North East Lincolnshire Council,http://statistics.data.gov.uk/id/local-authority/00FC),Chief Executive,Director Of Economy & Growth,Tourist Information Centre,Private Contractors,Third Party Prov - Private,PH101,1/21/2016,390227,435,REVENUE,GRIMSBY AUDITORIUM,128160
North East Lincolnshire Council,http://statistics.data.gov.uk/id/local-authority/00FC),Chief Executive,Director Of Economy & Growth,Tourist Information Centre,Private Contractors,Third Party Prov - Private,PH101,1/21/2016,390228,1381.5,REVENUE,GRIMSBY AUDITORIUM,128160
North East Lincolnshire Council,http://statistics.data.gov.uk/id/local-authority/00FC),Chief Executive,Director Of Economy & Growth,Tourist Information Centre,Private Contractors,Third Party Prov - Private,PH101,1/19/2016,390504,366,REVENUE,LS BIG SWING BAND,132899
North East Lincolnshire Council,http://statistics.data.gov.uk/id/local-authority/00FC),Chief Executive,Director Of Economy & Growth,Tourist Information Centre,Private Contractors,Third Party Prov - Private,PH101,1/4/2016,388072,675,REVENUE,THE CAXTON PLAYERS,129590
North East Lincolnshire Council,http://statistics.data.gov.uk/id/local-authority/00FC),Chief Executive,Director Of Economy & Growth,Tourist Information Centre,Private Contractors,Third Party Prov - Private,PH101,1/18/2016,390369,776.1,REVENUE,NATIONAL EXPRESS LTD,100835
North East Lincolnshire Council,http://statistics.data.gov.uk/id/local-authority/00FC),Chief Executive,Director Of Economy & Growth,Tourist Information Centre,Private Contractors,Third Party Prov - Private,PH101,1/18/2016,390368,865.15,REVENUE,NATIONAL EXPRESS LTD,100835
North East Lincolnshire Council,http://statistics.data.gov.uk/id/local-authority/00FC),Chief Executive,Director Of Economy & Growth,Tourist Information Centre,Private Contractors,Third Party Prov - Private,PH101,1/4/2016,388016,998,REVENUE,GRIMSBY AUDITORIUM,128160
North East Lincolnshire Council,http://statistics.data.gov.uk/id/local-authority/00FC),Chief Executive,Director Of Economy & Growth,Tourist Information Centre,Private Contractors,Third Party Prov - Private,PH101,1/18/2016,390359,865,REVENUE,CLEEFEST,121709
North East Lincolnshire Council,http://statistics.data.gov.uk/id/local-authority/00FC),Chief Executive,Director Of Economy & Growth,Community Investment Team,Private Contractors,Third Party Prov - Private,PH101,1/19/2016,390685,2000,REVENUE,DATAPLAN PAYROLL LIMITED,112647
North East Lincolnshire Council,http://statistics.data.gov.uk/id/local-authority/00FC),Chief Executive,Director Of Economy & Growth,Community Investment Team,Private Contractors,Third Party Prov - Private,PH101,1/19/2016,390686,2000,REVENUE,DATAPLAN PAYROLL LIMITED,112647
North East Lincolnshire Council,http://statistics.data.gov.uk/id/local-authority/00FC),Chief Executive,Director Of Economy & Growth,Community Investment Team,Private Contractors,Third Party Prov - Private,PH101,1/7/2016,388758,960,REVENUE,GRAYS HEATING LTD,128179
North East Lincolnshire Council,http://statistics.data.gov.uk/id/local-authority/00FC),Chief Executive,Director Of Economy & Growth,Community Investment Team,Private Contractors,Third Party Prov - Private,PH101,1/29/2016,391658,1176,REVENUE,AGE UK NORTH EAST LINCOLNSHIRE,113772
North East Lincolnshire Council,http://statistics.data.gov.uk/id/local-authority/00FC),Chief Executive,Director Of Economy & Growth,Community Investment Team,Private Contractors,Third Party Prov - Private,PH101,1/14/2016,389409,466.4,REVENUE,BEST FUTURES COMMUNITY INTEREST COMPANY,128600
North East Lincolnshire Council,http://statistics.data.gov.uk/id/local-authority/00FC),Chief Executive,Director Of Economy & Growth,Community Investment Team,Private Contractors,Third Party Prov - Private,PH101,1/14/2016,389407,333.28,REVENUE,BEST FUTURES COMMUNITY INTEREST COMPANY,128600
North East Lincolnshire Council,http://statistics.data.gov.uk/id/local-authority/00FC),Chief Executive,Director Of Economy & Growth,Community Investment Team,Private Contractors,Third Party Prov - Private,PH101,1/14/2016,389405,1470,REVENUE,WOMENS AID,100326
North East Lincolnshire Council,http://statistics.data.gov.uk/id/local-authority/00FC),Chief Executive,Director Of Economy & Growth,Community Investment Team,Private Contractors,Third Party Prov - Private,PH101,1/7/2016,388803,482.4,REVENUE,FRIENDSHIP AT HOME,108515
North East Lincolnshire Council,http://statistics.data.gov.uk/id/local-authority/00FC),Chief Executive,Director Of Economy & Growth,Community Investment Team,Private Contractors,Third Party Prov - Private,PH101,1/7/2016,388804,402,REVENUE,FRIENDSHIP AT HOME,108515
North East Lincolnshire Council,http://statistics.data.gov.uk/id/local-authority/00FC),Chief Executive,Director Of Economy & Growth,Community Investment Team,Private Contractors,Third Party Prov - Private,PH101,1/19/2016,389660,743.7,REVENUE,ST GRIMSBY RECYCLING LTD,129543
North East Lincolnshire Council,http://statistics.data.gov.uk/id/local-authority/00FC),Chief Executive,Director Of Economy & Growth,Community Investment Team,Private Contractors,Third Party Prov - Private,PH101,1/19/2016,389661,601,REVENUE,GR PET SUPPLIES,129704
North East Lincolnshire Council,http://statistics.data.gov.uk/id/local-authority/00FC),Chief Executive,Director Of Economy & Growth,Community Investment Team,Private Contractors,Third Party Prov - Private,PH101,1/19/2016,389659,728,REVENUE,VIRRGO CORPORATE LTD,120158
North East Lincolnshire Council,http://statistics.data.gov.uk/id/local-authority/00FC),Chief Executive,Director Of Economy & Growth,Community Investment Team,Private Contractors,Third Party Prov - Private,PH101,1/19/2016,389662,1680.86,REVENUE,LYNX POLYTHENE LTD,110149
North East Lincolnshire Council,http://statistics.data.gov.uk/id/local-authority/00FC),Chief Executive,Director Of Economy & Growth,Community Investment Team,Private Contractors,Third Party Prov - Private,PH101,1/28/2016,391194,2000,REVENUE,LCS GROUP,128526
North East Lincolnshire Council,http://statistics.data.gov.uk/id/local-authority/00FC),Chief Executive,Director Of Economy & Growth,Community Investment Team,Private Contractors,Third Party Prov - Private,PH101,1/28/2016,391193,25582.98,REVENUE,SCANIA (GREAT BRITAIN) LTD,101361
North East Lincolnshire Council,http://statistics.data.gov.uk/id/local-authority/00FC),Chief Executive,Director Of Economy & Growth,Community Investment Team,Private Contractors,Third Party Prov - Private,PH101,1/28/2016,391195,10834.21,REVENUE,SCANIA (GREAT BRITAIN) LTD,101361
North East Lincolnshire Council,http://statistics.data.gov.uk/id/local-authority/00FC),Chief Executive,Director Of Economy & Growth,Community Investment Team,Private Contractors,Third Party Prov - Private,PH101,1/28/2016,391199,1300,REVENUE,SCANIA (GREAT BRITAIN) LTD,101361
North East Lincolnshire Council,http://statistics.data.gov.uk/id/local-authority/00FC),Chief Executive,Director Of Economy & Growth,Community Investment Team,Private Contractors,Third Party Prov - Private,PH101,1/7/2016,389128,1500,REVENUE,CPO MEDIA,102186
North East Lincolnshire Council,http://statistics.data.gov.uk/id/local-authority/00FC),Chief Executive,Director Of Economy & Growth,Community Investment Team,Private Contractors,Third Party Prov - Private,PH101,1/26/2016,391117,1293.75,REVENUE,BEST FUTURES COMMUNITY INTEREST COMPANY,128600
North East Lincolnshire Council,http://statistics.data.gov.uk/id/local-authority/00FC),Chief Executive,Director Of Economy & Growth,Community Investment Team,Other Agencies,Grants Pd Over To Third Party,PJ138,1/28/2016,391097,11018.99,REVENUE,GRAPHITENE LTD,131344
North East Lincolnshire Council,http://statistics.data.gov.uk/id/local-authority/00FC),Chief Executive,Director Of Economy & Growth,Community Investment Team,Other Agencies,Grants Pd Over To Third Party,PJ138,1/7/2016,388675,9880,REVENUE,AGRIMIN LIMITED,130564
North East Lincolnshire Council,http://statistics.data.gov.uk/id/local-authority/00FC),Chief Executive,Director Of Economy & Growth,Community Investment Team,Other Agencies,Grants Pd Over To Third Party,PJ138,1/28/2016,391096,1595.38,REVENUE,BJB LIFT TRUCKS LTD,101173
North East Lincolnshire Council,http://statistics.data.gov.uk/id/local-authority/00FC),Chief Executive,Director Of Economy & Growth,Community Investment Team,Other Agencies,Grants Pd Over To Third Party,PJ138,1/28/2016,391203,12283.49,REVENUE,SPORTS IDENTITY,122004
North East Lincolnshire Council,http://statistics.data.gov.uk/id/local-authority/00FC),Chief Executive,Director Of Economy & Growth,Community Investment Team,Other Agencies,Grants Pd Over To Third Party,PJ138,2/1/2016,391798,1005.17,REVENUE,ROSINDALE & SONS LTD,131442
North East Lincolnshire Council,http://statistics.data.gov.uk/id/local-authority/00FC),Chief Executive,Director Of Economy & Growth,Community Investment Team,Other Agencies,Grants Pd Over To Third Party,PJ138,2/1/2016,391800,56840,REVENUE,UK TRAILER PARTS,106397
North East Lincolnshire Council,http://statistics.data.gov.uk/id/local-authority/00FC),Chief Executive,Director Of Economy & Growth,Retained Function,Car Allowances,Travel - Employees,JF101,1/7/2016,389047,-19.6,REVENUE,CLICK TRAVEL,127476
North East Lincolnshire Council,http://statistics.data.gov.uk/id/local-authority/00FC),Chief Executive,Director Of Economy & Growth,Retained Function,Grants And Subscriptions,Subscriptions,LJ101,1/19/2016,390346,3745,REVENUE,BUREAU VAN DIJK ELECTRONIC PUBLISHING LTD,132648
North East Lincolnshire Council,http://statistics.data.gov.uk/id/local-authority/00FC),Chief Executive,Director Of Economy & Growth,Drainage & Coastal Defence,Private Contractors,Third Party Prov - Private,PH101,1/19/2016,390026,1282.79,REVENUE,HUMBER ROYAL HOTEL,103151
North East Lincolnshire Council,http://statistics.data.gov.uk/id/local-authority/00FC),Chief Executive,Director Of Economy & Growth,Highways Dso,Dlo Holding,Depot Fuel Holding Account,LM101,1/5/2016,387893,15969.32,REVENUE,CERTAS ENERGY,124794
North East Lincolnshire Council,http://statistics.data.gov.uk/id/local-authority/00FC),Chief Executive,Director Of Economy & Growth,Highways Dso,Dlo Holding,Depot Fuel Holding Account,LM101,1/12/2016,388875,3968.42,REVENUE,CERTAS ENERGY,124794
North East Lincolnshire Council,http://statistics.data.gov.uk/id/local-authority/00FC),Chief Executive,Director Of Economy & Growth,Highways Dso,Dlo Holding,Depot Fuel Holding Account,LM101,1/28/2016,390734,14450.24,REVENUE,CERTAS ENERGY,124794
North East Lincolnshire Council,http://statistics.data.gov.uk/id/local-authority/00FC),Chief Executive,Director Of Economy & Growth,Highways Dso,Dlo Holding,Depot Fuel Holding Account,LM101,1/28/2016,390733,14469.48,REVENUE,CERTAS ENERGY,124794
North East Lincolnshire Council,http://statistics.data.gov.uk/id/local-authority/00FC),Chief Executive,Director Of Economy & Growth,Operational Management,Equip / Furniture / Materials,Equipment - Maintenance,LA104,1/12/2016,388892,451,REVENUE,ANDY RYAN GROUNDWORKS,101558
North East Lincolnshire Council,http://statistics.data.gov.uk/id/local-authority/00FC),Chief Executive,Director Of Economy & Growth,Operational Management,Equip / Furniture / Materials,Equipment - Maintenance,LA104,1/12/2016,388891,738,REVENUE,ANDY RYAN GROUNDWORKS,101558
North East Lincolnshire Council,http://statistics.data.gov.uk/id/local-authority/00FC),Chief Executive,Director Of Economy & Growth,Operational Management,Rep Alterations Maint Building,Traffic Mgmt-Irrecoverable Dam,GA115,1/12/2016,388893,738,REVENUE,ANDY RYAN GROUNDWORKS,101558
North East Lincolnshire Council,http://statistics.data.gov.uk/id/local-authority/00FC),Chief Executive,Director Of Economy & Growth,Street Lighting,Private Contractors,Third Party Prov - Private,PH101,1/19/2016,390448,1125.28,REVENUE,NORTHERN POWERGRID (YORKSHIRE) PLC,108328
North East Lincolnshire Council,http://statistics.data.gov.uk/id/local-authority/00FC),Chief Executive,Director Of Economy & Growth,Street Lighting,Private Contractors,Third Party Prov - Private,PH101,2/1/2016,391775,9225.79,REVENUE,J MCCANN & CO LTD,100841
North East Lincolnshire Council,http://statistics.data.gov.uk/id/local-authority/00FC),Chief Executive,Director Of Economy & Growth,Street Lighting,Rep Alterations Maint Building,Street Lighting-General Maint,GA111,2/1/2016,391775,1106.2,REVENUE,J MCCANN & CO LTD,100841
North East Lincolnshire Council,http://statistics.data.gov.uk/id/local-authority/00FC),Chief Executive,Director Of Economy & Growth,Street Lighting,Energy Costs,Electricity,GB102,1/7/2016,388724,2652.1,REVENUE,NPOWER LIMITED,101414
North East Lincolnshire Council,http://statistics.data.gov.uk/id/local-authority/00FC),Chief Executive,Director Of Economy & Growth,Street Lighting,Energy Costs,Electricity,GB102,1/7/2016,388730,-2652.1,REVENUE,NPOWER LIMITED,101414
North East Lincolnshire Council,http://statistics.data.gov.uk/id/local-authority/00FC),Chief Executive,Director Of Economy & Growth,Street Lighting,Energy Costs,Electricity,GB102,1/7/2016,388721,2665.92,REVENUE,NPOWER LIMITED,101414
North East Lincolnshire Council,http://statistics.data.gov.uk/id/local-authority/00FC),Chief Executive,Director Of Economy & Growth,Street Lighting,Energy Costs,Electricity,GB102,1/7/2016,388728,-2665.92,REVENUE,NPOWER LIMITED,101414
North East Lincolnshire Council,http://statistics.data.gov.uk/id/local-authority/00FC),Chief Executive,Director Of Economy & Growth,Street Lighting,Energy Costs,Electricity,GB102,1/11/2016,388702,2687.72,REVENUE,NPOWER LIMITED,101414
North East Lincolnshire Council,http://statistics.data.gov.uk/id/local-authority/00FC),Chief Executive,Director Of Economy & Growth,Street Lighting,Energy Costs,Electricity,GB102,1/11/2016,388700,3016.52,REVENUE,NPOWER LIMITED,101414
North East Lincolnshire Council,http://statistics.data.gov.uk/id/local-authority/00FC),Chief Executive,Director Of Economy & Growth,Street Lighting,Energy Costs,Electricity,GB102,1/7/2016,388729,-2515.41,REVENUE,NPOWER LIMITED,101414
North East Lincolnshire Council,http://statistics.data.gov.uk/id/local-authority/00FC),Chief Executive,Director Of Economy & Growth,Street Lighting,Energy Costs,Electricity,GB102,1/11/2016,388709,2515.41,REVENUE,NPOWER LIMITED,101414
North East Lincolnshire Council,http://statistics.data.gov.uk/id/local-authority/00FC),Chief Executive,Director Of Economy & Growth,Street Lighting,Rep Alterations Maint Building,Street Lighting - Energy,GA110,1/11/2016,388709,7231.82,REVENUE,NPOWER LIMITED,101414
North East Lincolnshire Council,http://statistics.data.gov.uk/id/local-authority/00FC),Chief Executive,Director Of Economy & Growth,Street Lighting,Rep Alterations Maint Building,Street Lighting - Energy,GA110,1/7/2016,388724,7624.78,REVENUE,NPOWER LIMITED,101414
North East Lincolnshire Council,http://statistics.data.gov.uk/id/local-authority/00FC),Chief Executive,Director Of Economy & Growth,Street Lighting,Rep Alterations Maint Building,Street Lighting - Energy,GA110,1/7/2016,388730,-7624.78,REVENUE,NPOWER LIMITED,101414
North East Lincolnshire Council,http://statistics.data.gov.uk/id/local-authority/00FC),Chief Executive,Director Of Economy & Growth,Street Lighting,Rep Alterations Maint Building,Street Lighting - Energy,GA110,1/7/2016,388721,7664.52,REVENUE,NPOWER LIMITED,101414
North East Lincolnshire Council,http://statistics.data.gov.uk/id/local-authority/00FC),Chief Executive,Director Of Economy & Growth,Street Lighting,Rep Alterations Maint Building,Street Lighting - Energy,GA110,1/7/2016,388728,-7664.52,REVENUE,NPOWER LIMITED,101414
North East Lincolnshire Council,http://statistics.data.gov.uk/id/local-authority/00FC),Chief Executive,Director Of Economy & Growth,Street Lighting,Rep Alterations Maint Building,Street Lighting - Energy,GA110,1/7/2016,388722,470.6,REVENUE,NPOWER LIMITED,101414
North East Lincolnshire Council,http://statistics.data.gov.uk/id/local-authority/00FC),Chief Executive,Director Of Economy & Growth,Street Lighting,Rep Alterations Maint Building,Street Lighting - Energy,GA110,1/11/2016,388702,7727.19,REVENUE,NPOWER LIMITED,101414
North East Lincolnshire Council,http://statistics.data.gov.uk/id/local-authority/00FC),Chief Executive,Director Of Economy & Growth,Street Lighting,Rep Alterations Maint Building,Street Lighting - Energy,GA110,1/7/2016,388723,520.77,REVENUE,NPOWER LIMITED,101414
North East Lincolnshire Council,http://statistics.data.gov.uk/id/local-authority/00FC),Chief Executive,Director Of Economy & Growth,Street Lighting,Rep Alterations Maint Building,Street Lighting - Energy,GA110,1/11/2016,388700,8672.5,REVENUE,NPOWER LIMITED,101414
North East Lincolnshire Council,http://statistics.data.gov.uk/id/local-authority/00FC),Chief Executive,Director Of Economy & Growth,Street Lighting,Rep Alterations Maint Building,Street Lighting - Energy,GA110,1/7/2016,388729,-7231.82,REVENUE,NPOWER LIMITED,101414
North East Lincolnshire Council,http://statistics.data.gov.uk/id/local-authority/00FC),Chief Executive,Director Of Economy & Growth,Street Lighting,Rep Alterations Maint Building,Street Lighting-General Maint,GA111,2/1/2016,391775,1010.27,REVENUE,J MCCANN & CO LTD,100841
North East Lincolnshire Council,http://statistics.data.gov.uk/id/local-authority/00FC),Chief Executive,Director Of Economy & Growth,Street Lighting,Rep Alterations Maint Building,Street Lighting - Energy,GA110,1/7/2016,388724,22874.33,REVENUE,NPOWER LIMITED,101414
North East Lincolnshire Council,http://statistics.data.gov.uk/id/local-authority/00FC),Chief Executive,Director Of Economy & Growth,Street Lighting,Rep Alterations Maint Building,Street Lighting - Energy,GA110,1/7/2016,388730,-22874.33,REVENUE,NPOWER LIMITED,101414
North East Lincolnshire Council,http://statistics.data.gov.uk/id/local-authority/00FC),Chief Executive,Director Of Economy & Growth,Street Lighting,Rep Alterations Maint Building,Street Lighting - Energy,GA110,1/7/2016,388721,22993.55,REVENUE,NPOWER LIMITED,101414
North East Lincolnshire Council,http://statistics.data.gov.uk/id/local-authority/00FC),Chief Executive,Director Of Economy & Growth,Street Lighting,Rep Alterations Maint Building,Street Lighting - Energy,GA110,1/7/2016,388728,-22993.55,REVENUE,NPOWER LIMITED,101414
North East Lincolnshire Council,http://statistics.data.gov.uk/id/local-authority/00FC),Chief Executive,Director Of Economy & Growth,Street Lighting,Rep Alterations Maint Building,Street Lighting - Energy,GA110,1/7/2016,388722,1411.78,REVENUE,NPOWER LIMITED,101414
North East Lincolnshire Council,http://statistics.data.gov.uk/id/local-authority/00FC),Chief Executive,Director Of Economy & Growth,Street Lighting,Rep Alterations Maint Building,Street Lighting - Energy,GA110,1/11/2016,388702,23181.56,REVENUE,NPOWER LIMITED,101414
North East Lincolnshire Council,http://statistics.data.gov.uk/id/local-authority/00FC),Chief Executive,Director Of Economy & Growth,Street Lighting,Rep Alterations Maint Building,Street Lighting - Energy,GA110,1/7/2016,388723,1562.31,REVENUE,NPOWER LIMITED,101414
North East Lincolnshire Council,http://statistics.data.gov.uk/id/local-authority/00FC),Chief Executive,Director Of Economy & Growth,Street Lighting,Rep Alterations Maint Building,Street Lighting - Energy,GA110,1/11/2016,388700,26017.51,REVENUE,NPOWER LIMITED,101414
North East Lincolnshire Council,http://statistics.data.gov.uk/id/local-authority/00FC),Chief Executive,Director Of Economy & Growth,Street Lighting,Rep Alterations Maint Building,Street Lighting - Energy,GA110,1/7/2016,388729,-21695.45,REVENUE,NPOWER LIMITED,101414
North East Lincolnshire Council,http://statistics.data.gov.uk/id/local-authority/00FC),Chief Executive,Director Of Economy & Growth,Street Lighting,Rep Alterations Maint Building,Street Lighting - Energy,GA110,1/7/2016,388727,1237.09,REVENUE,NPOWER LIMITED,101414
North East Lincolnshire Council,http://statistics.data.gov.uk/id/local-authority/00FC),Chief Executive,Director Of Economy & Growth,Street Lighting,Rep Alterations Maint Building,Street Lighting - Energy,GA110,1/11/2016,388709,21695.45,REVENUE,NPOWER LIMITED,101414
North East Lincolnshire Council,http://statistics.data.gov.uk/id/local-authority/00FC),Chief Executive,Director Of Economy & Growth,Street Lighting,Rep Alterations Maint Building,Street Lighting - Energy,GA110,1/11/2016,388799,1278.54,REVENUE,NPOWER LIMITED,101414
North East Lincolnshire Council,http://statistics.data.gov.uk/id/local-authority/00FC),Chief Executive,Director Of Economy & Growth,Street Lighting,Rep Alterations Maint Building,Street Lighting-General Maint,GA111,1/12/2016,389717,779.98,REVENUE,NORTHERN POWERGRID (YORKSHIRE) PLC,108328
North East Lincolnshire Council,http://statistics.data.gov.uk/id/local-authority/00FC),Chief Executive,Director Of Economy & Growth,Street Lighting,Rep Alterations Maint Building,Street Lighting-General Maint,GA111,1/19/2016,390457,389.99,REVENUE,NORTHERN POWERGRID (YORKSHIRE) PLC,108328
North East Lincolnshire Council,http://statistics.data.gov.uk/id/local-authority/00FC),Chief Executive,Director Of Economy & Growth,Street Lighting,Rep Alterations Maint Building,Street Lighting-General Maint,GA111,2/1/2016,391775,4380.13,REVENUE,J MCCANN & CO LTD,100841
North East Lincolnshire Council,http://statistics.data.gov.uk/id/local-authority/00FC),Chief Executive,Director Of Economy & Growth,Street Lighting,Rep Alterations Maint Building,Street Lighting-General Maint,GA111,1/12/2016,389716,389.99,REVENUE,NORTHERN POWERGRID (YORKSHIRE) PLC,108328
North East Lincolnshire Council,http://statistics.data.gov.uk/id/local-authority/00FC),Chief Executive,Director Of Economy & Growth,Street Lighting,Rep Alterations Maint Building,Street Light-Irrecoverable Dam,GA112,2/1/2016,391775,312.5,REVENUE,J MCCANN & CO LTD,100841
North East Lincolnshire Council,http://statistics.data.gov.uk/id/local-authority/00FC),Chief Executive,Director Of Economy & Growth,Street Lighting,Rep Alterations Maint Building,Street Light-Irrecoverable Dam,GA112,1/19/2016,390458,389.99,REVENUE,NORTHERN POWERGRID (YORKSHIRE) PLC,108328
North East Lincolnshire Council,http://statistics.data.gov.uk/id/local-authority/00FC),Chief Executive,Director Of Economy & Growth,Street Lighting,Rep Alterations Maint Building,Street Light-Irrecoverable Dam,GA112,1/12/2016,389719,389.99,REVENUE,NORTHERN POWERGRID (YORKSHIRE) PLC,108328
North East Lincolnshire Council,http://statistics.data.gov.uk/id/local-authority/00FC),Chief Executive,Director Of Economy & Growth,Street Lighting,Rep Alterations Maint Building,Traffic Signs / Signals,GA113,2/1/2016,391775,523.49,REVENUE,J MCCANN & CO LTD,100841
North East Lincolnshire Council,http://statistics.data.gov.uk/id/local-authority/00FC),Chief Executive,Director Of Economy & Growth,Street Lighting,Rep Alterations Maint Building,Traffic Signs / Signals,GA113,2/1/2016,391775,1586.77,REVENUE,J MCCANN & CO LTD,100841
North East Lincolnshire Council,http://statistics.data.gov.uk/id/local-authority/00FC),Chief Executive,Director Of Economy & Growth,Street Lighting,Private Contractors,Third Party Prov - Private,PH101,1/19/2016,390456,389.99,REVENUE,NORTHERN POWERGRID (YORKSHIRE) PLC,108328
North East Lincolnshire Council,http://statistics.data.gov.uk/id/local-authority/00FC),Chief Executive,Director Of Economy & Growth,Street Lighting,Private Contractors,Third Party Prov - Private,PH101,1/12/2016,389722,389.99,REVENUE,NORTHERN POWERGRID (YORKSHIRE) PLC,108328
North East Lincolnshire Council,http://statistics.data.gov.uk/id/local-authority/00FC),Chief Executive,Director Of Economy & Growth,Street Lighting,Private Contractors,Third Party Prov - Private,PH101,1/12/2016,389738,389.99,REVENUE,NORTHERN POWERGRID (YORKSHIRE) PLC,108328
North East Lincolnshire Council,http://statistics.data.gov.uk/id/local-authority/00FC),Chief Executive,Director Of Economy & Growth,Street Lighting,Private Contractors,Third Party Prov - Private,PH101,2/1/2016,391775,3439.73,REVENUE,J MCCANN & CO LTD,100841
North East Lincolnshire Council,http://statistics.data.gov.uk/id/local-authority/00FC),Chief Executive,Director Of Economy & Growth,Street Lighting,Private Contractors,Third Party Prov - Private,PH101,1/4/2016,388030,442.08,REVENUE,NORTHERN POWERGRID (YORKSHIRE) PLC,108328
North East Lincolnshire Council,http://statistics.data.gov.uk/id/local-authority/00FC),Chief Executive,Director Of Economy & Growth,Street Lighting,Private Contractors,Third Party Prov - Private,PH101,1/4/2016,388031,553.12,REVENUE,NORTHERN POWERGRID (YORKSHIRE) PLC,108328
North East Lincolnshire Council,http://statistics.data.gov.uk/id/local-authority/00FC),Chief Executive,Director Of Economy & Growth,Street Lighting,Rep Alterations Maint Building,Buildings - Repairs And Maint,GA102,2/1/2016,391775,2669.36,REVENUE,J MCCANN & CO LTD,100841
North East Lincolnshire Council,http://statistics.data.gov.uk/id/local-authority/00FC),Chief Executive,Director Of Economy & Growth,Transport Policy,Private Contractors,Concessionary Fares,PH104,1/21/2016,390669,REDACTED COMMERCIALLY SENSITIVE,REVENUE,GY CLPS & DISTRICT DIAL A RIDE,100980
North East Lincolnshire Council,http://statistics.data.gov.uk/id/local-authority/00FC),Chief Executive,Director Of Economy & Growth,Transport Policy,Private Contractors,Concessionary Fares,PH104,1/19/2016,389657,REDACTED COMMERCIALLY SENSITIVE,REVENUE,AMVALE LIMITED,101030
North East Lincolnshire Council,http://statistics.data.gov.uk/id/local-authority/00FC),Chief Executive,Director Of Economy & Growth,Transport Policy,Private Contractors,Concessionary Fares,PH104,1/21/2016,389658,REDACTED COMMERCIALLY SENSITIVE,REVENUE,AMVALE LIMITED,101030
North East Lincolnshire Council,http://statistics.data.gov.uk/id/local-authority/00FC),Chief Executive,Director Of Economy & Growth,Transport Policy,Private Contractors,Concessionary Fares,PH104,1/12/2016,389406,REDACTED COMMERCIALLY SENSITIVE,REVENUE,NORTHERN RAIL LIMITED,101610
North East Lincolnshire Council,http://statistics.data.gov.uk/id/local-authority/00FC),Chief Executive,Director Of Economy & Growth,Transport Policy,Private Contractors,Concessionary Fares,PH104,1/21/2016,390678,REDACTED COMMERCIALLY SENSITIVE,REVENUE,STAGECOACH SERVICES,101404
North East Lincolnshire Council,http://statistics.data.gov.uk/id/local-authority/00FC),Chief Executive,Director Of Economy & Growth,Transport Policy,Private Contractors,Subsidies,PH102,1/21/2016,390677,REDACTED COMMERCIALLY SENSITIVE,REVENUE,STAGECOACH SERVICES,101404
North East Lincolnshire Council,http://statistics.data.gov.uk/id/local-authority/00FC),Chief Executive,Director Of Economy & Growth,Transport Policy,Private Contractors,Contract Payments,PH105,1/12/2016,388487,4036.85,REVENUE,TRAPEZE GROUP UK LTD,101970
North East Lincolnshire Council,http://statistics.data.gov.uk/id/local-authority/00FC),Chief Executive,Director Of Economy & Growth,Transport Policy,Private Contractors,Contract Payments,PH105,1/5/2016,388125,22779.16,REVENUE,ESSENTIAL FLEET SERVICES LTD,101159
North East Lincolnshire Council,http://statistics.data.gov.uk/id/local-authority/00FC),Chief Executive,Director Of Public Health,Director Public Health,Communications And Computing,Computer S/Ware - Licences,LF103,1/28/2016,390828,788,REVENUE,IBM UNITED KINGDOM LTD,119081
North East Lincolnshire Council,http://statistics.data.gov.uk/id/local-authority/00FC),Chief Executive,Director Of Public Health,Drug / Alcohol Action Service,Private Contractors,Contract Payments,PH105,1/12/2016,388737,12500,REVENUE,FREELANCE NEEDLE EXCHANGE LIMITED,119999
North East Lincolnshire Council,http://statistics.data.gov.uk/id/local-authority/00FC),Chief Executive,Director Of Public Health,Drug / Alcohol Action Service,Private Contractors,Contract Payments,PH105,1/5/2016,387898,333.33,REVENUE,DR SINHA & DR G DE,108111
North East Lincolnshire Council,http://statistics.data.gov.uk/id/local-authority/00FC),Chief Executive,Director Of Public Health,Drug / Alcohol Action Service,Private Contractors,Contract Payments,PH105,1/5/2016,387917,1000,REVENUE,DR I D S CHALMERS & DR V O MEIER,104521
North East Lincolnshire Council,http://statistics.data.gov.uk/id/local-authority/00FC),Chief Executive,Director Of Public Health,Drug / Alcohol Action Service,Private Contractors,Contract Payments,PH105,1/11/2016,389057,587.59,REVENUE,DR I D S CHALMERS & DR V O MEIER,104521
North East Lincolnshire Council,http://statistics.data.gov.uk/id/local-authority/00FC),Chief Executive,Director Of Public Health,Drug / Alcohol Action Service,Private Contractors,Contract Payments,PH105,1/28/2016,391274,32674.72,REVENUE,NHS BUSINESS SERVICES AUTHORITY,127751
North East Lincolnshire Council,http://statistics.data.gov.uk/id/local-authority/00FC),Chief Executive,Director Of Public Health,Sexual Health,Contributions To Provisions,Contributions - Communities,LK101,1/28/2016,390295,3469.6,REVENUE,VIRGIN CARE SERVICES LTD,120538
North East Lincolnshire Council,http://statistics.data.gov.uk/id/local-authority/00FC),Chief Executive,Director Of Public Health,Sexual Health,Private Contractors,Contract Payments,PH105,1/28/2016,390282,55401,REVENUE,VIRGIN CARE SERVICES LTD,120538
North East Lincolnshire Council,http://statistics.data.gov.uk/id/local-authority/00FC),Chief Executive,Director Of Public Health,Sexual Health,Private Contractors,Contract Payments,PH105,1/21/2016,390302,55401,REVENUE,VIRGIN CARE SERVICES LTD,120538
North East Lincolnshire Council,http://statistics.data.gov.uk/id/local-authority/00FC),Chief Executive,Director Of Public Health,Sexual Health,Private Contractors,Third Party Prov - Private,PH101,1/5/2016,388106,302.51,REVENUE,COTTINGHAM PHARMACY,104020
North East Lincolnshire Council,http://statistics.data.gov.uk/id/local-authority/00FC),Chief Executive,Director Of Public Health,Sexual Health,Private Contractors,Third Party Prov - Private,PH101,1/5/2016,388112,1000,REVENUE,HUMBER LOCAL PHARMACEUTICAL COMMITTEE,132603
North East Lincolnshire Council,http://statistics.data.gov.uk/id/local-authority/00FC),Chief Executive,Director Of Public Health,Sexual Health,Private Contractors,Third Party Prov - Private,PH101,1/28/2016,390283,269.44,REVENUE,COTTINGHAM PHARMACY,104020
North East Lincolnshire Council,http://statistics.data.gov.uk/id/local-authority/00FC),Chief Executive,Director Of Public Health,Sexual Health,Private Contractors,Third Party Prov - Private,PH101,1/19/2016,390223,960,REVENUE,LLOYDS PHARMACY,104664
North East Lincolnshire Council,http://statistics.data.gov.uk/id/local-authority/00FC),Chief Executive,Director Of Public Health,Sexual Health,Private Contractors,Third Party Prov - Private,PH101,1/19/2016,390223,332.8,REVENUE,LLOYDS PHARMACY,104664
North East Lincolnshire Council,http://statistics.data.gov.uk/id/local-authority/00FC),Chief Executive,Director Of Public Health,Sexual Health,Other Agencies,Contract Plus,PJ135,1/21/2016,390655,384,REVENUE,PASANTE HEALTHCARE LTD,103011
North East Lincolnshire Council,http://statistics.data.gov.uk/id/local-authority/00FC),Chief Executive,Director Of Public Health,Sexual Health,Other Agencies,Health Charges,PJ131,1/5/2016,388108,270.92,REVENUE,YORK TEACHING HOSPITAL NHS FT,120670
North East Lincolnshire Council,http://statistics.data.gov.uk/id/local-authority/00FC),Chief Executive,Director Of Public Health,Sexual Health,Other Agencies,Health Charges,PJ131,1/28/2016,390301,1310,REVENUE,VIRGIN CARE SERVICES LTD,120538
North East Lincolnshire Council,http://statistics.data.gov.uk/id/local-authority/00FC),Chief Executive,Director Of Public Health,Sexual Health,Other Agencies,Health Charges,PJ131,1/28/2016,390292,1226,REVENUE,VIRGIN CARE SERVICES LTD,120538
North East Lincolnshire Council,http://statistics.data.gov.uk/id/local-authority/00FC),Chief Executive,Director Of Public Health,Sexual Health,Other Agencies,Health Charges,PJ131,1/28/2016,390293,373,REVENUE,CITY HEALTH CARE PARTNERSHIP CIC,110889
North East Lincolnshire Council,http://statistics.data.gov.uk/id/local-authority/00FC),Chief Executive,Director Of Public Health,Sexual Health,Other Agencies,Other,PJ121,1/5/2016,388103,640,REVENUE,LITTLEFIELDS HEALTH CENTRE,111683
North East Lincolnshire Council,http://statistics.data.gov.uk/id/local-authority/00FC),Chief Executive,Director Of Public Health,Sexual Health,Other Agencies,Other,PJ121,1/5/2016,388110,1040,REVENUE,SCARTHO MEDICAL CENTRE,107570
North East Lincolnshire Council,http://statistics.data.gov.uk/id/local-authority/00FC),Chief Executive,Director Of Public Health,Sexual Health,Other Agencies,Other,PJ121,1/19/2016,390204,1280,REVENUE,WOODFORD MEDICAL CENTRE,107882
North East Lincolnshire Council,http://statistics.data.gov.uk/id/local-authority/00FC),Chief Executive,Director Of Public Health,Sexual Health,Other Agencies,Other,PJ121,1/28/2016,390305,480,REVENUE,LITTLEFIELDS HEALTH CENTRE,111683
North East Lincolnshire Council,http://statistics.data.gov.uk/id/local-authority/00FC),Chief Executive,Director Of Public Health,Sexual Health,Other Agencies,Other,PJ121,1/19/2016,390205,600,REVENUE,SCARTHO MEDICAL CENTRE,107570
North East Lincolnshire Council,http://statistics.data.gov.uk/id/local-authority/00FC),Chief Executive,Director Of Public Health,Sexual Health,Other Agencies,Other,PJ121,1/19/2016,390217,1760,REVENUE,DR HOPPER & PARTNERS,103900
North East Lincolnshire Council,http://statistics.data.gov.uk/id/local-authority/00FC),Chief Executive,Director Of Public Health,Sexual Health,Other Agencies,Other,PJ121,1/19/2016,390022,1680,REVENUE,BEACON MEDICAL CENTRE,109525
North East Lincolnshire Council,http://statistics.data.gov.uk/id/local-authority/00FC),Chief Executive,Director Of Public Health,Tobacco,Private Contractors,Third Party Prov - Private,PH101,1/11/2016,388338,325,REVENUE,STUART PHILLIPS T/A B W Y CANINE,127246
North East Lincolnshire Council,http://statistics.data.gov.uk/id/local-authority/00FC),Chief Executive,Ad Joint Delivery,Local Taxation & Benefits,Communications And Computing,Computer S/Ware - Maintenance,LF102,1/4/2016,388068,779.71,REVENUE,NORTHGATE PUBLIC SERVICES (UK) LTD,101841
North East Lincolnshire Council,http://statistics.data.gov.uk/id/local-authority/00FC),Chief Executive,Ad Joint Delivery,Local Taxation & Benefits,Communications And Computing,Computer S/Ware - Maintenance,LF102,1/7/2016,388467,880.8,REVENUE,NORTHGATE PUBLIC SERVICES (UK) LTD,101841
North East Lincolnshire Council,http://statistics.data.gov.uk/id/local-authority/00FC),Chief Executive,Ad Joint Delivery,Local Taxation & Benefits,Miscellaneous Expenses,Other Expenses General,LL119,1/21/2016,388129,880,REVENUE,NORTHGATE PUBLIC SERVICES (UK) LTD,101841
North East Lincolnshire Council,http://statistics.data.gov.uk/id/local-authority/00FC),Chief Executive,Ad Joint Delivery,Local Taxation & Benefits,Communications And Computing,Computer S/Ware - Maintenance,LF102,1/7/2016,388467,250.73,REVENUE,NORTHGATE PUBLIC SERVICES (UK) LTD,101841
North East Lincolnshire Council,http://statistics.data.gov.uk/id/local-authority/00FC),Chief Executive,Ad Joint Delivery,Local Taxation & Benefits,Communications And Computing,Computer S/Ware - Maintenance,LF102,1/14/2016,388350,855,REVENUE,NORTHGATE PUBLIC SERVICES (UK) LTD,101841
North East Lincolnshire Council,http://statistics.data.gov.uk/id/local-authority/00FC),Chief Executive,Ad Joint Delivery,Local Taxation & Benefits,Miscellaneous Expenses,Other Expenses General,LL119,1/21/2016,388129,440,REVENUE,NORTHGATE PUBLIC SERVICES (UK) LTD,101841
North East Lincolnshire Council,http://statistics.data.gov.uk/id/local-authority/00FC),Chief Executive,Ad Joint Delivery,Local Taxation & Benefits,Communications And Computing,Computer S/Ware - Maintenance,LF102,1/7/2016,388467,270.26,REVENUE,NORTHGATE PUBLIC SERVICES (UK) LTD,101841
North East Lincolnshire Council,http://statistics.data.gov.uk/id/local-authority/00FC),Chief Executive,Ad Joint Delivery,Local Taxation & Benefits,Miscellaneous Expenses,Other Expenses General,LL119,1/21/2016,388129,880,REVENUE,NORTHGATE PUBLIC SERVICES (UK) LTD,101841
North East Lincolnshire Council,http://statistics.data.gov.uk/id/local-authority/00FC),Chief Executive,Ad Joint Delivery,Local Taxation & Benefits,Miscellaneous Expenses,Other Supplies & Services,LL110,1/4/2016,388162,6000,REVENUE,INFORM CPI,124803
North East Lincolnshire Council,http://statistics.data.gov.uk/id/local-authority/00FC),Chief Executive,Ad Joint Delivery,Information Technology,Communications And Computing,Telephones,LF112,1/29/2016,391296,4590.27,REVENUE,VIRGIN MEDIA,107612
North East Lincolnshire Council,http://statistics.data.gov.uk/id/local-authority/00FC),Chief Executive,Ad Joint Delivery,Information Technology,Communications And Computing,Telephones,LF112,1/29/2016,391296,319.6,REVENUE,VIRGIN MEDIA,107612
North East Lincolnshire Council,http://statistics.data.gov.uk/id/local-authority/00FC),Chief Executive,Ad Joint Delivery,Information Technology,Communications And Computing,Telephones,LF112,1/29/2016,391296,850.36,REVENUE,VIRGIN MEDIA,107612
North East Lincolnshire Council,http://statistics.data.gov.uk/id/local-authority/00FC),Chief Executive,Ad Joint Delivery,Information Technology,Communications And Computing,Telephones,LF112,1/29/2016,391302,874.44,REVENUE,VIRGIN MEDIA,107612
North East Lincolnshire Council,http://statistics.data.gov.uk/id/local-authority/00FC),Chief Executive,Ad Joint Delivery,Information Technology,Communications And Computing,Telephones,LF112,1/18/2016,390038,262.93,REVENUE,BRITISH TELECOMMUNICATIONS PLC,100974
North East Lincolnshire Council,http://statistics.data.gov.uk/id/local-authority/00FC),Chief Executive,Ad Joint Delivery,Information Technology,Communications And Computing,Telephones,LF112,1/29/2016,391412,6749.25,REVENUE,VIRGIN MEDIA,107612
North East Lincolnshire Council,http://statistics.data.gov.uk/id/local-authority/00FC),Chief Executive,Ad Joint Delivery,Information Technology,Communications And Computing,Telephones,LF112,1/29/2016,391305,6429.52,REVENUE,VIRGIN MEDIA,107612
North East Lincolnshire Council,http://statistics.data.gov.uk/id/local-authority/00FC),Chief Executive,Ad Joint Delivery,Information Technology,Communications And Computing,Computer H/Ware - Maintenance,LF106,1/5/2016,388130,22700.11,REVENUE,VIRGIN MEDIA LTD,101831
North East Lincolnshire Council,http://statistics.data.gov.uk/id/local-authority/00FC),Chief Executive,Ad Joint Delivery,Information Technology,Communications And Computing,Computer H/Ware - Maintenance,LF106,1/19/2016,390460,750,REVENUE,EAST RIDING OF YORKSHIRE,100377
North East Lincolnshire Council,http://statistics.data.gov.uk/id/local-authority/00FC),Chief Executive,Ad Joint Delivery,Information Technology,Communications And Computing,Computer H/Ware - Purchases,LF105,1/29/2016,391296,250,REVENUE,VIRGIN MEDIA,107612
North East Lincolnshire Council,http://statistics.data.gov.uk/id/local-authority/00FC),Chief Executive,Ad Joint Delivery,Information Technology,Communications And Computing,Computer H/Ware - Purchases,LF105,1/29/2016,391296,397.2,REVENUE,VIRGIN MEDIA,107612
North East Lincolnshire Council,http://statistics.data.gov.uk/id/local-authority/00FC),Chief Executive,Ad Joint Delivery,Information Technology,Communications And Computing,Computer H/Ware - Purchases,LF105,1/28/2016,391283,735.92,REVENUE,VIRGIN MEDIA,107612
North East Lincolnshire Council,http://statistics.data.gov.uk/id/local-authority/00FC),Chief Executive,Ad Joint Delivery,Information Technology,Communications And Computing,Computer H/Ware - Purchases,LF105,1/29/2016,391303,372.03,REVENUE,VIRGIN MEDIA,107612
North East Lincolnshire Council,http://statistics.data.gov.uk/id/local-authority/00FC),Chief Executive,Ad Joint Delivery,Information Technology,Communications And Computing,Computer H/Ware - Purchases,LF105,1/5/2016,388167,1762.17,REVENUE,VODAFONE LIMITED,101324
North East Lincolnshire Council,http://statistics.data.gov.uk/id/local-authority/00FC),Chief Executive,Ad Joint Delivery,Information Technology,Communications And Computing,Computer H/Ware - Purchases,LF105,1/19/2016,388877,432,REVENUE,SPECIALIST COMPUTER CENTRES PLC,110715
North East Lincolnshire Council,http://statistics.data.gov.uk/id/local-authority/00FC),Chief Executive,Ad Joint Delivery,Information Technology,Communications And Computing,Computer H/Ware - Purchases,LF105,1/5/2016,387919,6873.1,REVENUE,VIRGIN MEDIA LTD,101831
North East Lincolnshire Council,http://statistics.data.gov.uk/id/local-authority/00FC),Chief Executive,Ad Joint Delivery,Information Technology,Communications And Computing,Computer H/Ware - Purchases,LF105,1/29/2016,391304,1755.65,REVENUE,VODAFONE LIMITED,103661
North East Lincolnshire Council,http://statistics.data.gov.uk/id/local-authority/00FC),Chief Executive,Ad Joint Delivery,Information Technology,Communications And Computing,Computer S/Ware - Licences,LF103,1/28/2016,388485,79730.2,REVENUE,TRUSTMARQUE SOLUTIONS LTD,101275
North East Lincolnshire Council,http://statistics.data.gov.uk/id/local-authority/00FC),Chief Executive,Ad Joint Delivery,Information Technology,Communications And Computing,Computer S/Ware - Licences,LF103,1/28/2016,388486,118910.01,REVENUE,TRUSTMARQUE SOLUTIONS LTD,101275
North East Lincolnshire Council,http://statistics.data.gov.uk/id/local-authority/00FC),Chief Executive,Ad Joint Delivery,Community Support Mgmt A/C,Rep Alterations Maint Building,Buildings - Repairs And Maint,GA102,1/29/2016,391764,7000,REVENUE,THE LIBER COMMUNITY GROUP T/A BUFFALO BILLS,132912
North East Lincolnshire Council,http://statistics.data.gov.uk/id/local-authority/00FC),Chief Executive,Ad Joint Delivery,Community Support Mgmt A/C,Direct Employee Expenses,Agency Staff,EA105,1/18/2016,389403,3500,REVENUE,LINCS INSPIRE LIMITED,129063
North East Lincolnshire Council,http://statistics.data.gov.uk/id/local-authority/00FC),Chief Executive,Ad Joint Delivery,Community Support Mgmt A/C,Direct Employee Expenses,Agency Staff,EA105,1/18/2016,389403,500,REVENUE,LINCS INSPIRE LIMITED,129063
North East Lincolnshire Council,http://statistics.data.gov.uk/id/local-authority/00FC),Chief Executive,Ad Joint Delivery,Community Support Mgmt A/C,Direct Employee Expenses,Agency Staff,EA105,1/18/2016,389403,7500,REVENUE,LINCS INSPIRE LIMITED,129063
North East Lincolnshire Council,http://statistics.data.gov.uk/id/local-authority/00FC),Chief Executive,Ad Joint Delivery,Community Support Mgmt A/C,Direct Employee Expenses,Agency Staff,EA105,1/18/2016,389403,12742,REVENUE,LINCS INSPIRE LIMITED,129063
North East Lincolnshire Council,http://statistics.data.gov.uk/id/local-authority/00FC),Chief Executive,Ad Joint Delivery,Community Support Mgmt A/C,Direct Employee Expenses,Agency Staff,EA105,1/18/2016,389403,2500,REVENUE,LINCS INSPIRE LIMITED,129063
North East Lincolnshire Council,http://statistics.data.gov.uk/id/local-authority/00FC),Chief Executive,Ad Joint Delivery,Community Support Mgmt A/C,Direct Employee Expenses,Agency Staff,EA105,1/18/2016,389403,3000,REVENUE,LINCS INSPIRE LIMITED,129063
North East Lincolnshire Council,http://statistics.data.gov.uk/id/local-authority/00FC),Chief Executive,Ad Joint Delivery,Leisure Contracts,Indirect Employee Expenses,Redundancy,EB109,1/7/2016,389120,REDACTED PERSONAL INFORMATION,REVENUE,LINCS INSPIRE LTD,120610
North East Lincolnshire Council,http://statistics.data.gov.uk/id/local-authority/00FC),Chief Executive,Ad Joint Delivery,Leisure Contracts,Indirect Employee Expenses,Redundancy,EB109,1/7/2016,389120,REDACTED PERSONAL INFORMATION,REVENUE,LINCS INSPIRE LTD,120610
North East Lincolnshire Council,http://statistics.data.gov.uk/id/local-authority/00FC),Chief Executive,Ad Joint Delivery,Leisure Contracts,Indirect Employee Expenses,Redundancy,EB109,1/7/2016,389120,REDACTED PERSONAL INFORMATION,REVENUE,LINCS INSPIRE LTD,120610
North East Lincolnshire Council,http://statistics.data.gov.uk/id/local-authority/00FC),Chief Executive,Ad Joint Delivery,Leisure Contracts,Indirect Employee Expenses,Redundancy,EB109,1/7/2016,389120,REDACTED PERSONAL INFORMATION,REVENUE,LINCS INSPIRE LTD,120610
North East Lincolnshire Council,http://statistics.data.gov.uk/id/local-authority/00FC),Chief Executive,Ad Joint Delivery,Leisure Contracts,Indirect Employee Expenses,Redundancy,EB109,1/7/2016,389120,REDACTED PERSONAL INFORMATION,REVENUE,LINCS INSPIRE LTD,120610
North East Lincolnshire Council,http://statistics.data.gov.uk/id/local-authority/00FC),Chief Executive,Ad Joint Delivery,Leisure Contracts,Indirect Employee Expenses,Redundancy,EB109,1/7/2016,389120,REDACTED PERSONAL INFORMATION,REVENUE,LINCS INSPIRE LTD,120610
North East Lincolnshire Council,http://statistics.data.gov.uk/id/local-authority/00FC),Chief Executive,Ad Joint Delivery,Leisure Contracts,Indirect Employee Expenses,Redundancy,EB109,1/7/2016,389120,REDACTED PERSONAL INFORMATION,REVENUE,LINCS INSPIRE LTD,120610
North East Lincolnshire Council,http://statistics.data.gov.uk/id/local-authority/00FC),Chief Executive,Ad Joint Delivery,Leisure Contracts,Indirect Employee Expenses,Redundancy,EB109,1/7/2016,389120,REDACTED PERSONAL INFORMATION,REVENUE,LINCS INSPIRE LTD,120610
North East Lincolnshire Council,http://statistics.data.gov.uk/id/local-authority/00FC),Chief Executive,Ad Joint Delivery,Leisure Contracts,Indirect Employee Expenses,Redundancy,EB109,1/19/2016,390465,REDACTED PERSONAL INFORMATION,REVENUE,LINCS INSPIRE LIMITED,129063
North East Lincolnshire Council,http://statistics.data.gov.uk/id/local-authority/00FC),Chief Executive,Ad Joint Delivery,Leisure Contracts,Indirect Employee Expenses,Redundancy,EB109,1/28/2016,391223,REDACTED PERSONAL INFORMATION,REVENUE,LINCS INSPIRE LIMITED,129063
North East Lincolnshire Council,http://statistics.data.gov.uk/id/local-authority/00FC),Chief Executive,Ad Joint Delivery,Leisure Contracts,Rep Alterations Maint Building,Buildings - Repairs And Maint,GA102,1/19/2016,390447,1515,REVENUE,ICE TECH UK,121107
North East Lincolnshire Council,http://statistics.data.gov.uk/id/local-authority/00FC),Chief Executive,Ad Joint Delivery,Leisure Contracts,Rep Alterations Maint Building,Buildings - Repairs And Maint,GA102,1/29/2016,391313,2688.5,REVENUE,COFELY WORKPLACE LIMITED,123983
North East Lincolnshire Council,http://statistics.data.gov.uk/id/local-authority/00FC),Chief Executive,Ad Joint Delivery,Leisure Contracts,Rep Alterations Maint Building,Buildings - Repairs And Maint,GA102,1/29/2016,391313,290,REVENUE,COFELY WORKPLACE LIMITED,123983
North East Lincolnshire Council,http://statistics.data.gov.uk/id/local-authority/00FC),Chief Executive,Ad Joint Delivery,Leisure Contracts,Rep Alterations Maint Building,Buildings - Repairs And Maint,GA102,1/29/2016,391313,2475,REVENUE,COFELY WORKPLACE LIMITED,123983
North East Lincolnshire Council,http://statistics.data.gov.uk/id/local-authority/00FC),Chief Executive,Ad Joint Delivery,Leisure Contracts,Rep Alterations Maint Building,Buildings - Repairs And Maint,GA102,1/29/2016,391313,885,REVENUE,COFELY WORKPLACE LIMITED,123983
North East Lincolnshire Council,http://statistics.data.gov.uk/id/local-authority/00FC),Chief Executive,Ad Joint Delivery,Leisure Contracts,Rep Alterations Maint Building,Buildings - Repairs And Maint,GA102,1/29/2016,391313,2490,REVENUE,COFELY WORKPLACE LIMITED,123983
North East Lincolnshire Council,http://statistics.data.gov.uk/id/local-authority/00FC),Chief Executive,Ad Joint Delivery,Leisure Contracts,Rep Alterations Maint Building,Buildings - Repairs And Maint,GA102,1/29/2016,391313,340,REVENUE,COFELY WORKPLACE LIMITED,123983
North East Lincolnshire Council,http://statistics.data.gov.uk/id/local-authority/00FC),Chief Executive,Ad Joint Delivery,Leisure Contracts,Energy Costs,Electricity,GB102,1/11/2016,388696,395,REVENUE,NPOWER,125397
North East Lincolnshire Council,http://statistics.data.gov.uk/id/local-authority/00FC),Chief Executive,Ad Joint Delivery,Leisure Contracts,Private Contractors,Third Party Prov - Private,PH101,1/7/2016,388526,2919.58,REVENUE,LEGEND CLUB MANAGMENT SYSTEMS (UK) LTD,119144
North East Lincolnshire Council,http://statistics.data.gov.uk/id/local-authority/00FC),Chief Executive,Ad Joint Delivery,Leisure Contracts,Private Contractors,Third Party Prov - Private,PH101,1/21/2016,390634,2919.58,REVENUE,LEGEND CLUB MANAGMENT SYSTEMS (UK) LTD,119144
North East Lincolnshire Council,http://statistics.data.gov.uk/id/local-authority/00FC),Chief Executive,Ad Joint Delivery,Director And Support,Miscellaneous Expenses,Other Expenses General,LL119,1/28/2016,390707,974.66,REVENUE,WELLBEING SOLUTIONS MANAGEMENT,132439
North East Lincolnshire Council,http://statistics.data.gov.uk/id/local-authority/00FC),Chief Executive,Ad Joint Delivery,Human Resources,Indirect Employee Expenses,Disclosure Checks,EB124,1/14/2016,389863,4136,REVENUE,DISCLOSURE & BARRING SERVICE,119180
North East Lincolnshire Council,http://statistics.data.gov.uk/id/local-authority/00FC),Chief Executive,Ad Joint Delivery,Human Resources,Consultancy,Consultancy,PL101,1/7/2016,388807,6187.5,REVENUE,IMPROVEMENT DEVELOPMENT GROWTH LTD,104765
North East Lincolnshire Council,http://statistics.data.gov.uk/id/local-authority/00FC),Chief Executive,Ad Joint Delivery,Human Resources,Indirect Employee Expenses,Staff Training,EB122,1/14/2016,386593,6500,REVENUE,UNIVERSITY OF BIRMINGHAM,101913
North East Lincolnshire Council,http://statistics.data.gov.uk/id/local-authority/00FC),Chief Executive,Ad Joint Delivery,Human Resources,Indirect Employee Expenses,Staff Training,EB122,1/19/2016,389955,795,REVENUE,TRANSAFE TRAINING LTD,101496
North East Lincolnshire Council,http://statistics.data.gov.uk/id/local-authority/00FC),Chief Executive,Ad Joint Delivery,Human Resources,Indirect Employee Expenses,Staff Training,EB122,1/19/2016,389955,750,REVENUE,TRANSAFE TRAINING LTD,101496
North East Lincolnshire Council,http://statistics.data.gov.uk/id/local-authority/00FC),Chief Executive,Ad Joint Delivery,Human Resources,Indirect Employee Expenses,Staff Training,EB122,1/28/2016,390708,1358,REVENUE,CHARTERED INSTITUTE OF,100641
North East Lincolnshire Council,http://statistics.data.gov.uk/id/local-authority/00FC),Chief Executive,Ad Joint Delivery,Human Resources,Indirect Employee Expenses,Staff Training,EB122,1/26/2016,391105,1322.2,REVENUE,GARY STORR,132875
North East Lincolnshire Council,http://statistics.data.gov.uk/id/local-authority/00FC),Chief Executive,Ad Joint Delivery,Human Resources,Indirect Employee Expenses,Staff Training,EB122,1/26/2016,391107,1322.2,REVENUE,RICHARD BOYTON,132876
North East Lincolnshire Council,http://statistics.data.gov.uk/id/local-authority/00FC),Chief Executive,Ad Joint Delivery,Human Resources,Indirect Employee Expenses,Staff Training,EB122,1/26/2016,391106,1322.2,REVENUE,JOANNE WAGSTAFF,132877
North East Lincolnshire Council,http://statistics.data.gov.uk/id/local-authority/00FC),Chief Executive,Ad Joint Delivery,Human Resources,Indirect Employee Expenses,Staff Training,EB122,1/5/2016,387346,820,REVENUE,CARE-EX SERVICES LTD,104154
North East Lincolnshire Council,http://statistics.data.gov.uk/id/local-authority/00FC),Chief Executive,Ad Joint Delivery,Human Resources,Indirect Employee Expenses,Staff Training,EB122,1/5/2016,387371,571.1,REVENUE,SUE WOOLMORE,111635
North East Lincolnshire Council,http://statistics.data.gov.uk/id/local-authority/00FC),Chief Executive,Ad Joint Delivery,Human Resources,Indirect Employee Expenses,Staff Training,EB122,1/5/2016,387372,450,REVENUE,MR NIGEL K BISHOP,109708
North East Lincolnshire Council,http://statistics.data.gov.uk/id/local-authority/00FC),Chief Executive,Ad Joint Delivery,Human Resources,Indirect Employee Expenses,Staff Training,EB122,1/21/2016,389956,270,REVENUE,FOCUS INDEPENDENT ADULT SOCIAL WORK CIC,124071
North East Lincolnshire Council,http://statistics.data.gov.uk/id/local-authority/00FC),Chief Executive,Ad Joint Delivery,Human Resources,Indirect Employee Expenses,Medical Expenses - Employees,EB112,1/28/2016,391108,515.18,REVENUE,EA BROADBURN DISPENSING CHEMIST,101135
North East Lincolnshire Council,http://statistics.data.gov.uk/id/local-authority/00FC),Chief Executive,Ad Joint Delivery,Human Resources,Indirect Employee Expenses,Medical Expenses - Employees,EB112,1/5/2016,388019,500,REVENUE,OCCUPATIONAL HEALTH SERVICES LTD,112584
North East Lincolnshire Council,http://statistics.data.gov.uk/id/local-authority/00FC),Chief Executive,Ad Joint Delivery,Human Resources,Indirect Employee Expenses,Medical Expenses - Employees,EB112,1/21/2016,390004,525,REVENUE,HELEN LEE,130778
North East Lincolnshire Council,http://statistics.data.gov.uk/id/local-authority/00FC),Chief Executive,Ad Joint Delivery,Human Resources,Indirect Employee Expenses,Medical Expenses - Employees,EB112,1/21/2016,390656,346.56,REVENUE,N LINCS & GOOLE HOSPITALS NHS,111074
North East Lincolnshire Council,http://statistics.data.gov.uk/id/local-authority/00FC),Chief Executive,Ad Joint Delivery,Human Resources,Indirect Employee Expenses,Medical Expenses - Employees,EB112,1/21/2016,390648,474.53,REVENUE,N LINCS & GOOLE HOSPITALS NHS,111074
North East Lincolnshire Council,http://statistics.data.gov.uk/id/local-authority/00FC),Chief Executive,Ad Joint Delivery,Human Resources,Indirect Employee Expenses,Medical Expenses - Employees,EB112,1/28/2016,391249,6700,REVENUE,DR M R EAST,109880
North East Lincolnshire Council,http://statistics.data.gov.uk/id/local-authority/00FC),Chief Executive,Ad Joint Delivery,Human Resources,Equip / Furniture / Materials,Equipment - Purchase,LA101,1/28/2016,390316,1700,REVENUE,FOREFRONT TRAINING LTD,105501
North East Lincolnshire Council,http://statistics.data.gov.uk/id/local-authority/00FC),Chief Executive,Ad Joint Delivery,Human Resources,Clothes Uniforms And Laundry,Protective Clothing,LC101,1/7/2016,388478,-18.14,REVENUE,ARCO LTD,100509
North East Lincolnshire Council,http://statistics.data.gov.uk/id/local-authority/00FC),Chief Executive,Ad Joint Delivery,Human Resources,Grants And Subscriptions,Subscriptions,LJ101,1/5/2016,384859,440,REVENUE,ROSPA,100697
North East Lincolnshire Council,http://statistics.data.gov.uk/id/local-authority/00FC),Chief Executive,Ad Joint Delivery,Human Resources,Grants And Subscriptions,Subscriptions,LJ101,1/5/2016,388468,-440,REVENUE,ROSPA,100697
North East Lincolnshire Council,http://statistics.data.gov.uk/id/local-authority/00FC),Chief Executive,Ad Joint Delivery,Human Resources,Grants And Subscriptions,Subscriptions,LJ101,1/5/2016,388498,675,REVENUE,ROSPA,100697
North East Lincolnshire Council,http://statistics.data.gov.uk/id/local-authority/00FC),Chief Executive,Ad Joint Delivery,Central Commissioning & Delive,Catering,Purchase School Meals,LB103,1/26/2016,391110,8673,REVENUE,CYGNET CATERING,108880
North East Lincolnshire Council,http://statistics.data.gov.uk/id/local-authority/00FC),Chief Executive,Ad Joint Delivery,Central Commissioning & Delive,Catering,Purchase School Meals,LB103,1/26/2016,391111,15624,REVENUE,CYGNET CATERING,108880
North East Lincolnshire Council,http://statistics.data.gov.uk/id/local-authority/00FC),Chief Executive,Ad Joint Delivery,Central Commissioning & Delive,Catering,Purchase School Meals,LB103,1/26/2016,391112,113765.6,REVENUE,CYGNET CATERING,108880
North East Lincolnshire Council,http://statistics.data.gov.uk/id/local-authority/00FC),Chief Executive,Ad Joint Delivery,Central Commissioning & Delive,Private Contractors,Contract Payments,PH105,1/12/2016,389675,6966.25,REVENUE,MATRIX SCM LTD,108117
North East Lincolnshire Council,http://statistics.data.gov.uk/id/local-authority/00FC),Chief Executive,Ad Joint Delivery,Central Commissioning & Delive,Private Contractors,Contract Payments,PH105,1/12/2016,389676,6903.8,REVENUE,MATRIX SCM LTD,108117
North East Lincolnshire Council,http://statistics.data.gov.uk/id/local-authority/00FC),Chief Executive,Ad Joint Delivery,Central Commissioning & Delive,Private Contractors,Contract Payments,PH105,1/12/2016,389677,4789.99,REVENUE,MATRIX SCM LTD,108117
North East Lincolnshire Council,http://statistics.data.gov.uk/id/local-authority/00FC),Chief Executive,Ad Joint Delivery,Central Commissioning & Delive,Private Contractors,Contract Payments,PH105,1/12/2016,389679,5621.27,REVENUE,MATRIX SCM LTD,108117
North East Lincolnshire Council,http://statistics.data.gov.uk/id/local-authority/00FC),Chief Executive,Ad Joint Delivery,Communications And Marketing,Equip / Furniture / Materials,Equipment - Purchase,LA101,1/14/2016,388488,612,REVENUE,ANTALIS LTD,124930
North East Lincolnshire Council,http://statistics.data.gov.uk/id/local-authority/00FC),Chief Executive,Ad Joint Delivery,Communications And Marketing,Equip / Furniture / Materials,Equipment - Purchase,LA101,1/11/2016,388537,680,REVENUE,FREELANCE OFFSET SERVICES,100689
North East Lincolnshire Council,http://statistics.data.gov.uk/id/local-authority/00FC),Chief Executive,Ad Joint Delivery,Communications And Marketing,Print Stationery / Gen Off Exp,Photocopier - Running Costs,LD102,1/28/2016,391254,272.97,REVENUE,XEROX (UK) LIMITED,100953
North East Lincolnshire Council,http://statistics.data.gov.uk/id/local-authority/00FC),Chief Executive,Ad Joint Delivery,Communications And Marketing,Print Stationery / Gen Off Exp,Photocopier - Running Costs,LD102,1/28/2016,391255,4788.97,REVENUE,XEROX (UK) LIMITED,100953
North East Lincolnshire Council,http://statistics.data.gov.uk/id/local-authority/00FC),Chief Executive,Ad Joint Delivery,Communications And Marketing,Print Stationery / Gen Off Exp,Photocopier - Running Costs,LD102,1/7/2016,388448,760,REVENUE,UNITED CARLTON OFFICE SYSTEMS LTD,101652
North East Lincolnshire Council,http://statistics.data.gov.uk/id/local-authority/00FC),Chief Executive,Ad Joint Delivery,Communications And Marketing,Private Contractors,Third Party Prov - Private,PH101,1/14/2016,389861,1638,REVENUE,DONCASTER METROPOLITAN BOROUGH COUNCIL,103098
North East Lincolnshire Council,http://statistics.data.gov.uk/id/local-authority/00FC),Chief Executive,Ad Joint Delivery,Communications And Marketing,Private Contractors,Third Party Prov - Private,PH101,1/14/2016,387752,470,REVENUE,GSB PRINT & DESIGN LTD,101553
North East Lincolnshire Council,http://statistics.data.gov.uk/id/local-authority/00FC),Chief Executive,Ad Joint Delivery,Communications And Marketing,Private Contractors,Third Party Prov - Private,PH101,1/11/2016,388981,320,REVENUE,SYSTEMATIC PRINT MANAGEMENT LTD,101147
North East Lincolnshire Council,http://statistics.data.gov.uk/id/local-authority/00FC),Chief Executive,Ad Joint Delivery,Communications And Marketing,Private Contractors,Third Party Prov - Private,PH101,1/14/2016,388392,645,REVENUE,SYSTEMATIC PRINT MANAGEMENT LTD,101147
North East Lincolnshire Council,http://statistics.data.gov.uk/id/local-authority/00FC),Chief Executive,Ad Joint Delivery,Communications And Marketing,Direct Employee Expenses,Agency Staff,EA105,1/18/2016,390037,2080,REVENUE,WALTON MEDIA LTD,126989
North East Lincolnshire Council,http://statistics.data.gov.uk/id/local-authority/00FC),Chief Executive,Ad Joint Delivery,Bus Support & Customer Serv,Miscellaneous Expenses,Other Expenses General,LL119,1/28/2016,391064,689.5,REVENUE,STOR-A-FILE LTD,124466
North East Lincolnshire Council,http://statistics.data.gov.uk/id/local-authority/00FC),Chief Executive,Ad Joint Delivery,Bus Support & Customer Serv,Miscellaneous Expenses,Other Expenses General,LL119,1/28/2016,391287,261.19,REVENUE,STOR-A-FILE LTD,124466
North East Lincolnshire Council,http://statistics.data.gov.uk/id/local-authority/00FC),Chief Executive,Ad Joint Delivery,Bus Support & Customer Serv,Miscellaneous Expenses,Other Expenses General,LL119,1/29/2016,391760,-58,REVENUE,STOR-A-FILE LTD,124466
North East Lincolnshire Council,http://statistics.data.gov.uk/id/local-authority/00FC),Chief Executive,Ad Joint Delivery,Bus Support & Customer Serv,Miscellaneous Expenses,Other Expenses General,LL119,1/28/2016,391286,3303.83,REVENUE,STOR-A-FILE LTD,124466
North East Lincolnshire Council,http://statistics.data.gov.uk/id/local-authority/00FC),Chief Executive,Ad Joint Delivery,Bus Support & Customer Serv,Equip / Furniture / Materials,Goods For Resale,LA123,1/28/2016,389946,724.78,REVENUE,NORTHGATE PUBLIC SERVICES (UK) LTD,101841
North East Lincolnshire Council,http://statistics.data.gov.uk/id/local-authority/00FC),Chief Executive,Ad Joint Delivery,Bus Support & Customer Serv,Private Contractors,External Security Services,PH103,1/21/2016,390488,464.51,REVENUE,G4S CASH SERVICES (UK) LIMITED,100952
North East Lincolnshire Council,http://statistics.data.gov.uk/id/local-authority/00FC),Chief Executive,Ad Joint Delivery,Bus Support & Customer Serv,Private Contractors,External Security Services,PH103,1/5/2016,387968,3879.36,REVENUE,ALLPAY LIMITED,112919
North East Lincolnshire Council,http://statistics.data.gov.uk/id/local-authority/00FC),Chief Executive,Ad Joint Delivery,Bus Support & Customer Serv,Communications And Computing,Postage,LF111,1/7/2016,388447,298.25,REVENUE,ROYAL MAIL GROUP PLC,101082
North East Lincolnshire Council,http://statistics.data.gov.uk/id/local-authority/00FC),Chief Executive,Ad Joint Delivery,Bus Support & Customer Serv,Communications And Computing,Postage,LF111,1/29/2016,391315,298.25,REVENUE,ROYAL MAIL GROUP PLC,101082
North East Lincolnshire Council,http://statistics.data.gov.uk/id/local-authority/00FC),Chief Executive,Ad Joint Delivery,Bus Support & Customer Serv,Communications And Computing,Postage,LF111,1/7/2016,388449,2961.58,REVENUE,ROYAL MAIL GROUP PLC,101082
North East Lincolnshire Council,http://statistics.data.gov.uk/id/local-authority/00FC),Chief Executive,Ad Joint Delivery,Bus Support & Customer Serv,Communications And Computing,Postage,LF111,1/12/2016,388787,2677.36,REVENUE,ROYAL MAIL GROUP PLC,101082
North East Lincolnshire Council,http://statistics.data.gov.uk/id/local-authority/00FC),Chief Executive,Ad Joint Delivery,Bus Support & Customer Serv,Communications And Computing,Postage,LF111,1/18/2016,389999,1490.35,REVENUE,ROYAL MAIL GROUP PLC,101082
North East Lincolnshire Council,http://statistics.data.gov.uk/id/local-authority/00FC),Chief Executive,Ad Joint Delivery,Bus Support & Customer Serv,Communications And Computing,Postage,LF111,1/29/2016,391311,2249.35,REVENUE,ROYAL MAIL GROUP PLC,101082
North East Lincolnshire Council,http://statistics.data.gov.uk/id/local-authority/00FC),Chief Executive,Ad Joint Delivery,Bus Support & Customer Serv,Communications And Computing,Postage,LF111,1/29/2016,391312,613.72,REVENUE,ROYAL MAIL GROUP PLC,101082
North East Lincolnshire Council,http://statistics.data.gov.uk/id/local-authority/00FC),Chief Executive,Ad Joint Delivery,Bus Support & Customer Serv,Print Stationery / Gen Off Exp,Photocopier - Running Costs,LD102,1/7/2016,383317,304.31,REVENUE,UNITED CARLTON OFFICE SYSTEMS LTD,101652
North East Lincolnshire Council,http://statistics.data.gov.uk/id/local-authority/00FC),Chief Executive,Ad Joint Delivery,Bus Support & Customer Serv,Print Stationery / Gen Off Exp,Photocopier - Running Costs,LD102,1/12/2016,389106,300.47,REVENUE,UNITED CARLTON OFFICE SYSTEMS LTD,101652
North East Lincolnshire Council,http://statistics.data.gov.uk/id/local-authority/00FC),Chief Executive,Ad Joint Delivery,Bus Support & Customer Serv,Print Stationery / Gen Off Exp,Photocopier - Running Costs,LD102,1/28/2016,390761,307.02,REVENUE,UNITED CARLTON OFFICE SYSTEMS LTD,101652
North East Lincolnshire Council,http://statistics.data.gov.uk/id/local-authority/00FC),Chief Executive,Ad Joint Delivery,Bus Support & Customer Serv,Print Stationery / Gen Off Exp,Photocopier - Running Costs,LD102,1/28/2016,390760,307.03,REVENUE,UNITED CARLTON OFFICE SYSTEMS LTD,101652
North East Lincolnshire Council,http://statistics.data.gov.uk/id/local-authority/00FC),Chief Executive,Ad Joint Delivery,Bus Support & Customer Serv,Print Stationery / Gen Off Exp,Photocopier - Running Costs,LD102,1/28/2016,390759,307.02,REVENUE,UNITED CARLTON OFFICE SYSTEMS LTD,101652
North East Lincolnshire Council,http://statistics.data.gov.uk/id/local-authority/00FC),Chief Executive,Ad Joint Delivery,Bus Support & Customer Serv,Print Stationery / Gen Off Exp,Printing And Stationery,LD103,1/28/2016,390765,365.96,REVENUE,UNITED CARLTON OFFICE SYSTEMS LTD,101652
North East Lincolnshire Council,http://statistics.data.gov.uk/id/local-authority/00FC),Chief Executive,Ad Joint Delivery,Bus Support & Customer Serv,Print Stationery / Gen Off Exp,Printing And Stationery,LD103,1/28/2016,390764,313.98,REVENUE,UNITED CARLTON OFFICE SYSTEMS LTD,101652
North East Lincolnshire Council,http://statistics.data.gov.uk/id/local-authority/00FC),Chief Executive,Ad Joint Delivery,Bus Support & Customer Serv,Print Stationery / Gen Off Exp,Printing And Stationery,LD103,1/28/2016,390761,426.04,REVENUE,UNITED CARLTON OFFICE SYSTEMS LTD,101652
North East Lincolnshire Council,http://statistics.data.gov.uk/id/local-authority/00FC),Chief Executive,Ad Joint Delivery,Bus Support & Customer Serv,Print Stationery / Gen Off Exp,Printing And Stationery,LD103,1/28/2016,390759,446.28,REVENUE,UNITED CARLTON OFFICE SYSTEMS LTD,101652
North East Lincolnshire Council,http://statistics.data.gov.uk/id/local-authority/00FC),Chief Executive,Ad Joint Delivery,Bus Support & Customer Serv,Print Stationery / Gen Off Exp,Printing And Stationery,LD103,1/28/2016,390758,373.53,REVENUE,UNITED CARLTON OFFICE SYSTEMS LTD,101652
North East Lincolnshire Council,http://statistics.data.gov.uk/id/local-authority/00FC),Chief Executive,Ad Joint Delivery,Bus Support & Customer Serv,Print Stationery / Gen Off Exp,Printing And Stationery,LD103,1/12/2016,389107,253.77,REVENUE,UNITED CARLTON OFFICE SYSTEMS LTD,101652
North East Lincolnshire Council,http://statistics.data.gov.uk/id/local-authority/00FC),Chief Executive,Ad Joint Delivery,Bus Support & Customer Serv,Print Stationery / Gen Off Exp,Printing And Stationery,LD103,1/28/2016,390767,270.16,REVENUE,UNITED CARLTON OFFICE SYSTEMS LTD,101652
North East Lincolnshire Council,http://statistics.data.gov.uk/id/local-authority/00FC),Chief Executive,Ad Joint Delivery,Bus Support & Customer Serv,Print Stationery / Gen Off Exp,Printing And Stationery,LD103,1/28/2016,390768,283.59,REVENUE,UNITED CARLTON OFFICE SYSTEMS LTD,101652
North East Lincolnshire Council,http://statistics.data.gov.uk/id/local-authority/00FC),Chief Executive,Ad Governance And Democracy,Registrars & Civic Services,Direct Transport Costs,Vehicles - Running Costs,JA104,1/5/2016,387989,710,REVENUE,APEX CARS,102226
North East Lincolnshire Council,http://statistics.data.gov.uk/id/local-authority/00FC),Chief Executive,Ad Governance And Democracy,Registrars & Civic Services,Direct Transport Costs,Vehicles - Running Costs,JA104,1/29/2016,391718,865,REVENUE,APEX CARS,102226
North East Lincolnshire Council,http://statistics.data.gov.uk/id/local-authority/00FC),Chief Executive,Ad Governance And Democracy,Registrars & Civic Services,Miscellaneous Expenses,Civic Regalia And Events,LL117,1/5/2016,388318,283.33,REVENUE,KINGSWAY HOTEL,100818
North East Lincolnshire Council,http://statistics.data.gov.uk/id/local-authority/00FC),Chief Executive,Ad Governance And Democracy,Registrars & Civic Services,Miscellaneous Expenses,Civic Regalia And Events,LL117,1/5/2016,388319,334.58,REVENUE,KINGSWAY HOTEL,100818
North East Lincolnshire Council,http://statistics.data.gov.uk/id/local-authority/00FC),Chief Executive,Ad Governance And Democracy,Ad Governance & Democracy,Car Allowances,Travel - Employees,JF101,1/7/2016,389046,-72.6,REVENUE,CLICK TRAVEL,127476
North East Lincolnshire Council,http://statistics.data.gov.uk/id/local-authority/00FC),Chief Executive,Ad Law,Coroners,Rents,Room Hire,GC103,1/14/2016,388867,460,REVENUE,CLEETHORPES CHARTER TRUSTEES,101604
North East Lincolnshire Council,http://statistics.data.gov.uk/id/local-authority/00FC),Chief Executive,Ad Law,Coroners,Rents,Room Hire,GC103,1/12/2016,388862,420,REVENUE,NORTH LINCOLNSHIRE COUNCIL,101186
North East Lincolnshire Council,http://statistics.data.gov.uk/id/local-authority/00FC),Chief Executive,Ad Law,Coroners,Other Agencies,Mortuary Storage Charges,PJ156,1/5/2016,388139,6646,REVENUE,N LINCS & GOOLE HOSPITALS NHS,111074
North East Lincolnshire Council,http://statistics.data.gov.uk/id/local-authority/00FC),Chief Executive,Ad Law,Coroners,Other Agencies,Mortuary Storage Charges,PJ156,1/5/2016,388140,2890,REVENUE,N LINCS & GOOLE HOSPITALS NHS,111074
North East Lincolnshire Council,http://statistics.data.gov.uk/id/local-authority/00FC),Chief Executive,Ad Law,Coroners,Other Agencies,Mortuary Storage Charges,PJ156,1/14/2016,389902,1210,REVENUE,SHEFFIELD CHILDREN'S NHS TRUST,100955
North East Lincolnshire Council,http://statistics.data.gov.uk/id/local-authority/00FC),Chief Executive,Ad Law,Coroners,Other Agencies,Post Mortems,PJ148,1/19/2016,390350,3335.82,REVENUE,UNIVERSITY HOSPITALS OF LEICESTER NHS TRUST,107238
North East Lincolnshire Council,http://statistics.data.gov.uk/id/local-authority/00FC),Chief Executive,Ad Law,Coroners,Other Agencies,Post Mortems,PJ148,1/5/2016,387971,591.9,REVENUE,REDACTED PERSONAL INFORMATION,REDACTED PERSONAL INFORMATION
North East Lincolnshire Council,http://statistics.data.gov.uk/id/local-authority/00FC),Chief Executive,Ad Law,Coroners,Other Agencies,Post Mortems,PJ148,1/4/2016,388076,353,REVENUE,SHEFFIELD TEACHING HOSPITALS NHS TRUST,101211
North East Lincolnshire Council,http://statistics.data.gov.uk/id/local-authority/00FC),Chief Executive,Ad Law,Coroners,Other Agencies,Post Mortems,PJ148,1/11/2016,388695,536.74,REVENUE,SHEFFIELD TEACHING HOSPITALS NHS TRUST,101211
North East Lincolnshire Council,http://statistics.data.gov.uk/id/local-authority/00FC),Chief Executive,Ad Law,Coroners,Other Agencies,Post Mortems,PJ148,1/18/2016,389961,339.8,REVENUE,REDACTED PERSONAL INFORMATION,REDACTED PERSONAL INFORMATION
North East Lincolnshire Council,http://statistics.data.gov.uk/id/local-authority/00FC),Chief Executive,Ad Law,Coroners,Other Agencies,Post Mortems,PJ148,1/14/2016,389899,350,REVENUE,NEWCASTLE UPON TYNE HOSPITALS NHS,132434
North East Lincolnshire Council,http://statistics.data.gov.uk/id/local-authority/00FC),Chief Executive,Ad Law,Legal Services,Consultancy,Consultancy,PL101,1/7/2016,388460,495,REVENUE,SLR CONSULTING LTD,129190
North East Lincolnshire Council,http://statistics.data.gov.uk/id/local-authority/00FC),Chief Executive,Ad Law,Legal Services,Miscellaneous Expenses,Legal Fees - General,LL103,1/5/2016,388065,299.75,REVENUE,LEXTOX DRUG & ALCOHOL TESTING,125634
North East Lincolnshire Council,http://statistics.data.gov.uk/id/local-authority/00FC),Chief Executive,Ad Law,Legal Services,Miscellaneous Expenses,Legal Fees - General,LL103,1/5/2016,388071,304.25,REVENUE,LEXTOX DRUG & ALCOHOL TESTING,125634
North East Lincolnshire Council,http://statistics.data.gov.uk/id/local-authority/00FC),Chief Executive,Ad Law,Legal Services,Miscellaneous Expenses,Legal Fees - General,LL103,1/5/2016,388079,1192,REVENUE,LEXTOX DRUG & ALCOHOL TESTING,125634
North East Lincolnshire Council,http://statistics.data.gov.uk/id/local-authority/00FC),Chief Executive,Ad Law,Legal Services,Miscellaneous Expenses,Legal Fees - General,LL103,1/5/2016,388149,493.25,REVENUE,LEXTOX DRUG & ALCOHOL TESTING,125634
North East Lincolnshire Council,http://statistics.data.gov.uk/id/local-authority/00FC),Chief Executive,Ad Law,Legal Services,Miscellaneous Expenses,Legal Fees - General,LL103,1/5/2016,388064,313.25,REVENUE,LEXTOX DRUG & ALCOHOL TESTING,125634
North East Lincolnshire Council,http://statistics.data.gov.uk/id/local-authority/00FC),Chief Executive,Ad Law,Legal Services,Miscellaneous Expenses,Legal Fees - General,LL103,1/5/2016,388062,474,REVENUE,LEXTOX DRUG & ALCOHOL TESTING,125634
North East Lincolnshire Council,http://statistics.data.gov.uk/id/local-authority/00FC),Chief Executive,Ad Law,Legal Services,Miscellaneous Expenses,Legal Fees - General,LL103,1/5/2016,388063,435.09,REVENUE,LEXTOX DRUG & ALCOHOL TESTING,125634
North East Lincolnshire Council,http://statistics.data.gov.uk/id/local-authority/00FC),Chief Executive,Ad Law,Legal Services,Miscellaneous Expenses,Legal Fees - General,LL103,1/5/2016,388152,1217,REVENUE,LEXTOX DRUG & ALCOHOL TESTING,125634
North East Lincolnshire Council,http://statistics.data.gov.uk/id/local-authority/00FC),Chief Executive,Ad Law,Legal Services,Miscellaneous Expenses,Legal Fees - General,LL103,1/5/2016,388151,1217,REVENUE,LEXTOX DRUG & ALCOHOL TESTING,125634
North East Lincolnshire Council,http://statistics.data.gov.uk/id/local-authority/00FC),Chief Executive,Ad Law,Legal Services,Miscellaneous Expenses,Legal Fees - General,LL103,1/29/2016,391746,1137.5,REVENUE,PROFESSOR ANN M MORTIMER,111064
North East Lincolnshire Council,http://statistics.data.gov.uk/id/local-authority/00FC),Chief Executive,Ad Law,Legal Services,Miscellaneous Expenses,Legal Fees - General,LL103,1/12/2016,388798,877.5,REVENUE,MISS JACQUI THOMAS,129005
North East Lincolnshire Council,http://statistics.data.gov.uk/id/local-authority/00FC),Chief Executive,Ad Law,Legal Services,Miscellaneous Expenses,Legal Fees - General,LL103,1/7/2016,388789,2425,REVENUE,MS LINDA CAINS,126873
North East Lincolnshire Council,http://statistics.data.gov.uk/id/local-authority/00FC),Chief Executive,Ad Law,Legal Services,Miscellaneous Expenses,Legal Fees - General,LL103,1/7/2016,388794,863.33,REVENUE,MISS TARYN LEE QC,127409
North East Lincolnshire Council,http://statistics.data.gov.uk/id/local-authority/00FC),Chief Executive,Ad Law,Legal Services,Miscellaneous Expenses,Legal Fees - General,LL103,1/7/2016,388795,2642.48,REVENUE,MISS TARYN LEE QC,127409
North East Lincolnshire Council,http://statistics.data.gov.uk/id/local-authority/00FC),Chief Executive,Ad Law,Legal Services,Miscellaneous Expenses,Legal Fees - General,LL103,1/7/2016,388786,3330,REVENUE,MISS TARYN LEE QC,127409
North East Lincolnshire Council,http://statistics.data.gov.uk/id/local-authority/00FC),Chief Executive,Ad Law,Legal Services,Miscellaneous Expenses,Legal Fees - General,LL103,1/29/2016,391729,270,REVENUE,MISS NAOMI MADDERSON,103810
North East Lincolnshire Council,http://statistics.data.gov.uk/id/local-authority/00FC),Chief Executive,Ad Law,Legal Services,Miscellaneous Expenses,Legal Fees - General,LL103,1/19/2016,390348,920,REVENUE,MR JAMES A GOODWIN,123497
North East Lincolnshire Council,http://statistics.data.gov.uk/id/local-authority/00FC),Chief Executive,Ad Law,Legal Services,Miscellaneous Expenses,Legal Fees - General,LL103,1/5/2016,388166,1375.78,REVENUE,BG SOLICITORS LLP,100514
North East Lincolnshire Council,http://statistics.data.gov.uk/id/local-authority/00FC),Chief Executive,Ad Law,Legal Services,Miscellaneous Expenses,Legal Fees - General,LL103,1/7/2016,388337,440,REVENUE,BATES & MOUNTAIN SOLICITORS,104183
North East Lincolnshire Council,http://statistics.data.gov.uk/id/local-authority/00FC),Chief Executive,Ad Law,Legal Services,Miscellaneous Expenses,Legal Fees - General,LL103,1/29/2016,391371,263.57,REVENUE,SYMES BAINS BROOMER SOLICITORS,104776
North East Lincolnshire Council,http://statistics.data.gov.uk/id/local-authority/00FC),Chief Executive,Ad Law,Legal Services,Miscellaneous Expenses,Legal Fees - General,LL103,1/28/2016,391121,380.5,REVENUE,SSB LAW,130495
North East Lincolnshire Council,http://statistics.data.gov.uk/id/local-authority/00FC),Chief Executive,Ad Law,Legal Services,Miscellaneous Expenses,Legal Fees - General,LL103,1/29/2016,391363,695.5,REVENUE,CARTER BROWN THE EXPERT SERVICE,106320
North East Lincolnshire Council,http://statistics.data.gov.uk/id/local-authority/00FC),Chief Executive,Ad Law,Legal Services,Miscellaneous Expenses,Legal Fees - General,LL103,1/29/2016,391366,1422.64,REVENUE,CARTER BROWN THE EXPERT SERVICE,106320
North East Lincolnshire Council,http://statistics.data.gov.uk/id/local-authority/00FC),Chief Executive,Ad Law,Legal Services,Miscellaneous Expenses,Legal Fees - General,LL103,1/29/2016,391361,1138.25,REVENUE,CARTER BROWN THE EXPERT SERVICE,106320
North East Lincolnshire Council,http://statistics.data.gov.uk/id/local-authority/00FC),Deputy Chief Executive,Ad Environment,Safer Communities P/Ship,Communications And Computing,Computer S/Ware - Maintenance,LF102,1/18/2016,390031,2150,REVENUE,PALOMA SYSTEMS LTD,108781
North East Lincolnshire Council,http://statistics.data.gov.uk/id/local-authority/00FC),Deputy Chief Executive,Ad Environment,Cemeteries & Crematorium,Rep Alterations Maint Building,Buildings - Repairs And Maint,GA102,1/5/2016,388434,7591.52,REVENUE,COFELY WORKPLACE LIMITED,123983
North East Lincolnshire Council,http://statistics.data.gov.uk/id/local-authority/00FC),Deputy Chief Executive,Ad Environment,Cemeteries & Crematorium,Equip / Furniture / Materials,Equipment - Purchase,LA101,1/21/2016,390697,1975,REVENUE,S P DAVIS MEMORIALS LIMITED,130000
North East Lincolnshire Council,http://statistics.data.gov.uk/id/local-authority/00FC),Deputy Chief Executive,Ad Environment,Cemeteries & Crematorium,Rep Alterations Maint Building,Buildings - Repairs And Maint,GA102,1/5/2016,388434,863.68,REVENUE,COFELY WORKPLACE LIMITED,123983
North East Lincolnshire Council,http://statistics.data.gov.uk/id/local-authority/00FC),Deputy Chief Executive,Ad Environment,Cemeteries & Crematorium,Grounds Maintenance Costs,Grounds Maintenance,GJ101,1/7/2016,388427,565,REVENUE,BSB SERVICES,102305
North East Lincolnshire Council,http://statistics.data.gov.uk/id/local-authority/00FC),Deputy Chief Executive,Ad Environment,Cemeteries & Crematorium,Equip / Furniture / Materials,Equipment - Purchase,LA101,1/21/2016,390697,405,REVENUE,S P DAVIS MEMORIALS LIMITED,130000
North East Lincolnshire Council,http://statistics.data.gov.uk/id/local-authority/00FC),Deputy Chief Executive,Ad Environment,Cemeteries & Crematorium,Rep Alterations Maint Building,Buildings - Repairs And Maint,GA102,1/5/2016,388434,2719.52,REVENUE,COFELY WORKPLACE LIMITED,123983
North East Lincolnshire Council,http://statistics.data.gov.uk/id/local-authority/00FC),Deputy Chief Executive,Ad Environment,Cemeteries & Crematorium,Grounds Maintenance Costs,Grounds Maintenance,GJ101,1/18/2016,390039,750,REVENUE,STUART H SOMERSCALES LTD,100586
North East Lincolnshire Council,http://statistics.data.gov.uk/id/local-authority/00FC),Deputy Chief Executive,Ad Environment,Cemeteries & Crematorium,Equip / Furniture / Materials,Equipment - Maintenance,LA104,1/5/2016,386804,252,REVENUE,ANKEF CLEANING SYSTEMS,101192
North East Lincolnshire Council,http://statistics.data.gov.uk/id/local-authority/00FC),Deputy Chief Executive,Ad Environment,Cemeteries & Crematorium,Equip / Furniture / Materials,Equipment - Purchase,LA101,1/29/2016,390699,633,REVENUE,S P DAVIS MEMORIALS LIMITED,130000
North East Lincolnshire Council,http://statistics.data.gov.uk/id/local-authority/00FC),Deputy Chief Executive,Ad Environment,Cemeteries & Crematorium,Equip / Furniture / Materials,Equipment - Purchase,LA101,1/29/2016,390949,1042,REVENUE,S P DAVIS MEMORIALS LIMITED,130000
North East Lincolnshire Council,http://statistics.data.gov.uk/id/local-authority/00FC),Deputy Chief Executive,Ad Environment,Cemeteries & Crematorium,Equip / Furniture / Materials,Equipment - Purchase,LA101,1/7/2016,388402,1040,REVENUE,S P DAVIS MEMORIALS LIMITED,130000
North East Lincolnshire Council,http://statistics.data.gov.uk/id/local-authority/00FC),Deputy Chief Executive,Ad Environment,Cemeteries & Crematorium,Equip / Furniture / Materials,Equipment - Purchase,LA101,1/7/2016,388423,551.8,REVENUE,S P DAVIS MEMORIALS LIMITED,130000
North East Lincolnshire Council,http://statistics.data.gov.uk/id/local-authority/00FC),Deputy Chief Executive,Ad Environment,Cemeteries & Crematorium,Equip / Furniture / Materials,Equipment - Purchase,LA101,1/29/2016,390696,520,REVENUE,S P DAVIS MEMORIALS LIMITED,130000
North East Lincolnshire Council,http://statistics.data.gov.uk/id/local-authority/00FC),Deputy Chief Executive,Ad Environment,Cemeteries & Crematorium,Equip / Furniture / Materials,Equipment - Purchase,LA101,1/29/2016,390950,593,REVENUE,S P DAVIS MEMORIALS LIMITED,130000
North East Lincolnshire Council,http://statistics.data.gov.uk/id/local-authority/00FC),Deputy Chief Executive,Ad Environment,Cemeteries & Crematorium,Equip / Furniture / Materials,Equipment - Purchase,LA101,1/29/2016,390695,455,REVENUE,S P DAVIS MEMORIALS LIMITED,130000
North East Lincolnshire Council,http://statistics.data.gov.uk/id/local-authority/00FC),Deputy Chief Executive,Ad Environment,Cemeteries & Crematorium,Equip / Furniture / Materials,Equipment - Purchase,LA101,1/21/2016,390951,631,REVENUE,S P DAVIS MEMORIALS LIMITED,130000
North East Lincolnshire Council,http://statistics.data.gov.uk/id/local-authority/00FC),Deputy Chief Executive,Ad Environment,Cemeteries & Crematorium,Equip / Furniture / Materials,Equipment - Purchase,LA101,1/5/2016,383268,680,REVENUE,THE COLUMBARIA COMPANY,100621
North East Lincolnshire Council,http://statistics.data.gov.uk/id/local-authority/00FC),Deputy Chief Executive,Ad Environment,Cemeteries & Crematorium,Equip / Furniture / Materials,Equipment - Purchase,LA101,1/28/2016,390964,645.6,REVENUE,BRIDGE INSURANCE BROKERS LTD,128411
North East Lincolnshire Council,http://statistics.data.gov.uk/id/local-authority/00FC),Deputy Chief Executive,Ad Environment,Cemeteries & Crematorium,Equip / Furniture / Materials,Equipment - Purchase,LA101,2/1/2016,391792,363.37,REVENUE,ARGOS BUSINESS SOLUTIONS,101032
North East Lincolnshire Council,http://statistics.data.gov.uk/id/local-authority/00FC),Deputy Chief Executive,Ad Environment,Cemeteries & Crematorium,Equip / Furniture / Materials,Equipment - Purchase,LA101,1/28/2016,391288,452.82,REVENUE,BRIDGE INSURANCE BROKERS LTD,128411
North East Lincolnshire Council,http://statistics.data.gov.uk/id/local-authority/00FC),Deputy Chief Executive,Ad Environment,Cemeteries & Crematorium,Clothes Uniforms And Laundry,Protective Clothing,LC101,1/21/2016,388479,-17.29,REVENUE,ARCO LTD,100509
North East Lincolnshire Council,http://statistics.data.gov.uk/id/local-authority/00FC),Deputy Chief Executive,Ad Environment,Cemeteries & Crematorium,Grants And Subscriptions,Subscriptions,LJ101,1/29/2016,391420,839.6,REVENUE,FBCA,103945
North East Lincolnshire Council,http://statistics.data.gov.uk/id/local-authority/00FC),Deputy Chief Executive,Ad Environment,Garage & Fleet Strategy,Indirect Employee Expenses,Staff Training,EB122,1/7/2016,388366,468,REVENUE,APSE,101174
North East Lincolnshire Council,http://statistics.data.gov.uk/id/local-authority/00FC),Deputy Chief Executive,Ad Environment,Garage & Fleet Strategy,Direct Transport Costs,Vehicles - Repairs And Maint,JA105,1/19/2016,389923,309.83,REVENUE,FLEET FACTORS LTD,100886
North East Lincolnshire Council,http://statistics.data.gov.uk/id/local-authority/00FC),Deputy Chief Executive,Ad Environment,Garage & Fleet Strategy,Direct Transport Costs,Vehicles - Repairs And Maint,JA105,1/7/2016,388384,334.6,REVENUE,B A BUSH & SON LTD,101828
North East Lincolnshire Council,http://statistics.data.gov.uk/id/local-authority/00FC),Deputy Chief Executive,Ad Environment,Garage & Fleet Strategy,Direct Transport Costs,Vehicles - Repairs And Maint,JA105,1/7/2016,388381,563.1,REVENUE,B A BUSH & SON LTD,101828
North East Lincolnshire Council,http://statistics.data.gov.uk/id/local-authority/00FC),Deputy Chief Executive,Ad Environment,Garage & Fleet Strategy,Direct Transport Costs,Vehicles - Repairs And Maint,JA105,1/7/2016,388386,550.95,REVENUE,FLEET FACTORS LTD,100886
North East Lincolnshire Council,http://statistics.data.gov.uk/id/local-authority/00FC),Deputy Chief Executive,Ad Environment,Garage & Fleet Strategy,Direct Transport Costs,Vehicles - Repairs And Maint,JA105,1/7/2016,388387,2791.27,REVENUE,FLEET FACTORS LTD,100886
North East Lincolnshire Council,http://statistics.data.gov.uk/id/local-authority/00FC),Deputy Chief Executive,Ad Environment,Garage & Fleet Strategy,Direct Transport Costs,Vehicles - Repairs And Maint,JA105,1/7/2016,388389,518.62,REVENUE,FLEET FACTORS LTD,100886
North East Lincolnshire Council,http://statistics.data.gov.uk/id/local-authority/00FC),Deputy Chief Executive,Ad Environment,Garage & Fleet Strategy,Direct Transport Costs,Vehicles - Repairs And Maint,JA105,1/7/2016,388374,628.26,REVENUE,FLEET FACTORS LTD,100886
North East Lincolnshire Council,http://statistics.data.gov.uk/id/local-authority/00FC),Deputy Chief Executive,Ad Environment,Garage & Fleet Strategy,Direct Transport Costs,Vehicles - Repairs And Maint,JA105,1/7/2016,388375,3745.91,REVENUE,FLEET FACTORS LTD,100886
North East Lincolnshire Council,http://statistics.data.gov.uk/id/local-authority/00FC),Deputy Chief Executive,Ad Environment,Garage & Fleet Strategy,Direct Transport Costs,Vehicles - Repairs And Maint,JA105,1/14/2016,388391,969.21,REVENUE,FLEET FACTORS LTD,100886
North East Lincolnshire Council,http://statistics.data.gov.uk/id/local-authority/00FC),Deputy Chief Executive,Ad Environment,Garage & Fleet Strategy,Direct Transport Costs,Vehicles - Repairs And Maint,JA105,1/7/2016,388365,769.92,REVENUE,FLEET FACTORS LTD,100886
North East Lincolnshire Council,http://statistics.data.gov.uk/id/local-authority/00FC),Deputy Chief Executive,Ad Environment,Garage & Fleet Strategy,Direct Transport Costs,Vehicles - Repairs And Maint,JA105,1/7/2016,388367,303.53,REVENUE,FLEET FACTORS LTD,100886
North East Lincolnshire Council,http://statistics.data.gov.uk/id/local-authority/00FC),Deputy Chief Executive,Ad Environment,Garage & Fleet Strategy,Direct Transport Costs,Vehicles - Repairs And Maint,JA105,1/7/2016,388368,3055.54,REVENUE,FLEET FACTORS LTD,100886
North East Lincolnshire Council,http://statistics.data.gov.uk/id/local-authority/00FC),Deputy Chief Executive,Ad Environment,Garage & Fleet Strategy,Direct Transport Costs,Vehicles - Repairs And Maint,JA105,1/7/2016,388364,5030.05,REVENUE,FLEET FACTORS LTD,100886
North East Lincolnshire Council,http://statistics.data.gov.uk/id/local-authority/00FC),Deputy Chief Executive,Ad Environment,Garage & Fleet Strategy,Direct Transport Costs,Vehicles - Repairs And Maint,JA105,1/7/2016,388369,625.24,REVENUE,FLEET FACTORS LTD,100886
North East Lincolnshire Council,http://statistics.data.gov.uk/id/local-authority/00FC),Deputy Chief Executive,Ad Environment,Garage & Fleet Strategy,Direct Transport Costs,Vehicles - Repairs And Maint,JA105,1/7/2016,388339,422.52,REVENUE,B A BUSH & SON LTD,101828
North East Lincolnshire Council,http://statistics.data.gov.uk/id/local-authority/00FC),Deputy Chief Executive,Ad Environment,Garage & Fleet Strategy,Direct Transport Costs,Vehicles - Repairs And Maint,JA105,1/7/2016,388348,430,REVENUE,B A BUSH & SON LTD,101828
North East Lincolnshire Council,http://statistics.data.gov.uk/id/local-authority/00FC),Deputy Chief Executive,Ad Environment,Garage & Fleet Strategy,Direct Transport Costs,Vehicles - Repairs And Maint,JA105,1/7/2016,388351,528.38,REVENUE,WR MATERIAL HANDLING LTD,101388
North East Lincolnshire Council,http://statistics.data.gov.uk/id/local-authority/00FC),Deputy Chief Executive,Ad Environment,Garage & Fleet Strategy,Direct Transport Costs,Vehicles - Repairs And Maint,JA105,1/7/2016,388361,571.28,REVENUE,WR MATERIAL HANDLING LTD,101388
North East Lincolnshire Council,http://statistics.data.gov.uk/id/local-authority/00FC),Deputy Chief Executive,Ad Environment,Garage & Fleet Strategy,Direct Transport Costs,Vehicles - Repairs And Maint,JA105,1/28/2016,390788,530.24,REVENUE,P A DE STE CROIX & SON,103824
North East Lincolnshire Council,http://statistics.data.gov.uk/id/local-authority/00FC),Deputy Chief Executive,Ad Environment,Grounds And Street Cleansing,Rep Alterations Maint Building,Buildings - Repairs And Maint,GA102,1/14/2016,389102,332,REVENUE,E K M LTD,101926
North East Lincolnshire Council,http://statistics.data.gov.uk/id/local-authority/00FC),Deputy Chief Executive,Ad Environment,Grounds And Street Cleansing,Rep Alterations Maint Building,Buildings - Repairs And Maint,GA102,1/7/2016,388519,1190,REVENUE,E K M LTD,101926
North East Lincolnshire Council,http://statistics.data.gov.uk/id/local-authority/00FC),Deputy Chief Executive,Ad Environment,Grounds And Street Cleansing,Rep Alterations Maint Building,Buildings - Repairs And Maint,GA102,1/14/2016,389639,610,REVENUE,E K M LTD,101926
North East Lincolnshire Council,http://statistics.data.gov.uk/id/local-authority/00FC),Deputy Chief Executive,Ad Environment,Grounds And Street Cleansing,Rep Alterations Maint Building,Buildings - Repairs And Maint,GA102,1/12/2016,389104,450,REVENUE,E K M LTD,101926
North East Lincolnshire Council,http://statistics.data.gov.uk/id/local-authority/00FC),Deputy Chief Executive,Ad Environment,Grounds And Street Cleansing,Rep Alterations Maint Building,Buildings - Repairs And Maint,GA102,1/7/2016,388518,284,REVENUE,E K M LTD,101926
North East Lincolnshire Council,http://statistics.data.gov.uk/id/local-authority/00FC),Deputy Chief Executive,Ad Environment,Grounds And Street Cleansing,Direct Transport Costs,Vehicles - Running Costs,JA104,1/7/2016,389114,266.4,REVENUE,ALLSTAR BUSINESS SOLUTIONS LTD,108278
North East Lincolnshire Council,http://statistics.data.gov.uk/id/local-authority/00FC),Deputy Chief Executive,Ad Environment,Grounds And Street Cleansing,Equip / Furniture / Materials,Equipment - Maintenance,LA104,1/7/2016,388527,847.5,REVENUE,CHARLES H HILL LIMITED,101375
North East Lincolnshire Council,http://statistics.data.gov.uk/id/local-authority/00FC),Deputy Chief Executive,Ad Environment,Grounds And Street Cleansing,Equip / Furniture / Materials,Equipment - Purchase,LA101,1/28/2016,390619,1850,REVENUE,BSB SERVICES,102305
North East Lincolnshire Council,http://statistics.data.gov.uk/id/local-authority/00FC),Deputy Chief Executive,Ad Environment,Grounds And Street Cleansing,Equip / Furniture / Materials,Equipment - Purchase,LA101,1/7/2016,388513,306,REVENUE,KRN HOUSE PLANTS,100540
North East Lincolnshire Council,http://statistics.data.gov.uk/id/local-authority/00FC),Deputy Chief Executive,Ad Environment,Grounds And Street Cleansing,Equip / Furniture / Materials,Equipment - Purchase,LA101,1/7/2016,388513,300,REVENUE,KRN HOUSE PLANTS,100540
North East Lincolnshire Council,http://statistics.data.gov.uk/id/local-authority/00FC),Deputy Chief Executive,Ad Environment,Grounds And Street Cleansing,Equip / Furniture / Materials,Equipment - Purchase,LA101,1/7/2016,388513,771.4,REVENUE,KRN HOUSE PLANTS,100540
North East Lincolnshire Council,http://statistics.data.gov.uk/id/local-authority/00FC),Deputy Chief Executive,Ad Environment,Grounds And Street Cleansing,Equip / Furniture / Materials,Equipment - Purchase,LA101,1/7/2016,388513,1596,REVENUE,KRN HOUSE PLANTS,100540
North East Lincolnshire Council,http://statistics.data.gov.uk/id/local-authority/00FC),Deputy Chief Executive,Ad Environment,Grounds And Street Cleansing,Equip / Furniture / Materials,Equipment - Purchase,LA101,1/7/2016,388513,517,REVENUE,KRN HOUSE PLANTS,100540
North East Lincolnshire Council,http://statistics.data.gov.uk/id/local-authority/00FC),Deputy Chief Executive,Ad Environment,Grounds And Street Cleansing,Equip / Furniture / Materials,Equipment - Purchase,LA101,1/14/2016,389095,315,REVENUE,B&S CHAINS (MIDLANDS) LTD,104916
North East Lincolnshire Council,http://statistics.data.gov.uk/id/local-authority/00FC),Deputy Chief Executive,Ad Environment,Grounds And Street Cleansing,Equip / Furniture / Materials,Equipment - Purchase,LA101,1/14/2016,389095,379,REVENUE,B&S CHAINS (MIDLANDS) LTD,104916
North East Lincolnshire Council,http://statistics.data.gov.uk/id/local-authority/00FC),Deputy Chief Executive,Ad Environment,Grounds And Street Cleansing,Equip / Furniture / Materials,Equipment - Purchase,LA101,1/14/2016,389095,958.8,REVENUE,B&S CHAINS (MIDLANDS) LTD,104916
North East Lincolnshire Council,http://statistics.data.gov.uk/id/local-authority/00FC),Deputy Chief Executive,Ad Environment,Grounds And Street Cleansing,Equip / Furniture / Materials,Equipment - Purchase,LA101,1/11/2016,388539,1690,REVENUE,CROMWELL POLYTHENE LTD,101183
North East Lincolnshire Council,http://statistics.data.gov.uk/id/local-authority/00FC),Deputy Chief Executive,Ad Environment,Grounds And Street Cleansing,Equip / Furniture / Materials,Equipment - Purchase,LA101,1/18/2016,389673,1320,REVENUE,FLEET LINE MARKERS LIMITED,100595
North East Lincolnshire Council,http://statistics.data.gov.uk/id/local-authority/00FC),Deputy Chief Executive,Ad Environment,Grounds And Street Cleansing,Equip / Furniture / Materials,Equipment - Purchase,LA101,1/7/2016,388335,310.8,REVENUE,ARCO LTD,100509
North East Lincolnshire Council,http://statistics.data.gov.uk/id/local-authority/00FC),Deputy Chief Executive,Ad Environment,Grounds And Street Cleansing,Equip / Furniture / Materials,Equipment - Purchase,LA101,1/28/2016,390741,2995,REVENUE,SHERRIFF AMENITY SERVICES,101298
North East Lincolnshire Council,http://statistics.data.gov.uk/id/local-authority/00FC),Deputy Chief Executive,Ad Environment,Grounds And Street Cleansing,Communications And Computing,Telephones,LF112,1/14/2016,389663,456,REVENUE,RADPHONE LTD,101671
North East Lincolnshire Council,http://statistics.data.gov.uk/id/local-authority/00FC),Deputy Chief Executive,Ad Environment,Grounds And Street Cleansing,Equip / Furniture / Materials,Equipment - Purchase,LA101,1/21/2016,390820,467.5,REVENUE,NORTHERN MUNICIPAL SPARES LTD,103102
North East Lincolnshire Council,http://statistics.data.gov.uk/id/local-authority/00FC),Deputy Chief Executive,Ad Environment,Grounds And Street Cleansing,Equip / Furniture / Materials,Equipment - Purchase,LA101,1/21/2016,390821,450.5,REVENUE,NORTHERN MUNICIPAL SPARES LTD,103102
North East Lincolnshire Council,http://statistics.data.gov.uk/id/local-authority/00FC),Deputy Chief Executive,Ad Environment,Grounds And Street Cleansing,Equip / Furniture / Materials,Equipment - Purchase,LA101,1/21/2016,390822,-450.5,REVENUE,NORTHERN MUNICIPAL SPARES LTD,103102
North East Lincolnshire Council,http://statistics.data.gov.uk/id/local-authority/00FC),Deputy Chief Executive,Ad Environment,Grounds And Street Cleansing,Equip / Furniture / Materials,Equipment - Purchase,LA101,1/21/2016,390821,1141.2,REVENUE,NORTHERN MUNICIPAL SPARES LTD,103102
North East Lincolnshire Council,http://statistics.data.gov.uk/id/local-authority/00FC),Deputy Chief Executive,Ad Environment,Grounds And Street Cleansing,Equip / Furniture / Materials,Equipment - Purchase,LA101,1/21/2016,390821,900.5,REVENUE,NORTHERN MUNICIPAL SPARES LTD,103102
North East Lincolnshire Council,http://statistics.data.gov.uk/id/local-authority/00FC),Deputy Chief Executive,Ad Environment,Grounds And Street Cleansing,Communications And Computing,Telephones,LF112,1/14/2016,389663,276,REVENUE,RADPHONE LTD,101671
North East Lincolnshire Council,http://statistics.data.gov.uk/id/local-authority/00FC),Deputy Chief Executive,Ad Environment,Grounds And Street Cleansing,Private Contractors,Third Party Prov - Private,PH101,1/21/2016,390467,6705.01,REVENUE,INITIAL MEDICAL SERVICES LTD,102141
North East Lincolnshire Council,http://statistics.data.gov.uk/id/local-authority/00FC),Deputy Chief Executive,Ad Environment,Grounds And Street Cleansing,Private Contractors,Third Party Prov - Private,PH101,1/18/2016,389881,3259.5,REVENUE,COFELY WORKPLACE LIMITED,123983
North East Lincolnshire Council,http://statistics.data.gov.uk/id/local-authority/00FC),Deputy Chief Executive,Ad Environment,Grounds And Street Cleansing,Rep Alterations Maint Building,Buildings - Repairs And Maint,GA102,1/14/2016,389099,1855,REVENUE,COFELY WORKPLACE LIMITED,123983
North East Lincolnshire Council,http://statistics.data.gov.uk/id/local-authority/00FC),Deputy Chief Executive,Ad Environment,Grounds And Street Cleansing,Rep Alterations Maint Building,Buildings - Repairs And Maint,GA102,1/14/2016,389100,325,REVENUE,COFELY WORKPLACE LIMITED,123983
North East Lincolnshire Council,http://statistics.data.gov.uk/id/local-authority/00FC),Deputy Chief Executive,Ad Environment,Grounds And Street Cleansing,Rep Alterations Maint Building,Buildings - Repairs And Maint,GA102,1/11/2016,386015,1270,REVENUE,HARROQUIP PUMP SYSTEMS,103412
North East Lincolnshire Council,http://statistics.data.gov.uk/id/local-authority/00FC),Deputy Chief Executive,Ad Environment,Grounds And Street Cleansing,Rep Alterations Maint Building,Buildings - Repairs And Maint,GA102,1/12/2016,387984,840,REVENUE,BCJ CONSTRUCTION LTD,112224
North East Lincolnshire Council,http://statistics.data.gov.uk/id/local-authority/00FC),Deputy Chief Executive,Ad Environment,Grounds And Street Cleansing,Rents,Rent,GC101,1/11/2016,388540,736.5,REVENUE,ASSOCIATED BRITISH PORTS,100834
North East Lincolnshire Council,http://statistics.data.gov.uk/id/local-authority/00FC),Deputy Chief Executive,Ad Environment,Neighbourhood Serv Mgmt A/C,Direct Employee Expenses,Agency Staff,EA105,1/7/2016,388508,18144,REVENUE,PENNA COMMUNICATIONS,102320
North East Lincolnshire Council,http://statistics.data.gov.uk/id/local-authority/00FC),Deputy Chief Executive,Ad Environment,Neighbourhood Serv Mgmt A/C,Direct Employee Expenses,Agency Staff,EA105,1/21/2016,390625,12097.5,REVENUE,PENNA COMMUNICATIONS,102320
North East Lincolnshire Council,http://statistics.data.gov.uk/id/local-authority/00FC),Deputy Chief Executive,Ad Environment,Neighbourhood Serv Mgmt A/C,Expenses,Course/Conf Accom - Employees,LH102,1/28/2016,390286,1400,REVENUE,REDACTED PERSONAL INFORMATION,REDACTED PERSONAL INFORMATION
North East Lincolnshire Council,http://statistics.data.gov.uk/id/local-authority/00FC),Deputy Chief Executive,Ad Environment,Waste Services,Rep Alterations Maint Building,Buildings - Repairs And Maint,GA102,1/5/2016,387444,560,REVENUE,ESE LTD,106583
North East Lincolnshire Council,http://statistics.data.gov.uk/id/local-authority/00FC),Deputy Chief Executive,Ad Environment,Waste Services,Rep Alterations Maint Building,Buildings - Repairs And Maint,GA102,1/5/2016,387443,4017,REVENUE,ESE LTD,106583
North East Lincolnshire Council,http://statistics.data.gov.uk/id/local-authority/00FC),Deputy Chief Executive,Ad Environment,Waste Services,Contract Hire-Operating Leases,Vehicles - Contract Hire,JC101,1/21/2016,389950,2160,REVENUE,RIVERSIDE TRUCK RENTAL LTD,132217
North East Lincolnshire Council,http://statistics.data.gov.uk/id/local-authority/00FC),Deputy Chief Executive,Ad Environment,Waste Services,Contract Hire-Operating Leases,Vehicles - Contract Hire,JC101,1/21/2016,389951,2160,REVENUE,RIVERSIDE TRUCK RENTAL LTD,132217
North East Lincolnshire Council,http://statistics.data.gov.uk/id/local-authority/00FC),Deputy Chief Executive,Ad Environment,Waste Services,Contract Hire-Operating Leases,Vehicles - Contract Hire,JC101,1/21/2016,389952,2160,REVENUE,RIVERSIDE TRUCK RENTAL LTD,132217
North East Lincolnshire Council,http://statistics.data.gov.uk/id/local-authority/00FC),Deputy Chief Executive,Ad Environment,Waste Services,Contract Hire-Operating Leases,Vehicles - Contract Hire,JC101,1/21/2016,389953,2160,REVENUE,RIVERSIDE TRUCK RENTAL LTD,132217
North East Lincolnshire Council,http://statistics.data.gov.uk/id/local-authority/00FC),Deputy Chief Executive,Ad Environment,Waste Services,Equip / Furniture / Materials,Equipment - Purchase,LA101,1/11/2016,388538,845,REVENUE,CROMWELL POLYTHENE LTD,101183
North East Lincolnshire Council,http://statistics.data.gov.uk/id/local-authority/00FC),Deputy Chief Executive,Ad Environment,Waste Services,Equip / Furniture / Materials,Equipment - Purchase,LA101,1/5/2016,386767,296.8,REVENUE,ARCO LTD,100509
North East Lincolnshire Council,http://statistics.data.gov.uk/id/local-authority/00FC),Deputy Chief Executive,Ad Environment,Waste Services,Equip / Furniture / Materials,Equipment - Purchase,LA101,1/12/2016,387921,312.25,REVENUE,ARCO LTD,100509
North East Lincolnshire Council,http://statistics.data.gov.uk/id/local-authority/00FC),Deputy Chief Executive,Ad Environment,Waste Services,Equip / Furniture / Materials,Equipment - Purchase,LA101,1/7/2016,387922,395,REVENUE,P J PRESTON AUTO ELECT LTD,100739
North East Lincolnshire Council,http://statistics.data.gov.uk/id/local-authority/00FC),Deputy Chief Executive,Ad Environment,Waste Services,Clothes Uniforms And Laundry,Protective Clothing,LC101,1/5/2016,385220,527.8,REVENUE,WESTBURY INDUSTRIAL SUPPLIES LTD,102378
North East Lincolnshire Council,http://statistics.data.gov.uk/id/local-authority/00FC),Deputy Chief Executive,Ad Environment,Waste Services,Clothes Uniforms And Laundry,Protective Clothing,LC101,1/5/2016,386800,250.24,REVENUE,ARDEN WINCH & CO lTD,122948
North East Lincolnshire Council,http://statistics.data.gov.uk/id/local-authority/00FC),Deputy Chief Executive,Ad Environment,Waste Services,Private Contractors,Third Party Prov - Private,PH101,1/19/2016,389895,436.51,REVENUE,NORTHGATE VEHICLE HIRE LTD,109432
North East Lincolnshire Council,http://statistics.data.gov.uk/id/local-authority/00FC),Deputy Chief Executive,Ad Environment,Waste Services,Private Contractors,Third Party Prov - Private,PH101,1/18/2016,389891,20326,REVENUE,C E SMITH & SONS,104444
North East Lincolnshire Council,http://statistics.data.gov.uk/id/local-authority/00FC),Deputy Chief Executive,Ad Environment,Waste Services,Private Contractors,Third Party Prov - Private,PH101,1/7/2016,388504,343.74,REVENUE,SHORELINE HOUSING PARTNERSHIP LTD,100139
North East Lincolnshire Council,http://statistics.data.gov.uk/id/local-authority/00FC),Deputy Chief Executive,Ad Environment,Safer Communities - Nelc,Communications And Computing,Postage,LF111,1/5/2016,388438,320,REVENUE,ROYAL MAIL REDIRECTION CENTRE,109555
North East Lincolnshire Council,http://statistics.data.gov.uk/id/local-authority/00FC),Deputy Chief Executive,Ad Environment,Community Protection,Clothes Uniforms And Laundry,Protective Clothing,LC101,1/19/2016,390372,-9.99,REVENUE,ARCO LTD,100509
North East Lincolnshire Council,http://statistics.data.gov.uk/id/local-authority/00FC),Deputy Chief Executive,Ad Environment,Community Protection,Print Stationery / Gen Off Exp,Publicity,LD105,1/7/2016,389119,450,REVENUE,PASTURE PET & POND LTD,102968
North East Lincolnshire Council,http://statistics.data.gov.uk/id/local-authority/00FC),Deputy Chief Executive,Ad Environment,Community Protection,Private Contractors,Third Party Prov - Private,PH101,1/4/2016,378130,400,REVENUE,REDACTED PERSONAL INFORMATION,REDACTED PERSONAL INFORMATION
North East Lincolnshire Council,http://statistics.data.gov.uk/id/local-authority/00FC),Deputy Chief Executive,Ad Environment,Community Protection,Private Contractors,Third Party Prov - Private,PH101,1/14/2016,389741,4171.18,REVENUE,SANGREAT KENNELS,103270
North East Lincolnshire Council,http://statistics.data.gov.uk/id/local-authority/00FC),Deputy Chief Executive,Ad Environment,Community Protection,Private Contractors,Third Party Prov - Private,PH101,1/7/2016,388529,2000,REVENUE,EMPOWER EMPLOYABILITY MENTORING PROGRAMME,118831
North East Lincolnshire Council,http://statistics.data.gov.uk/id/local-authority/00FC),Deputy Chief Executive,Ad Environment,Community Protection,Other Agencies,Statutory Burials,PJ147,1/21/2016,390635,1094.5,REVENUE,KETTLE FUNERAL DIRECTORS,108454
North East Lincolnshire Council,http://statistics.data.gov.uk/id/local-authority/00FC),Deputy Chief Executive,Ad Environment,Community Protection,Miscellaneous Expenses,Environmental/Health Analysis,LL120,1/11/2016,388688,328.27,REVENUE,EXOVA,120585
North East Lincolnshire Council,http://statistics.data.gov.uk/id/local-authority/00FC),Deputy Chief Executive,Ad Environment,Community Protection,Equip / Furniture / Materials,Goods For Resale,LA123,1/28/2016,389998,438.98,REVENUE,VIP SYSTEM LTD,101697
North East Lincolnshire Council,http://statistics.data.gov.uk/id/local-authority/00FC),Deputy Chief Executive,Ad Environment,Community Protection,Other Local Authorities,Third Pp - Other Local Auth,PC101,1/18/2016,389401,3175,REVENUE,CITY OF YORK COUNCIL,100874
North East Lincolnshire Council,http://statistics.data.gov.uk/id/local-authority/00FC),Deputy Chief Executive,Ad Environment,Community Protection,Private Contractors,Third Party Prov - Private,PH101,1/7/2016,388720,720,REVENUE,WAKEFIELD MD COUNCIL,100967
North East Lincolnshire Council,http://statistics.data.gov.uk/id/local-authority/00FC),Deputy Chief Executive,Ad Environment,Community Protection,Private Contractors,Third Party Prov - Private,PH101,1/21/2016,390819,450,REVENUE,WAKEFIELD MD COUNCIL,100967
North East Lincolnshire Council,http://statistics.data.gov.uk/id/local-authority/00FC),Deputy Chief Executive,Ad Environment,Community Protection,Miscellaneous Expenses,Environmental/Health Analysis,LL120,1/29/2016,391379,770.91,REVENUE,ALCONTROL LABORATORIES,100899
North East Lincolnshire Council,http://statistics.data.gov.uk/id/local-authority/00FC),Deputy Chief Executive,Ad Early Intervention,Integrated Youth Services,Public Transport,Public Transport - Employees,JD101,1/7/2016,389049,-39.8,REVENUE,CLICK TRAVEL,127476
North East Lincolnshire Council,http://statistics.data.gov.uk/id/local-authority/00FC),Deputy Chief Executive,Ad Early Intervention,Integrated Youth Services,Indirect Employee Expenses,Staff Training,EB122,1/29/2016,391713,430,REVENUE,DODS PARLIAMENTARY COMMUNICATIONS,101542
North East Lincolnshire Council,http://statistics.data.gov.uk/id/local-authority/00FC),Deputy Chief Executive,Ad Early Intervention,Integrated Youth Services,Voluntary Associations,Third Pp - Third Sector,PF101,1/14/2016,389897,1561.85,REVENUE,VOLUNTARY ACTION NORTH EAST LINCOLNSHIRE,103631
North East Lincolnshire Council,http://statistics.data.gov.uk/id/local-authority/00FC),Deputy Chief Executive,Ad Early Intervention,Childrens Health,Grants And Subscriptions,Subscriptions,LJ101,1/5/2016,388084,419,REVENUE,MA HEALTHCARE LIMITED,129237
North East Lincolnshire Council,http://statistics.data.gov.uk/id/local-authority/00FC),Deputy Chief Executive,Ad Early Intervention,Childrens Health,Miscellaneous Expenses,Medical Supplies And Services,LL109,1/28/2016,389072,252.09,REVENUE,HELAPET LTD,128720
North East Lincolnshire Council,http://statistics.data.gov.uk/id/local-authority/00FC),Deputy Chief Executive,Ad Early Intervention,Childrens Health,Grants And Subscriptions,Subscriptions,LJ101,1/11/2016,388326,359,REVENUE,MA HEALTHCARE LIMITED,129237
North East Lincolnshire Council,http://statistics.data.gov.uk/id/local-authority/00FC),Deputy Chief Executive,Ad Early Intervention,Childrens Health,Miscellaneous Expenses,Medical Supplies And Services,LL109,1/11/2016,388432,485.73,REVENUE,MACMILLAN DISTRIBUTION LTD,100548
North East Lincolnshire Council,http://statistics.data.gov.uk/id/local-authority/00FC),Deputy Chief Executive,Ad Early Intervention,Childrens Health,Miscellaneous Expenses,Licences,LL116,1/11/2016,388734,796,REVENUE,CARE QUALITY COMMISSION,108586
North East Lincolnshire Council,http://statistics.data.gov.uk/id/local-authority/00FC),Deputy Chief Executive,Ad Early Intervention,Childrens Health,Miscellaneous Expenses,Licences,LL116,1/11/2016,388734,1679,REVENUE,CARE QUALITY COMMISSION,108586
North East Lincolnshire Council,http://statistics.data.gov.uk/id/local-authority/00FC),Deputy Chief Executive,Ad Early Intervention,Childrens Health,Health Authorities,Third Pp - Health Auth,PD101,1/29/2016,391743,1236,REVENUE,EA BROADBURN DISPENSING CHEMIST,101135
North East Lincolnshire Council,http://statistics.data.gov.uk/id/local-authority/00FC),Deputy Chief Executive,Ad Early Intervention,Childrens Health,Other Agencies,Health Charges,PJ131,1/7/2016,388736,633.33,REVENUE,CASTLEROCK RECRUITMENT GROUP,119098
North East Lincolnshire Council,http://statistics.data.gov.uk/id/local-authority/00FC),Deputy Chief Executive,Ad Early Intervention,Childrens Health,Health Authorities,Third Pp - Health Auth,PD101,1/7/2016,388733,2420,REVENUE,G-MAP SERVICES,109932
North East Lincolnshire Council,http://statistics.data.gov.uk/id/local-authority/00FC),Deputy Chief Executive,Ad Early Intervention,Childrens Health,Private Contractors,Third Party Prov - Private,PH101,1/7/2016,388909,190194.83,REVENUE,LINCS PARTNERSHIP NHS FOUNDATION TRUST,105021
North East Lincolnshire Council,http://statistics.data.gov.uk/id/local-authority/00FC),Deputy Chief Executive,Ad Early Intervention,Childrens Health,Private Contractors,Third Party Prov - Private,PH101,1/19/2016,389633,190194.83,REVENUE,LINCS PARTNERSHIP NHS FOUNDATION TRUST,105021
North East Lincolnshire Council,http://statistics.data.gov.uk/id/local-authority/00FC),Deputy Chief Executive,Ad Early Intervention,Childrens Health,Other Agencies,Health Charges,PJ131,1/7/2016,388906,2227.5,REVENUE,LINCS PARTNERSHIP NHS FOUNDATION TRUST,105021
North East Lincolnshire Council,http://statistics.data.gov.uk/id/local-authority/00FC),Deputy Chief Executive,Ad Early Intervention,Childrens Health,Other Agencies,Health Charges,PJ131,1/19/2016,389635,2227.5,REVENUE,LINCS PARTNERSHIP NHS FOUNDATION TRUST,105021
North East Lincolnshire Council,http://statistics.data.gov.uk/id/local-authority/00FC),Deputy Chief Executive,Ad Early Intervention,Family Hubs,Energy Costs,Electricity,GB102,1/12/2016,389437,1494.54,REVENUE,NPOWER LIMITED,101414
North East Lincolnshire Council,http://statistics.data.gov.uk/id/local-authority/00FC),Deputy Chief Executive,Ad Early Intervention,Family Hubs,Energy Costs,Gas,GB101,1/7/2016,388714,1394.3,REVENUE,BRITISH GAS TRADING LTD,101507
North East Lincolnshire Council,http://statistics.data.gov.uk/id/local-authority/00FC),Deputy Chief Executive,Ad Early Intervention,Family Hubs,Energy Costs,Gas,GB101,1/29/2016,391364,1523.39,REVENUE,BRITISH GAS TRADING LTD,101507
North East Lincolnshire Council,http://statistics.data.gov.uk/id/local-authority/00FC),Deputy Chief Executive,Ad Early Intervention,Family Hubs,Cleaning And Domestic Supplies,Cleaning - Services,GH102,1/5/2016,387983,561.22,REVENUE,FUTURE CLEANING SERVICES LTD,102557
North East Lincolnshire Council,http://statistics.data.gov.uk/id/local-authority/00FC),Deputy Chief Executive,Ad Early Intervention,Family Hubs,Water Services,Water,GE101,1/5/2016,387939,256.31,REVENUE,ANGLIAN WATER,100508
North East Lincolnshire Council,http://statistics.data.gov.uk/id/local-authority/00FC),Deputy Chief Executive,Ad Early Intervention,Family Hubs,Grounds Maintenance Costs,Grounds Maintenance,GJ101,1/18/2016,390374,260,REVENUE,STEVE AUSTWICK GARDEN SERVICES,109384
North East Lincolnshire Council,http://statistics.data.gov.uk/id/local-authority/00FC),Deputy Chief Executive,Ad Early Intervention,Family Hubs,Indirect Employee Expenses,Staff Training,EB122,1/5/2016,388400,500,REVENUE,CAPITA BUSINESS SERVICES LTD,102314
North East Lincolnshire Council,http://statistics.data.gov.uk/id/local-authority/00FC),Deputy Chief Executive,Ad Early Intervention,Family Hubs,Other Agencies,Other,PJ121,1/14/2016,389758,986,REVENUE,N LINCS & GOOLE HOSPITALS NHS,111074
North East Lincolnshire Council,http://statistics.data.gov.uk/id/local-authority/00FC),Deputy Chief Executive,Ad Early Intervention,Family Hubs,Other Agencies,Other,PJ121,1/14/2016,389759,7869,REVENUE,N LINCS & GOOLE HOSPITALS NHS,111074
North East Lincolnshire Council,http://statistics.data.gov.uk/id/local-authority/00FC),Deputy Chief Executive,Ad Early Intervention,Family Hubs,Cleaning And Domestic Supplies,Refuse Collection,GH104,1/28/2016,390783,357.24,REVENUE,BIFFA WASTE SERVICES LTD,100515
North East Lincolnshire Council,http://statistics.data.gov.uk/id/local-authority/00FC),Deputy Chief Executive,Ad Early Intervention,Family Hubs,Energy Costs,Electricity,GB102,1/5/2016,388134,272.48,REVENUE,EDWARD HENEAGE PRIMARY (ACADEMY),111742
North East Lincolnshire Council,http://statistics.data.gov.uk/id/local-authority/00FC),Deputy Chief Executive,Ad Early Intervention,Family Hubs,Energy Costs,Electricity,GB102,1/5/2016,388135,296.54,REVENUE,EDWARD HENEAGE PRIMARY (ACADEMY),111742
North East Lincolnshire Council,http://statistics.data.gov.uk/id/local-authority/00FC),Deputy Chief Executive,Ad Early Intervention,Family Hubs,Cleaning And Domestic Supplies,Cleaning - Services,GH102,1/19/2016,389651,624,REVENUE,FOR UNDER FIVES LTD,100647
North East Lincolnshire Council,http://statistics.data.gov.uk/id/local-authority/00FC),Deputy Chief Executive,Ad Early Intervention,Family Hubs,Grounds Maintenance Costs,Grounds Maintenance,GJ101,1/18/2016,390376,260,REVENUE,STEVE AUSTWICK GARDEN SERVICES,109384
North East Lincolnshire Council,http://statistics.data.gov.uk/id/local-authority/00FC),Deputy Chief Executive,Ad Early Intervention,Family Hubs,Rep Alterations Maint Building,Buildings - Repairs And Maint,GA102,1/11/2016,388940,775.97,REVENUE,ZIP HEATERS (UK) LTD,105238
North East Lincolnshire Council,http://statistics.data.gov.uk/id/local-authority/00FC),Deputy Chief Executive,Ad Early Intervention,Family Hubs,Energy Costs,Electricity,GB102,1/12/2016,388791,386,REVENUE,NPOWER,101368
North East Lincolnshire Council,http://statistics.data.gov.uk/id/local-authority/00FC),Deputy Chief Executive,Ad Early Intervention,Family Hubs,Energy Costs,Electricity,GB102,2/1/2016,391643,280.71,REVENUE,N POWER,101599
North East Lincolnshire Council,http://statistics.data.gov.uk/id/local-authority/00FC),Deputy Chief Executive,Ad Early Intervention,Family Hubs,Energy Costs,Electricity,GB102,2/1/2016,391647,-608.31,REVENUE,N POWER,101599
North East Lincolnshire Council,http://statistics.data.gov.uk/id/local-authority/00FC),Deputy Chief Executive,Ad Early Intervention,Family Hubs,Energy Costs,Electricity,GB102,2/1/2016,391650,286.03,REVENUE,N POWER,101599
North East Lincolnshire Council,http://statistics.data.gov.uk/id/local-authority/00FC),Deputy Chief Executive,Ad Early Intervention,Family Hubs,Services,Internal Sla'S,LE102,1/14/2016,389747,1657,REVENUE,SERCO SHARED SERVICES CENTRE,101875
North East Lincolnshire Council,http://statistics.data.gov.uk/id/local-authority/00FC),Deputy Chief Executive,Ad Early Intervention,Family Hubs,Cleaning And Domestic Supplies,Cleaning - Services,GH102,1/14/2016,389636,323.61,REVENUE,THRUNSCOE PRIMARY AND NURSERY ACADEMY,118749
North East Lincolnshire Council,http://statistics.data.gov.uk/id/local-authority/00FC),Deputy Chief Executive,Ad Early Intervention,Family Hubs,Cleaning And Domestic Supplies,Cleaning - Services,GH102,1/14/2016,389636,600.94,REVENUE,THRUNSCOE PRIMARY AND NURSERY ACADEMY,118749
North East Lincolnshire Council,http://statistics.data.gov.uk/id/local-authority/00FC),Deputy Chief Executive,Ad Early Intervention,Family Hubs,Cleaning And Domestic Supplies,Cleaning - Services,GH102,1/5/2016,387979,911.55,REVENUE,FUTURE CLEANING SERVICES LTD,102557
North East Lincolnshire Council,http://statistics.data.gov.uk/id/local-authority/00FC),Deputy Chief Executive,Ad Early Intervention,Family Hubs,Cleaning And Domestic Supplies,Cleaning - Services,GH102,1/7/2016,388685,520.24,REVENUE,FUTURE CLEANING SERVICES LTD,102557
North East Lincolnshire Council,http://statistics.data.gov.uk/id/local-authority/00FC),Deputy Chief Executive,Ad Early Intervention,Family Hubs,Cleaning And Domestic Supplies,Cleaning - Services,GH102,1/14/2016,389995,520.24,REVENUE,FUTURE CLEANING SERVICES LTD,102557
North East Lincolnshire Council,http://statistics.data.gov.uk/id/local-authority/00FC),Deputy Chief Executive,Ad Early Intervention,Family Hubs,Indirect Employee Expenses,Staff Training,EB122,1/28/2016,390704,432.5,REVENUE,LINCS INSPIRE LIMITED,129063
North East Lincolnshire Council,http://statistics.data.gov.uk/id/local-authority/00FC),Deputy Chief Executive,Ad Early Intervention,Family Hubs,Equip / Furniture / Materials,Furniture - Purchase,LA105,1/5/2016,388058,1855.6,REVENUE,KES BUILDING MAINTENANCE LIMITED,100786
North East Lincolnshire Council,http://statistics.data.gov.uk/id/local-authority/00FC),Deputy Chief Executive,Ad Early Intervention,Family Hubs,Catering,Provisions,LB101,1/5/2016,387918,-21.43,REVENUE,DEE BEE CASH & CARRY,100527
North East Lincolnshire Council,http://statistics.data.gov.uk/id/local-authority/00FC),Deputy Chief Executive,Ad Early Intervention,Family Hubs,Catering,Provisions,LB101,1/19/2016,390370,-6.79,REVENUE,DEE BEE CASH & CARRY,100527
North East Lincolnshire Council,http://statistics.data.gov.uk/id/local-authority/00FC),Deputy Chief Executive,Ad Early Intervention,Family Hubs,Equip / Furniture / Materials,Non-Teaching Resources,LA118,1/12/2016,389427,570,REVENUE,MILLMAN COACHES,100700
North East Lincolnshire Council,http://statistics.data.gov.uk/id/local-authority/00FC),Deputy Chief Executive,Ad Early Intervention,Family Hubs,Catering,Provisions,LB101,1/28/2016,390470,250,REVENUE,TESCO STORES LIMITED,102576
North East Lincolnshire Council,http://statistics.data.gov.uk/id/local-authority/00FC),Deputy Chief Executive,Ad Early Intervention,Family Hubs,Other Agencies,Further Ed Emp & Training,PJ130,1/7/2016,387978,475,REVENUE,WOMENS AID,100326
North East Lincolnshire Council,http://statistics.data.gov.uk/id/local-authority/00FC),Deputy Chief Executive,Ad Early Intervention,Family Hubs,Equip / Furniture / Materials,Non-Teaching Resources,LA118,1/5/2016,388169,332.25,REVENUE,DOLLYWOOD FOUNDATION OF THE UK,129658
North East Lincolnshire Council,http://statistics.data.gov.uk/id/local-authority/00FC),Deputy Chief Executive,Ad Early Intervention,Family Hubs,Other Agencies,Child Care Payments,PJ104,1/14/2016,389109,1015,REVENUE,CENTRE4 LIMITED,126893
North East Lincolnshire Council,http://statistics.data.gov.uk/id/local-authority/00FC),Deputy Chief Executive,Ad Early Intervention,Family Hubs,Other Agencies,Child Care Payments,PJ104,1/29/2016,391704,513.75,REVENUE,CENTRE4 LIMITED,126893
North East Lincolnshire Council,http://statistics.data.gov.uk/id/local-authority/00FC),Deputy Chief Executive,Ad Early Intervention,Family Hubs,Other Agencies,Educational Visits,PJ152,1/11/2016,388899,840,REVENUE,MILLMAN COACHES,100700
North East Lincolnshire Council,http://statistics.data.gov.uk/id/local-authority/00FC),Deputy Chief Executive,Ad Early Intervention,Family Hubs,Other Agencies,Further Ed Emp & Training,PJ130,1/5/2016,387981,780,REVENUE,FOREFRONT TRAINING LTD,105501
North East Lincolnshire Council,http://statistics.data.gov.uk/id/local-authority/00FC),Deputy Chief Executive,Ad Early Intervention,Family Hubs,Equip / Furniture / Materials,Furniture - Purchase,LA105,1/15/2016,389925,332.49,REVENUE,ARGOS BUSINESS SOLUTIONS,101032
North East Lincolnshire Council,http://statistics.data.gov.uk/id/local-authority/00FC),Deputy Chief Executive,Ad Early Intervention,Family Hubs,Equip / Furniture / Materials,Furniture - Purchase,LA105,1/15/2016,389960,-332.49,REVENUE,ARGOS BUSINESS SOLUTIONS,101032
North East Lincolnshire Council,http://statistics.data.gov.uk/id/local-authority/00FC),Deputy Chief Executive,Ad Early Intervention,Family Hubs,Energy Costs,Electricity,GB102,1/7/2016,388716,487.36,REVENUE,NPOWER,101368
North East Lincolnshire Council,http://statistics.data.gov.uk/id/local-authority/00FC),Deputy Chief Executive,Ad Early Intervention,Community Learning Services,Rents,Service Charge,GC102,1/14/2016,384823,56529.73,REVENUE,CARE PLUS GROUP,106467
North East Lincolnshire Council,http://statistics.data.gov.uk/id/local-authority/00FC),Deputy Chief Executive,Ad Early Intervention,Community Learning Services,Public Transport,Public Transport - Serv User,JD102,1/19/2016,390343,630,REVENUE,STAGECOACH SERVICES,101404
North East Lincolnshire Council,http://statistics.data.gov.uk/id/local-authority/00FC),Deputy Chief Executive,Ad Early Intervention,Community Learning Services,Miscellaneous Expenses,Activities - Service Users,LL114,1/4/2016,387060,4725,REVENUE,MRS SONIA SMITH,132584
North East Lincolnshire Council,http://statistics.data.gov.uk/id/local-authority/00FC),Deputy Chief Executive,Ad Early Intervention,Community Learning Services,Miscellaneous Expenses,Activities - Service Users,LL114,1/26/2016,391093,535,REVENUE,T G FIELD,107781
North East Lincolnshire Council,http://statistics.data.gov.uk/id/local-authority/00FC),Deputy Chief Executive,Ad Early Intervention,Community Learning Services,Private Contractors,Third Party Prov - Private,PH101,1/28/2016,391196,1800,REVENUE,CREATIVE COACHING CREATIVE CULTURES,132831
North East Lincolnshire Council,http://statistics.data.gov.uk/id/local-authority/00FC),Deputy Chief Executive,Ad Early Intervention,Integ Local Service Delivery,Other Agencies,Nursery Educ Fund - Standard,PJ139,1/5/2016,388422,462.6,REVENUE,OLD CLEE PRIMARY ACADEMY,119822
North East Lincolnshire Council,http://statistics.data.gov.uk/id/local-authority/00FC),Deputy Chief Executive,Ad Early Intervention,Integ Local Service Delivery,Other Agencies,Nursery Educ Fund - Standard,PJ139,1/4/2016,387053,9118.17,REVENUE,CLEETHORPES CHILDCARE,101591
North East Lincolnshire Council,http://statistics.data.gov.uk/id/local-authority/00FC),Deputy Chief Executive,Ad Early Intervention,Integ Local Service Delivery,Other Agencies,Nursery Educ Fund - Standard,PJ139,1/5/2016,388430,1387.8,REVENUE,LISLE MARSDEN CHILDCARE CENTRE,101577
North East Lincolnshire Council,http://statistics.data.gov.uk/id/local-authority/00FC),Deputy Chief Executive,Ad Early Intervention,Integ Local Service Delivery,Other Agencies,Nursery Educ Fund - Standard,PJ139,1/5/2016,388426,462.6,REVENUE,MACAULAY PRIMARY ACADEMY,112680
North East Lincolnshire Council,http://statistics.data.gov.uk/id/local-authority/00FC),Deputy Chief Executive,Ad Early Intervention,Integ Local Service Delivery,Communications And Computing,Computer H/Ware - Purchases,LF105,1/19/2016,390347,432,REVENUE,SPECIALIST COMPUTER CENTRES PLC,110715
North East Lincolnshire Council,http://statistics.data.gov.uk/id/local-authority/00FC),Deputy Chief Executive,Ad Early Intervention,Integ Local Service Delivery,Private Contractors,Third Party Prov - Private,PH101,1/7/2016,388958,316.67,REVENUE,CLICK TRAVEL,127476
North East Lincolnshire Council,http://statistics.data.gov.uk/id/local-authority/00FC),Deputy Chief Executive,Ad Early Intervention,Integ Local Service Delivery,Private Contractors,Third Party Prov - Private,PH101,1/21/2016,390461,413.4,REVENUE,REVELLS TAXIS (ED/SOC SERV),100559
North East Lincolnshire Council,http://statistics.data.gov.uk/id/local-authority/00FC),Deputy Chief Executive,Ad Early Intervention,Integ Local Service Delivery,Other Agencies,Section 17,PJ125,1/7/2016,379018,283.1,REVENUE,REDACTED PERSONAL INFORMATION,REDACTED PERSONAL INFORMATION
North East Lincolnshire Council,http://statistics.data.gov.uk/id/local-authority/00FC),Deputy Chief Executive,Ad Early Intervention,Integ Local Service Delivery,Other Agencies,Section 17,PJ125,1/14/2016,389911,306,REVENUE,JACQUELINE BRACEY,101200
North East Lincolnshire Council,http://statistics.data.gov.uk/id/local-authority/00FC),Deputy Chief Executive,Ad Early Intervention,Child Protection / Safeguardin,Communications And Computing,Telephones,LF112,1/29/2016,391299,728.7,REVENUE,VIRGIN MEDIA,107612
North East Lincolnshire Council,http://statistics.data.gov.uk/id/local-authority/00FC),Deputy Chief Executive,Ad Early Intervention,Child Protection / Safeguardin,Private Contractors,Third Party Prov - Private,PH101,1/19/2016,390014,750,REVENUE,SIMUL LTD,122141
North East Lincolnshire Council,http://statistics.data.gov.uk/id/local-authority/00FC),Deputy Chief Executive,Ad Early Intervention,Ad Early Intervention,Rents,Service Charge,GC102,1/5/2016,388420,288.66,REVENUE,PHP INVESTMENTS NO. 1 LTD,121299
North East Lincolnshire Council,http://statistics.data.gov.uk/id/local-authority/00FC),Deputy Chief Executive,Ad Early Intervention,Ad Early Intervention,Rents,Service Charge,GC102,1/28/2016,391180,513.99,REVENUE,E-ON (GAS),101983
North East Lincolnshire Council,http://statistics.data.gov.uk/id/local-authority/00FC),Deputy Chief Executive,Ad Early Intervention,Ad Early Intervention,Rents,Service Charge,GC102,1/28/2016,391212,26816.49,REVENUE,NHS PROPERTY SERVICES LTD,121261
North East Lincolnshire Council,http://statistics.data.gov.uk/id/local-authority/00FC),Deputy Chief Executive,Ad Early Intervention,Palliative / Complex Care,Private Contractors,Third Party Prov - Private,PH101,1/14/2016,389858,4056,REVENUE,THE ROWAN MANAGED ACCOUNT,127025
North East Lincolnshire Council,http://statistics.data.gov.uk/id/local-authority/00FC),Deputy Chief Executive,Ad Early Intervention,Palliative / Complex Care,Private Contractors,Third Party Prov - Private,PH101,1/29/2016,391745,520,REVENUE,THE ROWAN MANAGED ACCOUNT,127025
North East Lincolnshire Council,http://statistics.data.gov.uk/id/local-authority/00FC),Deputy Chief Executive,Ad Early Intervention,Childrens Social Care Innov,Direct Employee Expenses,Agency Staff,EA105,1/12/2016,388872,1288.8,REVENUE,VOLUNTARY ACTION NORTH EAST LINCOLNSHIRE,103631
North East Lincolnshire Council,http://statistics.data.gov.uk/id/local-authority/00FC),Deputy Chief Executive,Ad Early Intervention,Childrens Social Care Innov,Indirect Employee Expenses,Staff Training,EB122,1/14/2016,389641,900,REVENUE,FAMILY RIGHTS GROUP,106782
North East Lincolnshire Council,http://statistics.data.gov.uk/id/local-authority/00FC),Deputy Chief Executive,Ad Early Intervention,Childrens Social Care Innov,Equip / Furniture / Materials,Teaching Materials,LA117,1/14/2016,389638,4153.71,REVENUE,DAVID BURNBY & ASSOCIATES,103325
North East Lincolnshire Council,http://statistics.data.gov.uk/id/local-authority/00FC),Deputy Chief Executive,Ad Early Intervention,Childrens Social Care Innov,Equip / Furniture / Materials,Teaching Materials,LA117,1/14/2016,389910,12087.5,REVENUE,THE RESTORATIVE FOUNDATION,131005
North East Lincolnshire Council,http://statistics.data.gov.uk/id/local-authority/00FC),Deputy Chief Executive,Ad Early Intervention,Childrens Social Care Innov,Equip / Furniture / Materials,Teaching Materials,LA117,1/28/2016,391210,9472,REVENUE,PAUL CARLILE,119569
North East Lincolnshire Council,http://statistics.data.gov.uk/id/local-authority/00FC),Deputy Chief Executive,Ad Early Intervention,Childrens Social Care Innov,Communications And Computing,Telephones,LF112,1/29/2016,391301,1020.18,REVENUE,VIRGIN MEDIA,107612
North East Lincolnshire Council,http://statistics.data.gov.uk/id/local-authority/00FC),Deputy Chief Executive,Ad Early Intervention,Childrens Social Care Innov,Contributions To Provisions,Contributions - Other,LK103,1/12/2016,388874,896.98,REVENUE,SIMUL LTD,122141
North East Lincolnshire Council,http://statistics.data.gov.uk/id/local-authority/00FC),Deputy Chief Executive,Ad Childrens Services,School Access Governor Student,Grants And Subscriptions,Subscriptions,LJ101,1/5/2016,387972,565,REVENUE,LEXISNEXIS UK,101447
North East Lincolnshire Council,http://statistics.data.gov.uk/id/local-authority/00FC),Deputy Chief Executive,Ad Childrens Services,School Access Governor Student,Contract Hire-Operating Leases,Vehicles - Contract Hire,JC101,1/5/2016,387951,444,REVENUE,LINKS TAXIS,100546
North East Lincolnshire Council,http://statistics.data.gov.uk/id/local-authority/00FC),Deputy Chief Executive,Ad Childrens Services,School Access Governor Student,Contract Hire-Operating Leases,Vehicles - Contract Hire,JC101,1/5/2016,387944,840,REVENUE,COXONS CARS LIMITED,100578
North East Lincolnshire Council,http://statistics.data.gov.uk/id/local-authority/00FC),Deputy Chief Executive,Ad Childrens Services,School Access Governor Student,Contract Hire-Operating Leases,Vehicles - Contract Hire,JC101,1/5/2016,388036,842.5,REVENUE,LINKS TAXIS,100546
North East Lincolnshire Council,http://statistics.data.gov.uk/id/local-authority/00FC),Deputy Chief Executive,Ad Childrens Services,School Access Governor Student,Contract Hire-Operating Leases,Vehicles - Contract Hire,JC101,1/5/2016,387960,480,REVENUE,LINKS TAXIS,100546
North East Lincolnshire Council,http://statistics.data.gov.uk/id/local-authority/00FC),Deputy Chief Executive,Ad Childrens Services,School Access Governor Student,Contract Hire-Operating Leases,Vehicles - Contract Hire,JC101,1/5/2016,388035,416,REVENUE,LINKS TAXIS,100546
North East Lincolnshire Council,http://statistics.data.gov.uk/id/local-authority/00FC),Deputy Chief Executive,Ad Childrens Services,School Access Governor Student,Contract Hire-Operating Leases,Vehicles - Contract Hire,JC101,1/5/2016,388033,484,REVENUE,LINKS TAXIS,100546
North East Lincolnshire Council,http://statistics.data.gov.uk/id/local-authority/00FC),Deputy Chief Executive,Ad Childrens Services,School Access Governor Student,Contract Hire-Operating Leases,Vehicles - Contract Hire,JC101,1/5/2016,388042,724,REVENUE,COXONS CARS LIMITED,100578
North East Lincolnshire Council,http://statistics.data.gov.uk/id/local-authority/00FC),Deputy Chief Executive,Ad Childrens Services,School Access Governor Student,Contract Hire-Operating Leases,Vehicles - Contract Hire,JC101,1/5/2016,388147,752,REVENUE,MINICABS CLEETHORPES (LINCS) LTD,102124
North East Lincolnshire Council,http://statistics.data.gov.uk/id/local-authority/00FC),Deputy Chief Executive,Ad Childrens Services,School Access Governor Student,Contract Hire-Operating Leases,Vehicles - Contract Hire,JC101,1/5/2016,387961,675,REVENUE,LINKS TAXIS,100546
North East Lincolnshire Council,http://statistics.data.gov.uk/id/local-authority/00FC),Deputy Chief Executive,Ad Childrens Services,School Access Governor Student,Contract Hire-Operating Leases,Vehicles - Contract Hire,JC101,1/5/2016,387947,256,REVENUE,LINKS TAXIS,100546
North East Lincolnshire Council,http://statistics.data.gov.uk/id/local-authority/00FC),Deputy Chief Executive,Ad Childrens Services,School Access Governor Student,Private Contractors,Concessionary Fares,PH104,1/7/2016,388861,1461.5,REVENUE,STAGECOACH SERVICES,101404
North East Lincolnshire Council,http://statistics.data.gov.uk/id/local-authority/00FC),Deputy Chief Executive,Ad Childrens Services,School Access Governor Student,Contract Hire-Operating Leases,Vehicles - Contract Hire,JC101,1/5/2016,388045,308,REVENUE,COXONS CARS LIMITED,100578
North East Lincolnshire Council,http://statistics.data.gov.uk/id/local-authority/00FC),Deputy Chief Executive,Ad Childrens Services,School Access Governor Student,Contract Hire-Operating Leases,Vehicles - Contract Hire,JC101,1/5/2016,388047,336,REVENUE,COXONS CARS LIMITED,100578
North East Lincolnshire Council,http://statistics.data.gov.uk/id/local-authority/00FC),Deputy Chief Executive,Ad Childrens Services,School Access Governor Student,Contract Hire-Operating Leases,Vehicles - Contract Hire,JC101,1/12/2016,389422,2310,REVENUE,AMVALE LIMITED,101030
North East Lincolnshire Council,http://statistics.data.gov.uk/id/local-authority/00FC),Deputy Chief Executive,Ad Childrens Services,School Access Governor Student,Contract Hire-Operating Leases,Vehicles - Contract Hire,JC101,1/12/2016,389425,2450,REVENUE,AMVALE LIMITED,101030
North East Lincolnshire Council,http://statistics.data.gov.uk/id/local-authority/00FC),Deputy Chief Executive,Ad Childrens Services,School Access Governor Student,Contract Hire-Operating Leases,Vehicles - Contract Hire,JC101,1/12/2016,389424,2310,REVENUE,AMVALE LIMITED,101030
North East Lincolnshire Council,http://statistics.data.gov.uk/id/local-authority/00FC),Deputy Chief Executive,Ad Childrens Services,School Access Governor Student,Contract Hire-Operating Leases,Vehicles - Contract Hire,JC101,1/12/2016,389423,2450,REVENUE,AMVALE LIMITED,101030
North East Lincolnshire Council,http://statistics.data.gov.uk/id/local-authority/00FC),Deputy Chief Executive,Ad Childrens Services,School Access Governor Student,Private Contractors,Concessionary Fares,PH104,1/7/2016,388861,1498,REVENUE,STAGECOACH SERVICES,101404
North East Lincolnshire Council,http://statistics.data.gov.uk/id/local-authority/00FC),Deputy Chief Executive,Ad Childrens Services,School Access Governor Student,Contract Hire-Operating Leases,Vehicles - Contract Hire,JC101,1/12/2016,389420,1036,REVENUE,MINICABS CLEETHORPES (LINCS) LTD,102124
North East Lincolnshire Council,http://statistics.data.gov.uk/id/local-authority/00FC),Deputy Chief Executive,Ad Childrens Services,School Access Governor Student,Contract Hire-Operating Leases,Vehicles - Contract Hire,JC101,1/5/2016,388075,1036,REVENUE,MINICABS CLEETHORPES (LINCS) LTD,102124
North East Lincolnshire Council,http://statistics.data.gov.uk/id/local-authority/00FC),Deputy Chief Executive,Ad Childrens Services,School Access Governor Student,Contract Hire-Operating Leases,Vehicles - Contract Hire,JC101,1/5/2016,388074,520,REVENUE,MINICABS CLEETHORPES (LINCS) LTD,102124
North East Lincolnshire Council,http://statistics.data.gov.uk/id/local-authority/00FC),Deputy Chief Executive,Ad Childrens Services,School Access Governor Student,Contract Hire-Operating Leases,Vehicles - Contract Hire,JC101,1/5/2016,387966,472.5,REVENUE,LINKS TAXIS,100546
North East Lincolnshire Council,http://statistics.data.gov.uk/id/local-authority/00FC),Deputy Chief Executive,Ad Childrens Services,School Access Governor Student,Contract Hire-Operating Leases,Vehicles - Contract Hire,JC101,1/5/2016,388038,750,REVENUE,LINKS TAXIS,100546
North East Lincolnshire Council,http://statistics.data.gov.uk/id/local-authority/00FC),Deputy Chief Executive,Ad Childrens Services,School Access Governor Student,Contract Hire-Operating Leases,Vehicles - Contract Hire,JC101,1/12/2016,389421,820,REVENUE,AMVALE LIMITED,101030
North East Lincolnshire Council,http://statistics.data.gov.uk/id/local-authority/00FC),Deputy Chief Executive,Ad Childrens Services,School Access Governor Student,Contract Hire-Operating Leases,Vehicles - Contract Hire,JC101,1/12/2016,389419,820,REVENUE,AMVALE LIMITED,101030
North East Lincolnshire Council,http://statistics.data.gov.uk/id/local-authority/00FC),Deputy Chief Executive,Ad Childrens Services,School Access Governor Student,Contract Hire-Operating Leases,Vehicles - Contract Hire,JC101,1/19/2016,390044,820,REVENUE,AMVALE LIMITED,101030
North East Lincolnshire Council,http://statistics.data.gov.uk/id/local-authority/00FC),Deputy Chief Executive,Ad Childrens Services,School Access Governor Student,Contract Hire-Operating Leases,Vehicles - Contract Hire,JC101,1/5/2016,388050,448,REVENUE,COXONS CARS LIMITED,100578
North East Lincolnshire Council,http://statistics.data.gov.uk/id/local-authority/00FC),Deputy Chief Executive,Ad Childrens Services,School Access Governor Student,Contract Hire-Operating Leases,Vehicles - Contract Hire,JC101,1/5/2016,388049,322,REVENUE,COXONS CARS LIMITED,100578
North East Lincolnshire Council,http://statistics.data.gov.uk/id/local-authority/00FC),Deputy Chief Executive,Ad Childrens Services,School Access Governor Student,Contract Hire-Operating Leases,Vehicles - Contract Hire,JC101,1/5/2016,388048,476,REVENUE,COXONS CARS LIMITED,100578
North East Lincolnshire Council,http://statistics.data.gov.uk/id/local-authority/00FC),Deputy Chief Executive,Ad Childrens Services,School Access Governor Student,Contract Hire-Operating Leases,Vehicles - Contract Hire,JC101,1/5/2016,387943,504,REVENUE,COXONS CARS LIMITED,100578
North East Lincolnshire Council,http://statistics.data.gov.uk/id/local-authority/00FC),Deputy Chief Executive,Ad Childrens Services,School Access Governor Student,Contract Hire-Operating Leases,Vehicles - Contract Hire,JC101,1/11/2016,388717,294,REVENUE,COXONS CARS LIMITED,100578
North East Lincolnshire Council,http://statistics.data.gov.uk/id/local-authority/00FC),Deputy Chief Executive,Ad Childrens Services,School Access Governor Student,Contract Hire-Operating Leases,Vehicles - Contract Hire,JC101,1/5/2016,387949,389.76,REVENUE,REVELLS TAXIS (ED/SOC SERV),100559
North East Lincolnshire Council,http://statistics.data.gov.uk/id/local-authority/00FC),Deputy Chief Executive,Ad Childrens Services,School Access Governor Student,Contract Hire-Operating Leases,Vehicles - Contract Hire,JC101,1/5/2016,387945,420,REVENUE,AA RADIO CARS LTD,101222
North East Lincolnshire Council,http://statistics.data.gov.uk/id/local-authority/00FC),Deputy Chief Executive,Ad Childrens Services,School Access Governor Student,Contract Hire-Operating Leases,Vehicles - Contract Hire,JC101,1/5/2016,388097,630,REVENUE,MINICABS CLEETHORPES (LINCS) LTD,102124
North East Lincolnshire Council,http://statistics.data.gov.uk/id/local-authority/00FC),Deputy Chief Executive,Ad Childrens Services,School Access Governor Student,Contract Hire-Operating Leases,Vehicles - Contract Hire,JC101,1/28/2016,391233,943,REVENUE,MINICABS CLEETHORPES (LINCS) LTD,102124
North East Lincolnshire Council,http://statistics.data.gov.uk/id/local-authority/00FC),Deputy Chief Executive,Ad Childrens Services,School Access Governor Student,Contract Hire-Operating Leases,Vehicles - Contract Hire,JC101,1/5/2016,388102,742,REVENUE,MINICABS CLEETHORPES (LINCS) LTD,102124
North East Lincolnshire Council,http://statistics.data.gov.uk/id/local-authority/00FC),Deputy Chief Executive,Ad Childrens Services,School Access Governor Student,Contract Hire-Operating Leases,Vehicles - Contract Hire,JC101,1/5/2016,387963,936,REVENUE,LINKS TAXIS,100546
North East Lincolnshire Council,http://statistics.data.gov.uk/id/local-authority/00FC),Deputy Chief Executive,Ad Childrens Services,School Access Governor Student,Contract Hire-Operating Leases,Vehicles - Contract Hire,JC101,1/5/2016,388101,770,REVENUE,MINICABS CLEETHORPES (LINCS) LTD,102124
North East Lincolnshire Council,http://statistics.data.gov.uk/id/local-authority/00FC),Deputy Chief Executive,Ad Childrens Services,School Access Governor Student,Contract Hire-Operating Leases,Vehicles - Contract Hire,JC101,1/5/2016,388073,825,REVENUE,MINICABS CLEETHORPES (LINCS) LTD,102124
North East Lincolnshire Council,http://statistics.data.gov.uk/id/local-authority/00FC),Deputy Chief Executive,Ad Childrens Services,School Access Governor Student,Contract Hire-Operating Leases,Vehicles - Contract Hire,JC101,1/5/2016,388053,1092,REVENUE,MINICABS CLEETHORPES (LINCS) LTD,102124
North East Lincolnshire Council,http://statistics.data.gov.uk/id/local-authority/00FC),Deputy Chief Executive,Ad Childrens Services,School Access Governor Student,Contract Hire-Operating Leases,Vehicles - Contract Hire,JC101,1/5/2016,388099,980,REVENUE,MINICABS CLEETHORPES (LINCS) LTD,102124
North East Lincolnshire Council,http://statistics.data.gov.uk/id/local-authority/00FC),Deputy Chief Executive,Ad Childrens Services,School Access Governor Student,Contract Hire-Operating Leases,Vehicles - Contract Hire,JC101,1/5/2016,388054,770,REVENUE,MINICABS CLEETHORPES (LINCS) LTD,102124
North East Lincolnshire Council,http://statistics.data.gov.uk/id/local-authority/00FC),Deputy Chief Executive,Ad Childrens Services,School Access Governor Student,Contract Hire-Operating Leases,Vehicles - Contract Hire,JC101,1/5/2016,388096,520,REVENUE,MINICABS CLEETHORPES (LINCS) LTD,102124
North East Lincolnshire Council,http://statistics.data.gov.uk/id/local-authority/00FC),Deputy Chief Executive,Ad Childrens Services,School Access Governor Student,Contract Hire-Operating Leases,Vehicles - Contract Hire,JC101,1/5/2016,388094,1980,REVENUE,MINICABS CLEETHORPES (LINCS) LTD,102124
North East Lincolnshire Council,http://statistics.data.gov.uk/id/local-authority/00FC),Deputy Chief Executive,Ad Childrens Services,School Access Governor Student,Contract Hire-Operating Leases,Vehicles - Contract Hire,JC101,1/5/2016,388021,775,REVENUE,LINKS TAXIS,100546
North East Lincolnshire Council,http://statistics.data.gov.uk/id/local-authority/00FC),Deputy Chief Executive,Ad Childrens Services,School Access Governor Student,Contract Hire-Operating Leases,Vehicles - Contract Hire,JC101,1/11/2016,388557,268.8,REVENUE,LINKS TAXIS,100546
North East Lincolnshire Council,http://statistics.data.gov.uk/id/local-authority/00FC),Deputy Chief Executive,Ad Childrens Services,School Access Governor Student,Contract Hire-Operating Leases,Vehicles - Contract Hire,JC101,1/19/2016,389646,550,REVENUE,COUNTRY CABS,101999
North East Lincolnshire Council,http://statistics.data.gov.uk/id/local-authority/00FC),Deputy Chief Executive,Ad Childrens Services,School Access Governor Student,Contract Hire-Operating Leases,Vehicles - Contract Hire,JC101,1/5/2016,387946,336,REVENUE,AA RADIO CARS LTD,101222
North East Lincolnshire Council,http://statistics.data.gov.uk/id/local-authority/00FC),Deputy Chief Executive,Ad Childrens Services,School Access Governor Student,Contract Hire-Operating Leases,Vehicles - Contract Hire,JC101,1/29/2016,391754,670,REVENUE,REVELLS TAXIS (ED/SOC SERV),100559
North East Lincolnshire Council,http://statistics.data.gov.uk/id/local-authority/00FC),Deputy Chief Executive,Ad Childrens Services,School Access Governor Student,Contract Hire-Operating Leases,Vehicles - Contract Hire,JC101,1/12/2016,389435,598,REVENUE,LINKS TAXIS,100546
North East Lincolnshire Council,http://statistics.data.gov.uk/id/local-authority/00FC),Deputy Chief Executive,Ad Childrens Services,School Access Governor Student,Contract Hire-Operating Leases,Vehicles - Contract Hire,JC101,1/5/2016,387953,336,REVENUE,LINKS TAXIS,100546
North East Lincolnshire Council,http://statistics.data.gov.uk/id/local-authority/00FC),Deputy Chief Executive,Ad Childrens Services,School Access Governor Student,Contract Hire-Operating Leases,Vehicles - Contract Hire,JC101,1/5/2016,388161,308,REVENUE,LINKS TAXIS,100546
North East Lincolnshire Council,http://statistics.data.gov.uk/id/local-authority/00FC),Deputy Chief Executive,Ad Childrens Services,School Access Governor Student,Contract Hire-Operating Leases,Vehicles - Contract Hire,JC101,1/19/2016,389644,420,REVENUE,COUNTRY CABS,101999
North East Lincolnshire Council,http://statistics.data.gov.uk/id/local-authority/00FC),Deputy Chief Executive,Ad Childrens Services,School Access Governor Student,Contract Hire-Operating Leases,Vehicles - Contract Hire,JC101,1/5/2016,387950,350,REVENUE,LINKS TAXIS,100546
North East Lincolnshire Council,http://statistics.data.gov.uk/id/local-authority/00FC),Deputy Chief Executive,Ad Childrens Services,School Access Governor Student,Contract Hire-Operating Leases,Vehicles - Contract Hire,JC101,1/5/2016,388034,588,REVENUE,LINKS TAXIS,100546
North East Lincolnshire Council,http://statistics.data.gov.uk/id/local-authority/00FC),Deputy Chief Executive,Ad Childrens Services,School Access Governor Student,Contract Hire-Operating Leases,Vehicles - Contract Hire,JC101,1/5/2016,388032,448,REVENUE,LINKS TAXIS,100546
North East Lincolnshire Council,http://statistics.data.gov.uk/id/local-authority/00FC),Deputy Chief Executive,Ad Childrens Services,School Access Governor Student,Contract Hire-Operating Leases,Vehicles - Contract Hire,JC101,1/5/2016,387956,262.5,REVENUE,LINKS TAXIS,100546
North East Lincolnshire Council,http://statistics.data.gov.uk/id/local-authority/00FC),Deputy Chief Executive,Ad Childrens Services,School Access Governor Student,Contract Hire-Operating Leases,Vehicles - Contract Hire,JC101,1/5/2016,387916,280,REVENUE,REVELLS TAXIS (ED/SOC SERV),100559
North East Lincolnshire Council,http://statistics.data.gov.uk/id/local-authority/00FC),Deputy Chief Executive,Ad Childrens Services,School Access Governor Student,Contract Hire-Operating Leases,Vehicles - Contract Hire,JC101,1/5/2016,387954,825,REVENUE,LINKS TAXIS,100546
North East Lincolnshire Council,http://statistics.data.gov.uk/id/local-authority/00FC),Deputy Chief Executive,Ad Childrens Services,School Access Governor Student,Contract Hire-Operating Leases,Vehicles - Contract Hire,JC101,1/5/2016,387948,520,REVENUE,LINKS TAXIS,100546
North East Lincolnshire Council,http://statistics.data.gov.uk/id/local-authority/00FC),Deputy Chief Executive,Ad Childrens Services,School Access Governor Student,Contributions To Provisions,Contributions - Other,LK103,1/4/2016,378125,418.06,REVENUE,REDACTED PERSONAL INFORMATION,REDACTED PERSONAL INFORMATION
North East Lincolnshire Council,http://statistics.data.gov.uk/id/local-authority/00FC),Deputy Chief Executive,Ad Childrens Services,Strategic Management,Consultancy,Consultancy,PL101,1/29/2016,391690,250,REVENUE,NATIONAL UNION OF TEACHERS,104912
North East Lincolnshire Council,http://statistics.data.gov.uk/id/local-authority/00FC),Deputy Chief Executive,Ad Childrens Services,Sen/Inclusion,Other Local Authorities,Third Pp - Other Local Auth,PC101,1/7/2016,388331,2142.9,REVENUE,REDACTED PERSONAL INFORMATION,REDACTED PERSONAL INFORMATION
North East Lincolnshire Council,http://statistics.data.gov.uk/id/local-authority/00FC),Deputy Chief Executive,Ad Childrens Services,Sen/Inclusion,Other Local Authorities,Third Pp - Other Local Auth,PC101,1/28/2016,390290,3077.85,REVENUE,REDACTED PERSONAL INFORMATION,REDACTED PERSONAL INFORMATION
North East Lincolnshire Council,http://statistics.data.gov.uk/id/local-authority/00FC),Deputy Chief Executive,Ad Childrens Services,Sen/Inclusion,Other Local Authorities,Third Pp - Other Local Auth,PC101,1/12/2016,389750,36518.33,REVENUE,REDACTED PERSONAL INFORMATION,REDACTED PERSONAL INFORMATION
North East Lincolnshire Council,http://statistics.data.gov.uk/id/local-authority/00FC),Deputy Chief Executive,Ad Childrens Services,Sen/Inclusion,Other Local Authorities,Third Pp - Other Local Auth,PC101,1/29/2016,391394,600,REVENUE,REDACTED PERSONAL INFORMATION,REDACTED PERSONAL INFORMATION
North East Lincolnshire Council,http://statistics.data.gov.uk/id/local-authority/00FC),Deputy Chief Executive,Ad Childrens Services,Sen/Inclusion,Other Local Authorities,Third Pp - Other Local Auth,PC101,1/7/2016,388329,4187.35,REVENUE,REDACTED PERSONAL INFORMATION,REDACTED PERSONAL INFORMATION
North East Lincolnshire Council,http://statistics.data.gov.uk/id/local-authority/00FC),Deputy Chief Executive,Ad Childrens Services,Sen/Inclusion,Other Local Authorities,Third Pp - Other Local Auth,PC101,1/7/2016,388329,8374.76,REVENUE,REDACTED PERSONAL INFORMATION,REDACTED PERSONAL INFORMATION
North East Lincolnshire Council,http://statistics.data.gov.uk/id/local-authority/00FC),Deputy Chief Executive,Ad Childrens Services,Sen/Inclusion,Other Local Authorities,Third Pp - Other Local Auth,PC101,1/19/2016,390229,3077.85,REVENUE,REDACTED PERSONAL INFORMATION,REDACTED PERSONAL INFORMATION
North East Lincolnshire Council,http://statistics.data.gov.uk/id/local-authority/00FC),Deputy Chief Executive,Ad Childrens Services,Sen/Inclusion,Other Local Authorities,Third Pp - Other Local Auth,PC101,1/5/2016,387903,29485.29,REVENUE,REDACTED PERSONAL INFORMATION,REDACTED PERSONAL INFORMATION
North East Lincolnshire Council,http://statistics.data.gov.uk/id/local-authority/00FC),Deputy Chief Executive,Ad Childrens Services,Sen/Inclusion,Private Contractors,Third Party Prov - Private,PH101,1/12/2016,389076,16350,REVENUE,REDACTED PERSONAL INFORMATION,REDACTED PERSONAL INFORMATION
North East Lincolnshire Council,http://statistics.data.gov.uk/id/local-authority/00FC),Deputy Chief Executive,Ad Childrens Services,Sen/Inclusion,Private Contractors,Third Party Prov - Private,PH101,1/7/2016,388331,10285.8,REVENUE,REDACTED PERSONAL INFORMATION,REDACTED PERSONAL INFORMATION
North East Lincolnshire Council,http://statistics.data.gov.uk/id/local-authority/00FC),Deputy Chief Executive,Ad Childrens Services,Sen/Inclusion,Private Contractors,Third Party Prov - Private,PH101,1/28/2016,390290,16385.71,REVENUE,REDACTED PERSONAL INFORMATION,REDACTED PERSONAL INFORMATION
North East Lincolnshire Council,http://statistics.data.gov.uk/id/local-authority/00FC),Deputy Chief Executive,Ad Childrens Services,Sen/Inclusion,Private Contractors,Third Party Prov - Private,PH101,1/7/2016,388330,22328.7,REVENUE,REDACTED PERSONAL INFORMATION,REDACTED PERSONAL INFORMATION
North East Lincolnshire Council,http://statistics.data.gov.uk/id/local-authority/00FC),Deputy Chief Executive,Ad Childrens Services,Sen/Inclusion,Private Contractors,Third Party Prov - Private,PH101,1/19/2016,390229,16385.71,REVENUE,REDACTED PERSONAL INFORMATION,REDACTED PERSONAL INFORMATION
North East Lincolnshire Council,http://statistics.data.gov.uk/id/local-authority/00FC),Deputy Chief Executive,Ad Childrens Services,Sen/Inclusion,Private Contractors,Third Party Prov - Private,PH101,1/19/2016,390051,16221.85,REVENUE,REDACTED PERSONAL INFORMATION,REDACTED PERSONAL INFORMATION
North East Lincolnshire Council,http://statistics.data.gov.uk/id/local-authority/00FC),Deputy Chief Executive,Ad Childrens Services,Sen/Inclusion,Private Contractors,Third Party Prov - Private,PH101,1/7/2016,388328,15698.56,REVENUE,REDACTED PERSONAL INFORMATION,REDACTED PERSONAL INFORMATION
North East Lincolnshire Council,http://statistics.data.gov.uk/id/local-authority/00FC),Deputy Chief Executive,Ad Childrens Services,Sen/Inclusion,Private Contractors,Third Party Prov - Private,PH101,1/12/2016,389076,545,REVENUE,REDACTED PERSONAL INFORMATION,REDACTED PERSONAL INFORMATION
North East Lincolnshire Council,http://statistics.data.gov.uk/id/local-authority/00FC),Deputy Chief Executive,Ad Childrens Services,Sen/Inclusion,Private Contractors,Third Party Prov - Private,PH101,1/5/2016,387903,29485.28,REVENUE,REDACTED PERSONAL INFORMATION,REDACTED PERSONAL INFORMATION
